Workbook

Sheet Interfaz
C5: POBLACIÓN ASIGNADA SEGÚN CENSOS INEI - RENIEC - PN - CNV - 2020
C10: RED INTEGRADA DE SALUD HUAURA OYÓN
A22: Elaboración: Área de Estadística - RIS Huaura Oyón.
A23: NOTA: LA POBLACION ESTIMADA DE EDADES SIMPLES Y GRUPOS DE EDAD DE DISTRITOS, CORRESPONDEN A CIFRAS REFERENCIALES HASTA OBTENER LAS CIFRAS DE LAS PROYECCIONES DEL INEI
A26: OFICINA DE GESTION DE LA INFORMACIÓN - MINISTERIO DE SALUD
R27: Versión1.030

Sheet Poblacion
C1: 1 | D1: 2 | E1: 3 | F1: 4 | G1: 5 | H1: 6 | I1: 7 | J1: 8 | K1: 9 | L1: 10 | M1: 11 | N1: 12 | O1: 13 | P1: 14 | Q1: 15 | R1: 16 | S1: 17 | T1: 18 | U1: 19 | V1: 20 | W1: 21 | X1: 22 | Y1: 23 | Z1: 24 | AA1: 25 | AB1: 26 | AC1: 27 | AD1: 28 | AE1: 29 | AF1: 30 | AG1: 31 | AH1: 32 | AI1: 33 | AJ1: 34 | AK1: 35 | AL1: 36 | AM1: 37 | AN1: 38 | AO1: 39 | AP1: 40 | AQ1: 41 | AR1: 42 | AS1: 43 | AT1: 44 | AU1: 45 | AV1: 46 | AW1: 47 | AX1: 48 | AY1: 49 | AZ1: 50 | BA1: 51 | BB1: 52 | BC1: 53 | BD1: 54 | BE1: 55 | BF1: 56 | BG1: 57 | BH1: 58 | BI1: 59 | BJ1: 60 | BK1: 61 | BL1: 62 | BM1: 63 | BN1: 64 | BO1: 65 | BP1: 66 | BQ1: 67 | BR1: 68 | BS1: 69 | BT1: 70 | BU1: 71 | BV1: 72 | BW1: 73 | BX1: 74 | BY1: 75 | BZ1: 76 | CA1: 77 | CB1: 78 | CC1: 79 | CD1: 80 | CE1: 81 | CF1: 82 | CG1: 83 | CH1: 84 | CI1: 85 | CJ1: 86 | CK1: 87 | CL1: 88 | CM1: 89 | CN1: 90 | CO1: 91 | CP1: 92 | CQ1: 93 | CR1: 94 | CS1: 95 | CT1: 96 | CU1: 97 | CV1: 98 | CZ1: 77 | DA1: 78 | DB1: 79 | DC1: 80 | DD1: 81 | DE1: 82 | DF1: 83 | DG1: 84 | DH1: 85 | DI1: 86 | DJ1: 87 | DK1: 88 | DL1: 89 | DM1: 90 | DN1: 91 | DO1: 92 | DP1: 93 | DQ1: 94 | DR1: 95 | DS1: 96 | DT1: 97 | DU1: 98 | DV1: 99 | DW1: 106 | DX1: 107 | DY1: 108 | DZ1: 109 | EA1: 110 | EB1: 111
AE2: POBLACIÓN ESTIMADA POR GRUPOS DE EDAD, SEGÚN PROVINCIAS DISTRITOS Y ESTABLECIMIENTOS DE SALUD
AE3: RED INTEGRADA DE SALUD HUAURA OYON - AÑO 2020 | BW3: =ROUND(BY3,0) -> 0 | CP3: MAS GRUPOS DE EDAD
AE4: EDADES PUNTUALES Y GRUPOS DE EDAD
C5: N° | E5: DIRECCION DE SALUD | F5: TOTAL GENERAL | H5: TOTAL MASCULINO | I5: TOTAL FEMENINO | K5: EDAD | M5: EDAD | O5: EDAD | Q5: EDAD | S5: EDAD | U5: EDAD | W5: EDAD | Y5: EDAD | AA5: EDAD | AC5: EDAD | AE5: EDAD | AG5: EDAD | AI5: EDAD | AK5: EDAD | AM5: EDAD | AO5: EDAD | AQ5: EDAD | AS5: EDAD | AU5: EDAD | AW5: EDAD | AY5: EDAD | BA5: EDAD | BC5: EDAD | BE5: EDAD | BG5: EDAD | BI5: EDAD | BK5: EDAD | BM5: EDAD | BO5: EDAD | BQ5: EDAD | BS5: EDAD | BU5: EDAD | BW5: EDAD | BY5: EDADES ESPECIALES | CD5: NACIMIENTOS | CE5: POBLACION FEMENINA TOTAL | CF5: POBLACION FEMENINA | CI5: GESTANTES ESPERADAS | CK5: menor de 1 Año | CL5: Pre escolar (1-4) | CM5: Niño (0 - 11) | CN5: Escolar (05 - 17) | CO5: Adolescente (12 - 17) | CP5: Adulto Joven (18 - 29) | CQ5: Adulto (30-59) | CR5: Adu.Mayor (60 a MAS) | CT5: Escolar (05 - 09) | CU5: Adolescente (10 - 19) | CV5: Adulto (20-59)
A6: UBIGEO | E6: PROVINCIA | K6: 0 | M6: 1 | O6: 2 | Q6: 3 | S6: 4 | U6: 5 | W6: 6 | Y6: 7 | AA6: 8 | AC6: 9 | AE6: 10 | AG6: 11 | AI6: 12 | AK6: 13 | AM6: 14 | AO6: 15 | AQ6: 16 | AS6: 17 | AU6: 18 | AW6: 19 | AY6: 20 - 24 | BA6: 25 - 29 | BC6: 30 - 34 | BE6: 35 - 39 | BG6: 40 - 44 | BI6: 45 - 49 | BK6: 50 - 54 | BM6: 55 - 59 | BO6: 60 - 64 | BQ6: 65 - 69 | BS6: 70- 74 | BU6: 75 - 79 | BW6: 80 - + | BY6: 28 DIAS | BZ6: 0-5 MESES | CB6: 6-11 MESES
B7: Microredes | D7: RENAES | E7: DISTRITO | K7: M | L7: F | M7: M | N7: F | O7: M | P7: F | Q7: M | R7: F | S7: M | T7: F | U7: M | V7: F | W7: M | X7: F | Y7: M | Z7: F | AA7: M | AB7: F | AC7: M | AD7: F | AE7: M | AF7: F | AG7: M | AH7: F | AI7: M | AJ7: F | AK7: M | AL7: F | AM7: M | AN7: F | AO7: M | AP7: F | AQ7: M | AR7: F | AS7: M | AT7: F | AU7: M | AV7: F | AW7: M | AX7: F | AY7: M | AZ7: F | BA7: M | BB7: F | BC7: M | BD7: F | BE7: M | BF7: F | BG7: M | BH7: F | BI7: M | BJ7: F | BK7: M | BL7: F | BM7: M | BN7: F | BO7: M | BP7: F | BQ7: M | BR7: F | BS7: M | BT7: F | BU7: M | BV7: F | BW7: M | BX7: F | BZ7: M | CA7: F | CB7: M | CC7: F | CF7: 10 - 14 | CG7: 15 - 19 | CH7: 20 - 49
A8: 150000 | C8: 1 | E8: HUAURA - OYON | F8: 264916 | H8: 128466 | I8: 136450 | K8: 2056 | L8: 1926 | M8: 2122 | N8: 2033 | O8: 1772 | P8: 1747 | Q8: 1845 | R8: 1769 | S8: 2047 | T8: 1952 | U8: 2124 | V8: 1973 | W8: 1624 | X8: 1611 | Y8: 1627 | Z8: 1681 | AA8: 1714 | AB8: 1689 | AC8: 1728 | AD8: 1818 | AE8: 1894 | AF8: 1847 | AG8: 1923 | AH8: 1948 | AI8: 2064 | AJ8: 1890 | AK8: 1956 | AL8: 1987 | AM8: 1972 | AN8: 2457 | AO8: 1673 | AP8: 1648 | AQ8: 1620 | AR8: 1650 | AS8: 1648 | AT8: 1569 | AU8: 1645 | AV8: 1535 | AW8: 1613 | AX8: 2600 | AY8: 8688 | AZ8: 10780 | BA8: 9472 | BB8: 10079 | BC8: 9169 | BD8: 9183 | BE8: 9932 | BF8: 9568 | BG8: 9446 | BH8: 9486 | BI8: 7639 | BJ8: 9690 | BK8: 7478 | BL8: 8244 | BM8: 7178 | BN8: 7264 | BO8: 5700 | BP8: 6127 | BQ8: 5188 | BR8: 5958 | BS8: 4923 | BT8: 4542 | BU8: 3098 | BV8: 3470 | BW8: 3888 | BX8: 4729 | BY8: 396 | BZ8: 1009 | CA8: 867 | CB8: 1047 | CC8: 1059 | CD8: 4477 | CE8: 0 | CF8: 10129 | CG8: 9002 | CH8: 58786 | CI8: 5947 | CK8: =SUM(K8:L8) -> 3982 | CL8: =SUM(M8:T8) -> 15287 | CM8: =SUM(K8:AH8) -> 44470 | CN8: =SUM(U8:AT8) -> 47335 | CO8: =SUM(AI8:AT8) -> 22134 | CP8: =SUM(AU8:BB8) -> 46412 | CQ8: =SUM(BC8:BN8) -> 104277 | CR8: =SUM(BO8:BX8) -> 47623 | CT8: =SUM(U8:AD8) -> 17589 | CU8: =SUM(AE8:AX8) -> 37139 | CV8: =SUM(AY8:BN8) -> 143296
A9: 150800 | C9: 2 | D9: 150800 | E9: PROVINCIA HUAURA | F9: 240225 | H9: 116559 | I9: 123666 | K9: 1917 | L9: 1799 | M9: 1975 | N9: 1880 | O9: 1642 | P9: 1642 | Q9: 1699 | R9: 1657 | S9: 1881 | T9: 1825 | U9: 1972 | V9: 1816 | W9: 1423 | X9: 1422 | Y9: 1423 | Z9: 1490 | AA9: 1501 | AB9: 1499 | AC9: 1537 | AD9: 1599 | AE9: 1686 | AF9: 1629 | AG9: 1717 | AH9: 1719 | AI9: 1847 | AJ9: 1670 | AK9: 1756 | AL9: 1771 | AM9: 1764 | AN9: 2207 | AO9: 1515 | AP9: 1489 | AQ9: 1471 | AR9: 1507 | AS9: 1498 | AT9: 1442 | AU9: 1504 | AV9: 1412 | AW9: 1469 | AX9: 2390 | AY9: 7939 | AZ9: 9850 | BA9: 8571 | BB9: 9030 | BC9: 8234 | BD9: 8272 | BE9: 8926 | BF9: 8482 | BG9: 8565 | BH9: 8635 | BI9: 6925 | BJ9: 8766 | BK9: 6848 | BL9: 7535 | BM9: 6600 | BN9: 6644 | BO9: 5261 | BP9: 5626 | BQ9: 4663 | BR9: 5414 | BS9: 4477 | BT9: 4105 | BU9: 2777 | BV9: 3103 | BW9: 3576 | BX9: 4339 | BY9: 335 | BZ9: 942 | CA9: 804 | CB9: 975 | CC9: 995 | CD9: 3934 | CE9: 0 | CF9: 8996 | CG9: 8240 | CH9: 53035 | CI9: 5207 | CK9: =SUM(K9:L9) -> 3716 | CL9: =SUM(M9:T9) -> 14201 | CM9: =SUM(K9:AH9) -> 40350 | CN9: =SUM(U9:AT9) -> 42370 | CO9: =SUM(AI9:AT9) -> 19937 | CP9: =SUM(AU9:BB9) -> 42165 | CQ9: =SUM(BC9:BN9) -> 94432 | CR9: =SUM(BO9:BX9) -> 43341 | CT9: 15682 | CU9: 33463 | CV9: 129822
A10: 150801 | C10: 3 | D10: 150802 | E10: DISTRITO HUACHO | F10: 65329 | H10: 31678 | I10: 33651 | K10: 494 | L10: 453 | M10: 474 | N10: 441 | O10: 332 | P10: 416 | Q10: 407 | R10: 392 | S10: 488 | T10: 489 | U10: 488 | V10: 457 | W10: 331 | X10: 332 | Y10: 354 | Z10: 327 | AA10: 373 | AB10: 331 | AC10: 389 | AD10: 351 | AE10: 379 | AF10: 410 | AG10: 388 | AH10: 437 | AI10: 451 | AJ10: 399 | AK10: 402 | AL10: 453 | AM10: 447 | AN10: 516 | AO10: 372 | AP10: 358 | AQ10: 348 | AR10: 376 | AS10: 338 | AT10: 382 | AU10: 402 | AV10: 317 | AW10: 354 | AX10: 609 | AY10: 1986 | AZ10: 2590 | BA10: 2298 | BB10: 2225 | BC10: 1906 | BD10: 2371 | BE10: 2554 | BF10: 2115 | BG10: 2580 | BH10: 2218 | BI10: 1854 | BJ10: 2684 | BK10: 1922 | BL10: 2541 | BM10: 1909 | BN10: 2113 | BO10: 1698 | BP10: 1514 | BQ10: 1535 | BR10: 1486 | BS10: 1427 | BT10: 1174 | BU10: 924 | BV10: 922 | BW10: 1074 | BX10: 1452 | BY10: 81 | BZ10: 253 | CA10: 196 | CB10: 241 | CC10: 257 | CD10: 943 | CE10: 0 | CF10: 2215 | CG10: 2042 | CH10: 14203 | CI10: 1249 | CK10: 947 | CL10: 3439 | CM10: 9733 | CN10: 10189 | CO10: 4842 | CP10: 10781 | CQ10: 26767 | CR10: 13206 | CT10: 3733 | CU10: 8138 | CV10: 35866
B11: 00 | C11: 4 | D11: 7639 | E11: HOSPITAL HUACHO | F11: 48997 | H11: 23759 | I11: 25238 | K11: 370 | L11: 340 | M11: 355 | N11: 331 | O11: 249 | P11: 312 | Q11: 305 | R11: 294 | S11: 366 | T11: 367 | U11: 366 | V11: 343 | W11: 248 | X11: 249 | Y11: 265 | Z11: 245 | AA11: 280 | AB11: 248 | AC11: 292 | AD11: 263 | AE11: 284 | AF11: 307 | AG11: 291 | AH11: 328 | AI11: 338 | AJ11: 299 | AK11: 301 | AL11: 340 | AM11: 335 | AN11: 387 | AO11: 279 | AP11: 268 | AQ11: 261 | AR11: 282 | AS11: 253 | AT11: 286 | AU11: 301 | AV11: 238 | AW11: 266 | AX11: 457 | AY11: 1490 | AZ11: 1942 | BA11: 1724 | BB11: 1669 | BC11: 1430 | BD11: 1778 | BE11: 1916 | BF11: 1586 | BG11: 1935 | BH11: 1663 | BI11: 1391 | BJ11: 2013 | BK11: 1442 | BL11: 1906 | BM11: 1432 | BN11: 1585 | BO11: 1274 | BP11: 1135 | BQ11: 1151 | BR11: 1115 | BS11: 1070 | BT11: 881 | BU11: 693 | BV11: 692 | BW11: 806 | BX11: 1089 | BY11: 61 | BZ11: 189 | CA11: 147 | CB11: 181 | CC11: 193 | CD11: 707 | CF11: 1661 | CG11: 1531 | CH11: 10651 | CI11: 937 | CK11: 710 | CL11: 2579 | CM11: 7298 | CN11: 7638 | CO11: 3629 | CP11: 8087 | CQ11: 20077 | CR11: 9906 | CT11: 2799 | CU11: 6101 | CV11: 26902
B12: 02 | C12: 5 | D12: 5679 | E12: C.S. MANZANARES | F12: 16332 | H12: 7919 | I12: 8413 | K12: 124 | L12: 113 | M12: 119 | N12: 110 | O12: 83 | P12: 104 | Q12: 102 | R12: 98 | S12: 122 | T12: 122 | U12: 122 | V12: 114 | W12: 83 | X12: 83 | Y12: 89 | Z12: 82 | AA12: 93 | AB12: 83 | AC12: 97 | AD12: 88 | AE12: 95 | AF12: 103 | AG12: 97 | AH12: 109 | AI12: 113 | AJ12: 100 | AK12: 101 | AL12: 113 | AM12: 112 | AN12: 129 | AO12: 93 | AP12: 90 | AQ12: 87 | AR12: 94 | AS12: 85 | AT12: 96 | AU12: 101 | AV12: 79 | AW12: 88 | AX12: 152 | AY12: 496 | AZ12: 648 | BA12: 574 | BB12: 556 | BC12: 476 | BD12: 593 | BE12: 638 | BF12: 529 | BG12: 645 | BH12: 555 | BI12: 463 | BJ12: 671 | BK12: 480 | BL12: 635 | BM12: 477 | BN12: 528 | BO12: 424 | BP12: 379 | BQ12: 384 | BR12: 371 | BS12: 357 | BT12: 293 | BU12: 231 | BV12: 230 | BW12: 268 | BX12: 363 | BY12: 20 | BZ12: 64 | CA12: 49 | CB12: 60 | CC12: 64 | CD12: 236 | CF12: 554 | CG12: 511 | CH12: 3552 | CI12: 312 | CK12: 237 | CL12: 860 | CM12: 2435 | CN12: 2551 | CO12: 1213 | CP12: 2694 | CQ12: 6690 | CR12: 3300 | CT12: 934 | CU12: 2037 | CV12: 8964
A13: 150802 | C13: 6 | D13: 150802 | E13: DISTRITO AMBAR | F13: 2882 | H13: 1387 | I13: 1495 | K13: 25 | L13: 20 | M13: 21 | N13: 20 | O13: 15 | P13: 14 | Q13: 21 | R13: 20 | S13: 20 | T13: 16 | U13: 20 | V13: 13 | W13: 28 | X13: 27 | Y13: 26 | Z13: 29 | AA13: 29 | AB13: 28 | AC13: 25 | AD13: 31 | AE13: 28 | AF13: 27 | AG13: 26 | AH13: 28 | AI13: 24 | AJ13: 27 | AK13: 26 | AL13: 23 | AM13: 23 | AN13: 28 | AO13: 17 | AP13: 17 | AQ13: 17 | AR13: 15 | AS13: 16 | AT13: 12 | AU13: 14 | AV13: 14 | AW13: 15 | AX13: 25 | AY13: 97 | AZ13: 99 | BA13: 82 | BB13: 96 | BC13: 82 | BD13: 94 | BE13: 90 | BF13: 95 | BG13: 76 | BH13: 97 | BI13: 84 | BJ13: 112 | BK13: 78 | BL13: 100 | BM13: 85 | BN13: 72 | BO13: 71 | BP13: 72 | BQ13: 70 | BR13: 77 | BS13: 51 | BT13: 57 | BU13: 32 | BV13: 41 | BW13: 53 | BX13: 49 | BY13: 3 | BZ13: 12 | CA13: 11 | CB13: 13 | CC13: 9 | CD13: 39 | CE13: 0 | CF13: 133 | CG13: 83 | CH13: 593 | CI13: 60 | CK13: 45 | CL13: 147 | CM13: 557 | CN13: 610 | CO13: 245 | CP13: 442 | CQ13: 1065 | CR13: 573 | CT13: 256 | CU13: 422 | CV13: 1439
B14: 01 | C14: 7 | D14: 5680 | E14: C.S. AMBAR | F14: 1729 | H14: 834 | I14: 895 | K14: 15 | L14: 12 | M14: 13 | N14: 12 | O14: 9 | P14: 8 | Q14: 13 | R14: 12 | S14: 12 | T14: 10 | U14: 12 | V14: 8 | W14: 17 | X14: 16 | Y14: 16 | Z14: 17 | AA14: 17 | AB14: 17 | AC14: 15 | AD14: 19 | AE14: 17 | AF14: 16 | AG14: 16 | AH14: 17 | AI14: 14 | AJ14: 16 | AK14: 16 | AL14: 14 | AM14: 14 | AN14: 17 | AO14: 10 | AP14: 10 | AQ14: 10 | AR14: 9 | AS14: 10 | AT14: 7 | AU14: 8 | AV14: 8 | AW14: 9 | AX14: 15 | AY14: 58 | AZ14: 59 | BA14: 49 | BB14: 58 | BC14: 49 | BD14: 56 | BE14: 54 | BF14: 57 | BG14: 46 | BH14: 58 | BI14: 50 | BJ14: 67 | BK14: 47 | BL14: 60 | BM14: 51 | BN14: 43 | BO14: 43 | BP14: 43 | BQ14: 42 | BR14: 46 | BS14: 31 | BT14: 34 | BU14: 19 | BV14: 25 | BW14: 32 | BX14: 29 | BY14: 2 | BZ14: 7 | CA14: 7 | CB14: 8 | CC14: 5 | CD14: 23 | CF14: 80 | CG14: 49 | CH14: 355 | CI14: 36 | CK14: 27 | CL14: 89 | CM14: 336 | CN14: 367 | CO14: 147 | CP14: 264 | CQ14: 638 | CR14: 344 | CT14: 154 | CU14: 253 | CV14: 862
B15: 01 | C15: 8 | D15: 5681 | E15: P.S. AYNACA | F15: 1153 | H15: 553 | I15: 600 | K15: 10 | L15: 8 | M15: 8 | N15: 8 | O15: 6 | P15: 6 | Q15: 8 | R15: 8 | S15: 8 | T15: 6 | U15: 8 | V15: 5 | W15: 11 | X15: 11 | Y15: 10 | Z15: 12 | AA15: 12 | AB15: 11 | AC15: 10 | AD15: 12 | AE15: 11 | AF15: 11 | AG15: 10 | AH15: 11 | AI15: 10 | AJ15: 11 | AK15: 10 | AL15: 9 | AM15: 9 | AN15: 11 | AO15: 7 | AP15: 7 | AQ15: 7 | AR15: 6 | AS15: 6 | AT15: 5 | AU15: 6 | AV15: 6 | AW15: 6 | AX15: 10 | AY15: 39 | AZ15: 40 | BA15: 33 | BB15: 38 | BC15: 33 | BD15: 38 | BE15: 36 | BF15: 38 | BG15: 30 | BH15: 39 | BI15: 34 | BJ15: 45 | BK15: 31 | BL15: 40 | BM15: 34 | BN15: 29 | BO15: 28 | BP15: 29 | BQ15: 28 | BR15: 31 | BS15: 20 | BT15: 23 | BU15: 13 | BV15: 16 | BW15: 21 | BX15: 20 | BY15: 1 | BZ15: 5 | CA15: 4 | CB15: 5 | CC15: 4 | CD15: 16 | CF15: 53 | CG15: 34 | CH15: 238 | CI15: 24 | CK15: 18 | CL15: 58 | CM15: 221 | CN15: 243 | CO15: 98 | CP15: 178 | CQ15: 427 | CR15: 229 | CT15: 102 | CU15: 169 | CV15: 577
A16: 150803 | C16: 9 | D16: 150803 | E16: DISTRITO CARQUIN | F16: 7324 | H16: 3595 | I16: 3729 | K16: 49 | L16: 59 | M16: 42 | N16: 52 | O16: 56 | P16: 45 | Q16: 46 | R16: 64 | S16: 52 | T16: 48 | U16: 53 | V16: 46 | W16: 41 | X16: 46 | Y16: 47 | Z16: 40 | AA16: 49 | AB16: 38 | AC16: 39 | AD16: 50 | AE16: 41 | AF16: 51 | AG16: 51 | AH16: 41 | AI16: 50 | AJ16: 44 | AK16: 46 | AL16: 47 | AM16: 53 | AN16: 54 | AO16: 39 | AP16: 43 | AQ16: 44 | AR16: 37 | AS16: 45 | AT16: 37 | AU16: 37 | AV16: 46 | AW16: 44 | AX16: 70 | AY16: 282 | AZ16: 313 | BA16: 343 | BB16: 295 | BC16: 294 | BD16: 324 | BE16: 294 | BF16: 265 | BG16: 312 | BH16: 291 | BI16: 231 | BJ16: 225 | BK16: 189 | BL16: 262 | BM16: 208 | BN16: 181 | BO16: 125 | BP16: 175 | BQ16: 139 | BR16: 173 | BS16: 118 | BT16: 98 | BU16: 52 | BV16: 75 | BW16: 84 | BX16: 94 | BY16: 14 | BZ16: 29 | CA16: 32 | CB16: 20 | CC16: 27 | CD16: 129 | CE16: 0 | CF16: 237 | CG16: 233 | CH16: 1713 | CI16: 174 | CK16: 108 | CL16: 405 | CM16: 1146 | CN16: 1172 | CO16: 539 | CP16: 1430 | CQ16: 3076 | CR16: 1133 | CT16: 449 | CU16: 920 | CV16: 4309
B17: 02 | C17: 10 | D17: 5664 | E17: P.S. CARQUIN | F17: 7324 | H17: 3595 | I17: 3729 | K17: 49 | L17: 59 | M17: 42 | N17: 52 | O17: 56 | P17: 45 | Q17: 46 | R17: 64 | S17: 52 | T17: 48 | U17: 53 | V17: 46 | W17: 41 | X17: 46 | Y17: 47 | Z17: 40 | AA17: 49 | AB17: 38 | AC17: 39 | AD17: 50 | AE17: 41 | AF17: 51 | AG17: 51 | AH17: 41 | AI17: 50 | AJ17: 44 | AK17: 46 | AL17: 47 | AM17: 53 | AN17: 54 | AO17: 39 | AP17: 43 | AQ17: 44 | AR17: 37 | AS17: 45 | AT17: 37 | AU17: 37 | AV17: 46 | AW17: 44 | AX17: 70 | AY17: 282 | AZ17: 313 | BA17: 343 | BB17: 295 | BC17: 294 | BD17: 324 | BE17: 294 | BF17: 265 | BG17: 312 | BH17: 291 | BI17: 231 | BJ17: 225 | BK17: 189 | BL17: 262 | BM17: 208 | BN17: 181 | BO17: 125 | BP17: 175 | BQ17: 139 | BR17: 173 | BS17: 118 | BT17: 98 | BU17: 52 | BV17: 75 | BW17: 84 | BX17: 94 | BY17: 14 | BZ17: 29 | CA17: 32 | CB17: 20 | CC17: 27 | CD17: 129 | CF17: 237 | CG17: 233 | CH17: 1713 | CI17: 174 | CK17: 108 | CL17: 405 | CM17: 1146 | CN17: 1172 | CO17: 539 | CP17: 1430 | CQ17: 3076 | CR17: 1133 | CT17: 449 | CU17: 920 | CV17: 4309
A18: 150804 | C18: 11 | D18: 150804 | E18: DISTRITO CHECRAS | F18: 1949 | H18: 952 | I18: 997 | K18: 5 | L18: 4 | M18: 2 | N18: 7 | O18: 4 | P18: 0 | Q18: 5 | R18: 5 | S18: 2 | T18: 1 | U18: 8 | V18: 2 | W18: 9 | X18: 11 | Y18: 12 | Z18: 10 | AA18: 11 | AB18: 11 | AC18: 13 | AD18: 11 | AE18: 15 | AF18: 12 | AG18: 14 | AH18: 14 | AI18: 16 | AJ18: 13 | AK18: 15 | AL18: 12 | AM18: 10 | AN18: 17 | AO18: 10 | AP18: 11 | AQ18: 8 | AR18: 9 | AS18: 8 | AT18: 7 | AU18: 7 | AV18: 7 | AW18: 4 | AX18: 11 | AY18: 29 | AZ18: 33 | BA18: 45 | BB18: 46 | BC18: 39 | BD18: 44 | BE18: 69 | BF18: 65 | BG18: 65 | BH18: 72 | BI18: 64 | BJ18: 66 | BK18: 87 | BL18: 87 | BM18: 69 | BN18: 68 | BO18: 65 | BP18: 74 | BQ18: 65 | BR18: 65 | BS18: 79 | BT18: 97 | BU18: 47 | BV18: 49 | BW18: 51 | BX18: 56 | BY18: 0 | BZ18: 2 | CA18: 2 | CB18: 3 | CC18: 2 | CD18: 32 | CE18: 0 | CF18: 68 | CG18: 45 | CH18: 326 | CI18: 47 | CK18: 9 | CL18: 26 | CM18: 188 | CN18: 289 | CO18: 136 | CP18: 182 | CQ18: 795 | CR18: 648 | CT18: 98 | CU18: 220 | CV18: 948
B19: 05 | C19: 12 | D19: 5663 | E19: P.S. PUÑUN | F19: 1949 | H19: 952 | I19: 997 | K19: 5 | L19: 4 | M19: 2 | N19: 7 | O19: 4 | P19: 0 | Q19: 5 | R19: 5 | S19: 2 | T19: 1 | U19: 8 | V19: 2 | W19: 9 | X19: 11 | Y19: 12 | Z19: 10 | AA19: 11 | AB19: 11 | AC19: 13 | AD19: 11 | AE19: 15 | AF19: 12 | AG19: 14 | AH19: 14 | AI19: 16 | AJ19: 13 | AK19: 15 | AL19: 12 | AM19: 10 | AN19: 17 | AO19: 10 | AP19: 11 | AQ19: 8 | AR19: 9 | AS19: 8 | AT19: 7 | AU19: 7 | AV19: 7 | AW19: 4 | AX19: 11 | AY19: 29 | AZ19: 33 | BA19: 45 | BB19: 46 | BC19: 39 | BD19: 44 | BE19: 69 | BF19: 65 | BG19: 65 | BH19: 72 | BI19: 64 | BJ19: 66 | BK19: 87 | BL19: 87 | BM19: 69 | BN19: 68 | BO19: 65 | BP19: 74 | BQ19: 65 | BR19: 65 | BS19: 79 | BT19: 97 | BU19: 47 | BV19: 49 | BW19: 51 | BX19: 56 | BY19: 0 | BZ19: 2 | CA19: 2 | CB19: 3 | CC19: 2 | CD19: 32 | CF19: 68 | CG19: 45 | CH19: 326 | CI19: 47 | CK19: 9 | CL19: 26 | CM19: 188 | CN19: 289 | CO19: 136 | CP19: 182 | CQ19: 795 | CR19: 648 | CT19: 98 | CU19: 220 | CV19: 948
A20: 150805 | C20: 13 | D20: 150805 | E20: DISTRITO HUALMAY | F20: 31314 | H20: 15514 | I20: 15800 | K20: 201 | L20: 206 | M20: 229 | N20: 244 | O20: 219 | P20: 202 | Q20: 224 | R20: 199 | S20: 214 | T20: 223 | U20: 297 | V20: 274 | W20: 178 | X20: 185 | Y20: 191 | Z20: 183 | AA20: 174 | AB20: 212 | AC20: 188 | AD20: 218 | AE20: 239 | AF20: 195 | AG20: 248 | AH20: 203 | AI20: 241 | AJ20: 223 | AK20: 259 | AL20: 203 | AM20: 241 | AN20: 273 | AO20: 189 | AP20: 197 | AQ20: 171 | AR20: 208 | AS20: 182 | AT20: 190 | AU20: 207 | AV20: 162 | AW20: 189 | AX20: 307 | AY20: 1109 | AZ20: 1183 | BA20: 1230 | BB20: 1055 | BC20: 1180 | BD20: 984 | BE20: 1274 | BF20: 1055 | BG20: 1104 | BH20: 1257 | BI20: 897 | BJ20: 1064 | BK20: 967 | BL20: 890 | BM20: 926 | BN20: 873 | BO20: 613 | BP20: 818 | BQ20: 629 | BR20: 744 | BS20: 541 | BT20: 482 | BU20: 327 | BV20: 450 | BW20: 436 | BX20: 638 | BY20: 43 | BZ20: 91 | CA20: 104 | CB20: 110 | CC20: 102 | CD20: 514 | CE20: 0 | CF20: 1097 | CG20: 1064 | CH20: 6598 | CI20: 674 | CK20: 407 | CL20: 1754 | CM20: 5146 | CN20: 5562 | CO20: 2577 | CP20: 5442 | CQ20: 12471 | CR20: 5678 | CT20: 2100 | CU20: 4327 | CV20: 17048
B21: 02 | C21: 14 | D21: 5665 | E21: C.S. HUALMAY | F21: 15657 | H21: 7757 | I21: 7900 | K21: 101 | L21: 103 | M21: 115 | N21: 122 | O21: 109 | P21: 101 | Q21: 112 | R21: 99 | S21: 107 | T21: 112 | U21: 148 | V21: 137 | W21: 89 | X21: 92 | Y21: 95 | Z21: 92 | AA21: 87 | AB21: 106 | AC21: 94 | AD21: 109 | AE21: 119 | AF21: 98 | AG21: 124 | AH21: 102 | AI21: 121 | AJ21: 112 | AK21: 129 | AL21: 102 | AM21: 121 | AN21: 136 | AO21: 95 | AP21: 98 | AQ21: 85 | AR21: 104 | AS21: 91 | AT21: 94 | AU21: 104 | AV21: 81 | AW21: 95 | AX21: 154 | AY21: 555 | AZ21: 592 | BA21: 614 | BB21: 528 | BC21: 590 | BD21: 492 | BE21: 637 | BF21: 528 | BG21: 552 | BH21: 628 | BI21: 450 | BJ21: 532 | BK21: 481 | BL21: 444 | BM21: 463 | BN21: 436 | BO21: 306 | BP21: 409 | BQ21: 315 | BR21: 372 | BS21: 271 | BT21: 241 | BU21: 164 | BV21: 225 | BW21: 218 | BX21: 319 | BY21: 22 | BZ21: 46 | CA21: 52 | CB21: 55 | CC21: 51 | CD21: 257 | CF21: 550 | CG21: 531 | CH21: 3300 | CI21: 337 | CK21: 204 | CL21: 877 | CM21: 2573 | CN21: 2780 | CO21: 1288 | CP21: 2723 | CQ21: 6233 | CR21: 2840 | CT21: 1049 | CU21: 2165 | CV21: 8522
B22: 02 | C22: 15 | D22: 5666 | E22: P.S. DGO. MANDAMIENTO | F22: 10960 | H22: 5430 | I22: 5530 | K22: 70 | L22: 72 | M22: 80 | N22: 85 | O22: 77 | P22: 71 | Q22: 78 | R22: 70 | S22: 75 | T22: 78 | U22: 104 | V22: 96 | W22: 62 | X22: 65 | Y22: 67 | Z22: 64 | AA22: 61 | AB22: 74 | AC22: 66 | AD22: 76 | AE22: 84 | AF22: 68 | AG22: 87 | AH22: 71 | AI22: 84 | AJ22: 78 | AK22: 91 | AL22: 71 | AM22: 84 | AN22: 96 | AO22: 66 | AP22: 69 | AQ22: 60 | AR22: 73 | AS22: 64 | AT22: 67 | AU22: 72 | AV22: 57 | AW22: 66 | AX22: 107 | AY22: 388 | AZ22: 414 | BA22: 431 | BB22: 369 | BC22: 413 | BD22: 344 | BE22: 446 | BF22: 369 | BG22: 386 | BH22: 440 | BI22: 314 | BJ22: 372 | BK22: 339 | BL22: 312 | BM22: 324 | BN22: 306 | BO22: 215 | BP22: 286 | BQ22: 220 | BR22: 260 | BS22: 189 | BT22: 169 | BU22: 114 | BV22: 158 | BW22: 153 | BX22: 223 | BY22: 15 | BZ22: 32 | CA22: 36 | CB22: 38 | CC22: 36 | CD22: 180 | CF22: 384 | CG22: 373 | CH22: 2308 | CI22: 236 | CK22: 142 | CL22: 614 | CM22: 1801 | CN22: 1948 | CO22: 903 | CP22: 1904 | CQ22: 4365 | CR22: 1987 | CT22: 735 | CU22: 1515 | CV22: 5967
B23: 02 | C23: 16 | D23: 5667 | E23: P.S. CAMPO ALEGRE | F23: 4697 | H23: 2327 | I23: 2370 | K23: 30 | L23: 31 | M23: 34 | N23: 37 | O23: 33 | P23: 30 | Q23: 34 | R23: 30 | S23: 32 | T23: 33 | U23: 45 | V23: 41 | W23: 27 | X23: 28 | Y23: 29 | Z23: 27 | AA23: 26 | AB23: 32 | AC23: 28 | AD23: 33 | AE23: 36 | AF23: 29 | AG23: 37 | AH23: 30 | AI23: 36 | AJ23: 33 | AK23: 39 | AL23: 30 | AM23: 36 | AN23: 41 | AO23: 28 | AP23: 30 | AQ23: 26 | AR23: 31 | AS23: 27 | AT23: 29 | AU23: 31 | AV23: 24 | AW23: 28 | AX23: 46 | AY23: 166 | AZ23: 177 | BA23: 185 | BB23: 158 | BC23: 177 | BD23: 148 | BE23: 191 | BF23: 158 | BG23: 166 | BH23: 189 | BI23: 133 | BJ23: 160 | BK23: 147 | BL23: 134 | BM23: 139 | BN23: 131 | BO23: 92 | BP23: 123 | BQ23: 94 | BR23: 112 | BS23: 81 | BT23: 72 | BU23: 49 | BV23: 67 | BW23: 65 | BX23: 96 | BY23: 6 | BZ23: 13 | CA23: 16 | CB23: 17 | CC23: 15 | CD23: 77 | CF23: 163 | CG23: 160 | CH23: 990 | CI23: 101 | CK23: 61 | CL23: 263 | CM23: 772 | CN23: 834 | CO23: 386 | CP23: 815 | CQ23: 1873 | CR23: 851 | CT23: 316 | CU23: 647 | CV23: 2559
A24: 150806 | C24: 17 | D24: 150806 | E24: DISTRITO HUAURA | F24: 37705 | H24: 18531 | I24: 19174 | K24: 311 | L24: 291 | M24: 322 | N24: 286 | O24: 247 | P24: 239 | Q24: 247 | R24: 244 | S24: 284 | T24: 260 | U24: 252 | V24: 181 | W24: 224 | X24: 253 | Y24: 227 | Z24: 266 | AA24: 260 | AB24: 251 | AC24: 269 | AD24: 274 | AE24: 316 | AF24: 259 | AG24: 336 | AH24: 265 | AI24: 347 | AJ24: 273 | AK24: 310 | AL24: 323 | AM24: 327 | AN24: 395 | AO24: 275 | AP24: 286 | AQ24: 284 | AR24: 284 | AS24: 282 | AT24: 283 | AU24: 288 | AV24: 266 | AW24: 298 | AX24: 416 | AY24: 1412 | AZ24: 1633 | BA24: 1334 | BB24: 1641 | BC24: 1495 | BD24: 1245 | BE24: 1434 | BF24: 1340 | BG24: 1338 | BH24: 1408 | BI24: 1264 | BJ24: 1178 | BK24: 1083 | BL24: 1039 | BM24: 873 | BN24: 967 | BO24: 711 | BP24: 744 | BQ24: 577 | BR24: 800 | BS24: 564 | BT24: 665 | BU24: 315 | BV24: 432 | BW24: 425 | BX24: 487 | BY24: 63 | BZ24: 162 | CA24: 134 | CB24: 149 | CC24: 157 | CD24: 655 | CE24: 0 | CF24: 1515 | CG24: 1535 | CH24: 8445 | CI24: 859 | CK24: 602 | CL24: 2129 | CM24: 6364 | CN24: 7302 | CO24: 3669 | CP24: 7288 | CQ24: 14664 | CR24: 5720 | CT24: 2457 | CU24: 6113 | CV24: 20684
B25: 01 | C25: 18 | D25: 5682 | E25: C.S. HUAURA | F25: 18853 | H25: 9266 | I25: 9587 | K25: 155 | L25: 146 | M25: 161 | N25: 143 | O25: 124 | P25: 119 | Q25: 124 | R25: 122 | S25: 141 | T25: 130 | U25: 125 | V25: 90 | W25: 112 | X25: 126 | Y25: 114 | Z25: 133 | AA25: 130 | AB25: 124 | AC25: 134 | AD25: 137 | AE25: 158 | AF25: 130 | AG25: 168 | AH25: 132 | AI25: 174 | AJ25: 136 | AK25: 155 | AL25: 161 | AM25: 164 | AN25: 197 | AO25: 137 | AP25: 143 | AQ25: 141 | AR25: 142 | AS25: 141 | AT25: 142 | AU25: 144 | AV25: 133 | AW25: 149 | AX25: 208 | AY25: 706 | AZ25: 817 | BA25: 667 | BB25: 821 | BC25: 747 | BD25: 623 | BE25: 718 | BF25: 670 | BG25: 669 | BH25: 704 | BI25: 632 | BJ25: 589 | BK25: 542 | BL25: 520 | BM25: 436 | BN25: 484 | BO25: 356 | BP25: 372 | BQ25: 289 | BR25: 400 | BS25: 282 | BT25: 333 | BU25: 158 | BV25: 216 | BW25: 213 | BX25: 244 | BY25: 31 | BZ25: 81 | CA25: 67 | CB25: 74 | CC25: 79 | CD25: 327 | CF25: 756 | CG25: 768 | CH25: 4224 | CI25: 430 | CK25: 301 | CL25: 1064 | CM25: 3178 | CN25: 3646 | CO25: 1833 | CP25: 3645 | CQ25: 7334 | CR25: 2863 | CT25: 1225 | CU25: 3055 | CV25: 10345
B26: 01 | C26: 19 | D26: 5686 | E26: C.S. SOCORRO | F26: 12442 | H26: 6115 | I26: 6327 | K26: 103 | L26: 96 | M26: 106 | N26: 94 | O26: 82 | P26: 79 | Q26: 82 | R26: 81 | S26: 94 | T26: 86 | U26: 83 | V26: 60 | W26: 74 | X26: 83 | Y26: 75 | Z26: 87 | AA26: 86 | AB26: 83 | AC26: 89 | AD26: 90 | AE26: 104 | AF26: 85 | AG26: 111 | AH26: 87 | AI26: 115 | AJ26: 90 | AK26: 102 | AL26: 107 | AM26: 108 | AN26: 130 | AO26: 91 | AP26: 94 | AQ26: 94 | AR26: 94 | AS26: 93 | AT26: 93 | AU26: 95 | AV26: 88 | AW26: 98 | AX26: 137 | AY26: 466 | AZ26: 539 | BA26: 440 | BB26: 542 | BC26: 493 | BD26: 411 | BE26: 473 | BF26: 442 | BG26: 442 | BH26: 465 | BI26: 417 | BJ26: 389 | BK26: 357 | BL26: 343 | BM26: 288 | BN26: 319 | BO26: 234 | BP26: 246 | BQ26: 190 | BR26: 264 | BS26: 186 | BT26: 219 | BU26: 104 | BV26: 143 | BW26: 140 | BX26: 161 | BY26: 21 | BZ26: 53 | CA26: 44 | CB26: 50 | CC26: 52 | CD26: 216 | CF26: 499 | CG26: 506 | CH26: 2788 | CI26: 283 | CK26: 199 | CL26: 704 | CM26: 2100 | CN26: 2408 | CO26: 1211 | CP26: 2405 | CQ26: 4839 | CR26: 1887 | CT26: 810 | CU26: 2016 | CV26: 6826
B27: 01 | C27: 20 | D27: 5683 | E27: P.S. HUMAYA | F27: 3394 | H27: 1668 | I27: 1726 | K27: 28 | L27: 26 | M27: 29 | N27: 26 | O27: 22 | P27: 22 | Q27: 22 | R27: 22 | S27: 26 | T27: 23 | U27: 23 | V27: 16 | W27: 20 | X27: 23 | Y27: 20 | Z27: 24 | AA27: 23 | AB27: 23 | AC27: 24 | AD27: 25 | AE27: 29 | AF27: 23 | AG27: 30 | AH27: 24 | AI27: 31 | AJ27: 25 | AK27: 28 | AL27: 29 | AM27: 29 | AN27: 36 | AO27: 25 | AP27: 26 | AQ27: 26 | AR27: 25 | AS27: 25 | AT27: 25 | AU27: 26 | AV27: 23 | AW27: 27 | AX27: 37 | AY27: 127 | AZ27: 147 | BA27: 120 | BB27: 148 | BC27: 135 | BD27: 112 | BE27: 129 | BF27: 121 | BG27: 120 | BH27: 127 | BI27: 114 | BJ27: 106 | BK27: 97 | BL27: 94 | BM27: 79 | BN27: 86 | BO27: 64 | BP27: 67 | BQ27: 52 | BR27: 72 | BS27: 51 | BT27: 60 | BU27: 29 | BV27: 39 | BW27: 38 | BX27: 44 | BY27: 6 | BZ27: 15 | CA27: 13 | CB27: 13 | CC27: 13 | CD27: 59 | CF27: 137 | CG27: 136 | CH27: 761 | CI27: 77 | CK27: 54 | CL27: 192 | CM27: 573 | CN27: 657 | CO27: 330 | CP27: 655 | CQ27: 1320 | CR27: 516 | CT27: 221 | CU27: 549 | CV27: 1862
B28: 01 | C28: 21 | D28: 5684 | E28: P.S. VILCAHUAURA | F28: 2639 | H28: 1297 | I28: 1342 | K28: 22 | L28: 20 | M28: 23 | N28: 20 | O28: 17 | P28: 17 | Q28: 17 | R28: 17 | S28: 20 | T28: 18 | U28: 18 | V28: 13 | W28: 16 | X28: 18 | Y28: 16 | Z28: 19 | AA28: 18 | AB28: 18 | AC28: 19 | AD28: 19 | AE28: 22 | AF28: 18 | AG28: 24 | AH28: 19 | AI28: 24 | AJ28: 19 | AK28: 22 | AL28: 23 | AM28: 23 | AN28: 28 | AO28: 19 | AP28: 20 | AQ28: 20 | AR28: 20 | AS28: 20 | AT28: 20 | AU28: 20 | AV28: 19 | AW28: 21 | AX28: 29 | AY28: 99 | AZ28: 114 | BA28: 93 | BB28: 115 | BC28: 105 | BD28: 87 | BE28: 100 | BF28: 94 | BG28: 94 | BH28: 98 | BI28: 88 | BJ28: 82 | BK28: 76 | BL28: 72 | BM28: 61 | BN28: 68 | BO28: 50 | BP28: 52 | BQ28: 40 | BR28: 56 | BS28: 39 | BT28: 46 | BU28: 21 | BV28: 30 | BW28: 30 | BX28: 34 | BY28: 4 | BZ28: 11 | CA28: 9 | CB28: 11 | CC28: 11 | CD28: 46 | CF28: 107 | CG28: 108 | CH28: 590 | CI28: 60 | CK28: 42 | CL28: 149 | CM28: 448 | CN28: 515 | CO28: 258 | CP28: 510 | CQ28: 1025 | CR28: 398 | CT28: 174 | CU28: 430 | CV28: 1446
B29: 01 | C29: 22 | D29: 5685 | E29: P.S. PEÑICO | F29: 377 | H29: 185 | I29: 192 | K29: 3 | L29: 3 | M29: 3 | N29: 3 | O29: 2 | P29: 2 | Q29: 2 | R29: 2 | S29: 3 | T29: 3 | U29: 3 | V29: 2 | W29: 2 | X29: 3 | Y29: 2 | Z29: 3 | AA29: 3 | AB29: 3 | AC29: 3 | AD29: 3 | AE29: 3 | AF29: 3 | AG29: 3 | AH29: 3 | AI29: 3 | AJ29: 3 | AK29: 3 | AL29: 3 | AM29: 3 | AN29: 4 | AO29: 3 | AP29: 3 | AQ29: 3 | AR29: 3 | AS29: 3 | AT29: 3 | AU29: 3 | AV29: 3 | AW29: 3 | AX29: 5 | AY29: 14 | AZ29: 16 | BA29: 14 | BB29: 15 | BC29: 15 | BD29: 12 | BE29: 14 | BF29: 13 | BG29: 13 | BH29: 14 | BI29: 13 | BJ29: 12 | BK29: 11 | BL29: 10 | BM29: 9 | BN29: 10 | BO29: 7 | BP29: 7 | BQ29: 6 | BR29: 8 | BS29: 6 | BT29: 7 | BU29: 3 | BV29: 4 | BW29: 4 | BX29: 4 | BY29: 1 | BZ29: 2 | CA29: 1 | CB29: 1 | CC29: 2 | CD29: 7 | CF29: 16 | CG29: 17 | CH29: 82 | CI29: 9 | CK29: 6 | CL29: 20 | CM29: 65 | CN29: 76 | CO29: 37 | CP29: 73 | CQ29: 146 | CR29: 56 | CT29: 27 | CU29: 63 | CV29: 205
A30: 150807 | C30: 23 | D30: 150807 | E30: DISTRITO LEONCIO PRADO | F30: 2094 | H30: 1016 | I30: 1078 | K30: 12 | L30: 13 | M30: 16 | N30: 10 | O30: 18 | P30: 13 | Q30: 15 | R30: 14 | S30: 13 | T30: 19 | U30: 14 | V30: 13 | W30: 17 | X30: 19 | Y30: 16 | Z30: 20 | AA30: 17 | AB30: 17 | AC30: 15 | AD30: 18 | AE30: 17 | AF30: 13 | AG30: 14 | AH30: 13 | AI30: 12 | AJ30: 12 | AK30: 12 | AL30: 12 | AM30: 12 | AN30: 18 | AO30: 11 | AP30: 11 | AQ30: 13 | AR30: 10 | AS30: 10 | AT30: 11 | AU30: 11 | AV30: 12 | AW30: 11 | AX30: 17 | AY30: 67 | AZ30: 85 | BA30: 84 | BB30: 73 | BC30: 63 | BD30: 65 | BE30: 65 | BF30: 72 | BG30: 68 | BH30: 63 | BI30: 65 | BJ30: 81 | BK30: 67 | BL30: 79 | BM30: 53 | BN30: 48 | BO30: 47 | BP30: 53 | BQ30: 46 | BR30: 49 | BS30: 47 | BT30: 40 | BU30: 27 | BV30: 34 | BW30: 41 | BX30: 51 | BY30: 2 | BZ30: 7 | CA30: 6 | CB30: 5 | CC30: 7 | CD30: 36 | CE30: 0 | CF30: 68 | CG30: 61 | CH30: 439 | CI30: 47 | CK30: 25 | CL30: 118 | CM30: 366 | CN30: 367 | CO30: 144 | CP30: 360 | CQ30: 789 | CR30: 435 | CT30: 166 | CU30: 252 | CV30: 1098
B31: 03 | C31: 24 | D31: 5778 | E31: P.S. AUQUIMARCA | F31: 105 | H31: 51 | I31: 54 | K31: 1 | L31: 0 | M31: 1 | N31: 0 | O31: 1 | P31: 0 | Q31: 1 | R31: 0 | S31: 0 | T31: 1 | U31: 0 | V31: 1 | W31: 1 | X31: 1 | Y31: 1 | Z31: 1 | AA31: 1 | AB31: 1 | AC31: 1 | AD31: 1 | AE31: 1 | AF31: 0 | AG31: 0 | AH31: 0 | AI31: 1 | AJ31: 1 | AK31: 1 | AL31: 1 | AM31: 1 | AN31: 1 | AO31: 1 | AP31: 1 | AQ31: 1 | AR31: 1 | AS31: 1 | AT31: 1 | AU31: 1 | AV31: 1 | AW31: 1 | AX31: 1 | AY31: 3 | AZ31: 4 | BA31: 4 | BB31: 4 | BC31: 3 | BD31: 3 | BE31: 3 | BF31: 4 | BG31: 3 | BH31: 3 | BI31: 3 | BJ31: 4 | BK31: 3 | BL31: 4 | BM31: 3 | BN31: 2 | BO31: 2 | BP31: 3 | BQ31: 2 | BR31: 2 | BS31: 2 | BT31: 2 | BU31: 1 | BV31: 2 | BW31: 2 | BX31: 3 | BY31: 0 | BZ31: 1 | CA31: 0 | CB31: 0 | CC31: 0 | CD31: 2 | CF31: 3 | CG31: 5 | CH31: 22 | CI31: 2 | CK31: 1 | CL31: 4 | CM31: 15 | CN31: 22 | CO31: 12 | CP31: 19 | CQ31: 38 | CR31: 21 | CT31: 9 | CU31: 17 | CV31: 53
B32: 03 | C32: 25 | D32: 5779 | E32: P.S. PARAN | F32: 733 | H32: 356 | I32: 377 | K32: 4 | L32: 5 | M32: 6 | N32: 4 | O32: 6 | P32: 5 | Q32: 5 | R32: 5 | S32: 5 | T32: 7 | U32: 5 | V32: 4 | W32: 6 | X32: 6 | Y32: 6 | Z32: 7 | AA32: 6 | AB32: 6 | AC32: 5 | AD32: 6 | AE32: 6 | AF32: 5 | AG32: 5 | AH32: 5 | AI32: 4 | AJ32: 4 | AK32: 4 | AL32: 4 | AM32: 4 | AN32: 6 | AO32: 4 | AP32: 4 | AQ32: 4 | AR32: 3 | AS32: 3 | AT32: 4 | AU32: 4 | AV32: 4 | AW32: 4 | AX32: 6 | AY32: 24 | AZ32: 30 | BA32: 29 | BB32: 25 | BC32: 22 | BD32: 23 | BE32: 23 | BF32: 25 | BG32: 24 | BH32: 22 | BI32: 23 | BJ32: 29 | BK32: 24 | BL32: 27 | BM32: 18 | BN32: 17 | BO32: 17 | BP32: 18 | BQ32: 16 | BR32: 17 | BS32: 16 | BT32: 14 | BU32: 9 | BV32: 12 | BW32: 15 | BX32: 18 | BY32: 1 | BZ32: 2 | CA32: 2 | CB32: 2 | CC32: 3 | CD32: 13 | CF32: 24 | CG32: 21 | CH32: 154 | CI32: 17 | CK32: 9 | CL32: 43 | CM32: 130 | CN32: 126 | CO32: 48 | CP32: 126 | CQ32: 277 | CR32: 152 | CT32: 57 | CU32: 87 | CV32: 385
B33: 03 | C33: 26 | D33: 6725 | E33: P.S. SANTA CRUZ | F33: 419 | H33: 203 | I33: 216 | K33: 2 | L33: 3 | M33: 3 | N33: 2 | O33: 4 | P33: 3 | Q33: 3 | R33: 3 | S33: 3 | T33: 3 | U33: 3 | V33: 3 | W33: 3 | X33: 4 | Y33: 3 | Z33: 4 | AA33: 3 | AB33: 3 | AC33: 3 | AD33: 4 | AE33: 3 | AF33: 3 | AG33: 3 | AH33: 3 | AI33: 2 | AJ33: 2 | AK33: 2 | AL33: 2 | AM33: 2 | AN33: 4 | AO33: 2 | AP33: 2 | AQ33: 3 | AR33: 2 | AS33: 2 | AT33: 2 | AU33: 2 | AV33: 2 | AW33: 2 | AX33: 3 | AY33: 13 | AZ33: 17 | BA33: 17 | BB33: 15 | BC33: 13 | BD33: 13 | BE33: 13 | BF33: 14 | BG33: 14 | BH33: 13 | BI33: 13 | BJ33: 16 | BK33: 13 | BL33: 16 | BM33: 11 | BN33: 10 | BO33: 9 | BP33: 11 | BQ33: 10 | BR33: 10 | BS33: 10 | BT33: 8 | BU33: 6 | BV33: 6 | BW33: 8 | BX33: 10 | BY33: 0 | BZ33: 1 | CA33: 2 | CB33: 1 | CC33: 1 | CD33: 7 | CF33: 14 | CG33: 11 | CH33: 88 | CI33: 9 | CK33: 5 | CL33: 24 | CM33: 74 | CN33: 72 | CO33: 27 | CP33: 71 | CQ33: 159 | CR33: 88 | CT33: 33 | CU33: 48 | CV33: 221
B34: 03 | C34: 27 | D34: 7757 | E34: P.S. HUANANGUI | F34: 837 | H34: 406 | I34: 431 | K34: 5 | L34: 5 | M34: 6 | N34: 4 | O34: 7 | P34: 5 | Q34: 6 | R34: 6 | S34: 5 | T34: 8 | U34: 6 | V34: 5 | W34: 7 | X34: 8 | Y34: 6 | Z34: 8 | AA34: 7 | AB34: 7 | AC34: 6 | AD34: 7 | AE34: 7 | AF34: 5 | AG34: 6 | AH34: 5 | AI34: 5 | AJ34: 5 | AK34: 5 | AL34: 5 | AM34: 5 | AN34: 7 | AO34: 4 | AP34: 4 | AQ34: 5 | AR34: 4 | AS34: 4 | AT34: 4 | AU34: 4 | AV34: 5 | AW34: 4 | AX34: 7 | AY34: 27 | AZ34: 34 | BA34: 34 | BB34: 29 | BC34: 25 | BD34: 26 | BE34: 26 | BF34: 29 | BG34: 27 | BH34: 25 | BI34: 26 | BJ34: 32 | BK34: 27 | BL34: 32 | BM34: 21 | BN34: 19 | BO34: 19 | BP34: 21 | BQ34: 18 | BR34: 20 | BS34: 19 | BT34: 16 | BU34: 11 | BV34: 14 | BW34: 16 | BX34: 20 | BY34: 1 | BZ34: 3 | CA34: 2 | CB34: 2 | CC34: 3 | CD34: 14 | CF34: 27 | CG34: 24 | CH34: 175 | CI34: 19 | CK34: 10 | CL34: 47 | CM34: 147 | CN34: 147 | CO34: 57 | CP34: 144 | CQ34: 315 | CR34: 174 | CT34: 67 | CU34: 100 | CV34: 439
A35: 150808 | C35: 28 | D35: 150808 | E35: DISTRITO PACCHO | F35: 2444 | H35: 1202 | I35: 1242 | K35: 9 | L35: 4 | M35: 8 | N35: 16 | O35: 12 | P35: 11 | Q35: 7 | R35: 7 | S35: 11 | T35: 11 | U35: 16 | V35: 8 | W35: 15 | X35: 13 | Y35: 14 | Z35: 14 | AA35: 14 | AB35: 16 | AC35: 16 | AD35: 15 | AE35: 16 | AF35: 16 | AG35: 16 | AH35: 16 | AI35: 17 | AJ35: 15 | AK35: 15 | AL35: 15 | AM35: 16 | AN35: 16 | AO35: 11 | AP35: 9 | AQ35: 9 | AR35: 8 | AS35: 8 | AT35: 8 | AU35: 8 | AV35: 8 | AW35: 8 | AX35: 14 | AY35: 45 | AZ35: 71 | BA35: 65 | BB35: 58 | BC35: 71 | BD35: 67 | BE35: 80 | BF35: 75 | BG35: 95 | BH35: 78 | BI35: 73 | BJ35: 78 | BK35: 78 | BL35: 74 | BM35: 79 | BN35: 78 | BO35: 86 | BP35: 106 | BQ35: 95 | BR35: 104 | BS35: 82 | BT35: 85 | BU35: 52 | BV35: 57 | BW35: 55 | BX35: 71 | BY35: 2 | BZ35: 6 | CA35: 1 | CB35: 3 | CC35: 3 | CD35: 30 | CE35: 0 | CF35: 78 | CG35: 47 | CH35: 427 | CI35: 47 | CK35: 13 | CL35: 83 | CM35: 301 | CN35: 352 | CO35: 147 | CP35: 277 | CQ35: 926 | CR35: 793 | CT35: 141 | CU35: 249 | CV35: 1165
B36: 05 | C36: 29 | D36: 5650 | E36: P.S. PACCHO | F36: 978 | H36: 481 | I36: 497 | K36: 4 | L36: 1 | M36: 4 | N36: 6 | O36: 5 | P36: 4 | Q36: 3 | R36: 3 | S36: 4 | T36: 4 | U36: 6 | V36: 4 | W36: 6 | X36: 5 | Y36: 6 | Z36: 6 | AA36: 6 | AB36: 6 | AC36: 6 | AD36: 6 | AE36: 6 | AF36: 6 | AG36: 6 | AH36: 6 | AI36: 7 | AJ36: 6 | AK36: 6 | AL36: 6 | AM36: 6 | AN36: 6 | AO36: 4 | AP36: 4 | AQ36: 4 | AR36: 4 | AS36: 4 | AT36: 4 | AU36: 3 | AV36: 3 | AW36: 3 | AX36: 6 | AY36: 18 | AZ36: 28 | BA36: 26 | BB36: 23 | BC36: 28 | BD36: 27 | BE36: 32 | BF36: 30 | BG36: 38 | BH36: 31 | BI36: 29 | BJ36: 32 | BK36: 31 | BL36: 30 | BM36: 32 | BN36: 31 | BO36: 34 | BP36: 42 | BQ36: 38 | BR36: 42 | BS36: 33 | BT36: 34 | BU36: 21 | BV36: 23 | BW36: 22 | BX36: 28 | BY36: 1 | BZ36: 2 | CA36: 0 | CB36: 2 | CC36: 1 | CD36: 12 | CF36: 30 | CG36: 21 | CH36: 171 | CI36: 19 | CK36: 5 | CL36: 33 | CM36: 119 | CN36: 142 | CO36: 61 | CP36: 110 | CQ36: 371 | CR36: 317 | CT36: 57 | CU36: 100 | CV36: 466
B37: 05 | C37: 30 | D37: 5651 | E37: P.S. LACSANGA | F37: 734 | H37: 361 | I37: 373 | K37: 3 | L37: 1 | M37: 2 | N37: 5 | O37: 3 | P37: 3 | Q37: 2 | R37: 2 | S37: 3 | T37: 3 | U37: 5 | V37: 2 | W37: 5 | X37: 4 | Y37: 4 | Z37: 4 | AA37: 4 | AB37: 5 | AC37: 5 | AD37: 5 | AE37: 5 | AF37: 5 | AG37: 5 | AH37: 5 | AI37: 5 | AJ37: 5 | AK37: 5 | AL37: 5 | AM37: 5 | AN37: 5 | AO37: 3 | AP37: 3 | AQ37: 3 | AR37: 2 | AS37: 2 | AT37: 2 | AU37: 2 | AV37: 3 | AW37: 2 | AX37: 4 | AY37: 14 | AZ37: 21 | BA37: 20 | BB37: 18 | BC37: 21 | BD37: 20 | BE37: 24 | BF37: 23 | BG37: 29 | BH37: 23 | BI37: 22 | BJ37: 23 | BK37: 23 | BL37: 22 | BM37: 23 | BN37: 23 | BO37: 26 | BP37: 32 | BQ37: 29 | BR37: 31 | BS37: 25 | BT37: 26 | BU37: 16 | BV37: 17 | BW37: 16 | BX37: 21 | BY37: 1 | BZ37: 2 | CA37: 0 | CB37: 1 | CC37: 1 | CD37: 9 | CF37: 25 | CG37: 14 | CH37: 128 | CI37: 14 | CK37: 4 | CL37: 23 | CM37: 90 | CN37: 108 | CO37: 45 | CP37: 84 | CQ37: 276 | CR37: 239 | CT37: 43 | CU37: 76 | CV37: 349
B38: 05 | C38: 31 | D38: 5653 | E38: P.S. AYARANGA | F38: 342 | H38: 168 | I38: 174 | K38: 1 | L38: 1 | M38: 1 | N38: 2 | O38: 2 | P38: 2 | Q38: 1 | R38: 1 | S38: 2 | T38: 2 | U38: 2 | V38: 1 | W38: 2 | X38: 2 | Y38: 2 | Z38: 2 | AA38: 2 | AB38: 2 | AC38: 2 | AD38: 2 | AE38: 2 | AF38: 2 | AG38: 2 | AH38: 2 | AI38: 2 | AJ38: 2 | AK38: 2 | AL38: 2 | AM38: 2 | AN38: 2 | AO38: 2 | AP38: 1 | AQ38: 1 | AR38: 1 | AS38: 1 | AT38: 1 | AU38: 2 | AV38: 1 | AW38: 2 | AX38: 2 | AY38: 6 | AZ38: 10 | BA38: 9 | BB38: 8 | BC38: 11 | BD38: 9 | BE38: 11 | BF38: 11 | BG38: 13 | BH38: 11 | BI38: 10 | BJ38: 11 | BK38: 11 | BL38: 10 | BM38: 11 | BN38: 11 | BO38: 12 | BP38: 15 | BQ38: 13 | BR38: 15 | BS38: 11 | BT38: 12 | BU38: 7 | BV38: 8 | BW38: 8 | BX38: 10 | BY38: 0 | BZ38: 1 | CA38: 1 | CB38: 0 | CC38: 0 | CD38: 4 | CF38: 10 | CG38: 6 | CH38: 60 | CI38: 7 | CK38: 2 | CL38: 13 | CM38: 42 | CN38: 46 | CO38: 19 | CP38: 40 | CQ38: 130 | CR38: 111 | CT38: 19 | CU38: 34 | CV38: 163
B39: 05 | C39: 32 | D39: 5652 | E39: P.S. MUZGA | F39: 390 | H39: 192 | I39: 198 | K39: 1 | L39: 1 | M39: 1 | N39: 3 | O39: 2 | P39: 2 | Q39: 1 | R39: 1 | S39: 2 | T39: 2 | U39: 3 | V39: 1 | W39: 2 | X39: 2 | Y39: 2 | Z39: 2 | AA39: 2 | AB39: 3 | AC39: 3 | AD39: 2 | AE39: 3 | AF39: 3 | AG39: 3 | AH39: 3 | AI39: 3 | AJ39: 2 | AK39: 2 | AL39: 2 | AM39: 3 | AN39: 3 | AO39: 2 | AP39: 1 | AQ39: 1 | AR39: 1 | AS39: 1 | AT39: 1 | AU39: 1 | AV39: 1 | AW39: 1 | AX39: 2 | AY39: 7 | AZ39: 12 | BA39: 10 | BB39: 9 | BC39: 11 | BD39: 11 | BE39: 13 | BF39: 11 | BG39: 15 | BH39: 13 | BI39: 12 | BJ39: 12 | BK39: 13 | BL39: 12 | BM39: 13 | BN39: 13 | BO39: 14 | BP39: 17 | BQ39: 15 | BR39: 16 | BS39: 13 | BT39: 13 | BU39: 8 | BV39: 9 | BW39: 9 | BX39: 12 | BY39: 0 | BZ39: 1 | CA39: 0 | CB39: 0 | CC39: 1 | CD39: 5 | CF39: 13 | CG39: 6 | CH39: 68 | CI39: 7 | CK39: 2 | CL39: 14 | CM39: 50 | CN39: 56 | CO39: 22 | CP39: 43 | CQ39: 149 | CR39: 126 | CT39: 22 | CU39: 39 | CV39: 187
A40: 150809 | C40: 33 | D40: 150809 | E40: DISTRITO SANTA LEONOR | F40: 1571 | H40: 746 | I40: 825 | K40: 7 | L40: 5 | M40: 6 | N40: 4 | O40: 4 | P40: 5 | Q40: 4 | R40: 4 | S40: 4 | T40: 12 | U40: 7 | V40: 6 | W40: 10 | X40: 10 | Y40: 11 | Z40: 10 | AA40: 11 | AB40: 12 | AC40: 12 | AD40: 14 | AE40: 15 | AF40: 12 | AG40: 15 | AH40: 15 | AI40: 15 | AJ40: 15 | AK40: 13 | AL40: 15 | AM40: 12 | AN40: 17 | AO40: 10 | AP40: 9 | AQ40: 8 | AR40: 8 | AS40: 7 | AT40: 7 | AU40: 7 | AV40: 7 | AW40: 8 | AX40: 11 | AY40: 33 | AZ40: 52 | BA40: 36 | BB40: 33 | BC40: 35 | BD40: 39 | BE40: 53 | BF40: 47 | BG40: 53 | BH40: 55 | BI40: 55 | BJ40: 57 | BK40: 61 | BL40: 69 | BM40: 46 | BN40: 50 | BO40: 46 | BP40: 62 | BQ40: 37 | BR40: 51 | BS40: 38 | BT40: 46 | BU40: 33 | BV40: 32 | BW40: 34 | BX40: 34 | BY40: 0 | BZ40: 4 | CA40: 1 | CB40: 3 | CC40: 4 | CD40: 26 | CE40: 0 | CF40: 74 | CG40: 42 | CH40: 283 | CI40: 36 | CK40: 12 | CL40: 43 | CM40: 215 | CN40: 296 | CO40: 136 | CP40: 187 | CQ40: 620 | CR40: 413 | CT40: =SUM(U40:AD40) -> 103 | CU40: =SUM(AE40:AX40) -> 226 | CV40: =SUM(AY40:BN40) -> 774
B41: 05 | C41: 34 | D41: 5645 | E41: P.S. CHIUCHIN | F41: 1099 | H41: 522 | I41: 577 | K41: 5 | L41: 3 | M41: 4 | N41: 3 | O41: 3 | P41: 3 | Q41: 3 | R41: 3 | S41: 3 | T41: 9 | U41: 5 | V41: 4 | W41: 7 | X41: 7 | Y41: 8 | Z41: 7 | AA41: 8 | AB41: 8 | AC41: 8 | AD41: 10 | AE41: 10 | AF41: 8 | AG41: 10 | AH41: 10 | AI41: 10 | AJ41: 10 | AK41: 9 | AL41: 10 | AM41: 8 | AN41: 12 | AO41: 7 | AP41: 6 | AQ41: 6 | AR41: 6 | AS41: 5 | AT41: 5 | AU41: 5 | AV41: 5 | AW41: 6 | AX41: 8 | AY41: 23 | AZ41: 37 | BA41: 26 | BB41: 23 | BC41: 25 | BD41: 27 | BE41: 37 | BF41: 33 | BG41: 37 | BH41: 38 | BI41: 38 | BJ41: 40 | BK41: 43 | BL41: 49 | BM41: 32 | BN41: 35 | BO41: 32 | BP41: 44 | BQ41: 26 | BR41: 36 | BS41: 26 | BT41: 32 | BU41: 23 | BV41: 22 | BW41: 24 | BX41: 24 | BY41: 0 | BZ41: 3 | CA41: 1 | CB41: 2 | CC41: 2 | CD41: 18 | CF41: 50 | CG41: 30 | CH41: 198 | CI41: 26 | CK41: 8 | CL41: 31 | CM41: 149 | CN41: 204 | CO41: 94 | CP41: 133 | CQ41: 434 | CR41: 289 | CT41: 72 | CU41: 156 | CV41: 543
B42: 05 | C42: 35 | D42: 5646 | E42: P.S. PARQUIN | F42: 283 | H42: 134 | I42: 149 | K42: 1 | L42: 1 | M42: 1 | N42: 1 | O42: 1 | P42: 1 | Q42: 1 | R42: 1 | S42: 1 | T42: 2 | U42: 1 | V42: 1 | W42: 2 | X42: 2 | Y42: 2 | Z42: 2 | AA42: 2 | AB42: 3 | AC42: 2 | AD42: 2 | AE42: 3 | AF42: 3 | AG42: 3 | AH42: 3 | AI42: 3 | AJ42: 3 | AK42: 2 | AL42: 3 | AM42: 2 | AN42: 3 | AO42: 2 | AP42: 2 | AQ42: 1 | AR42: 1 | AS42: 1 | AT42: 1 | AU42: 1 | AV42: 1 | AW42: 1 | AX42: 2 | AY42: 6 | AZ42: 9 | BA42: 6 | BB42: 6 | BC42: 6 | BD42: 7 | BE42: 10 | BF42: 8 | BG42: 10 | BH42: 10 | BI42: 10 | BJ42: 10 | BK42: 11 | BL42: 12 | BM42: 8 | BN42: 9 | BO42: 8 | BP42: 11 | BQ42: 7 | BR42: 9 | BS42: 7 | BT42: 8 | BU42: 6 | BV42: 6 | BW42: 6 | BX42: 6 | BY42: 0 | BZ42: 1 | CA42: 0 | CB42: 0 | CC42: 1 | CD42: 5 | CF42: 15 | CG42: 7 | CH42: 50 | CI42: 6 | CK42: 2 | CL42: 9 | CM42: 42 | CN42: 55 | CO42: 24 | CP42: 32 | CQ42: 111 | CR42: 74 | CT42: 19 | CU42: 41 | CV42: 138
B43: 05 | C43: 36 | D43: 5647 | E43: P.S. JUCUL | F43: 189 | H43: 90 | I43: 99 | K43: 1 | L43: 1 | M43: 1 | N43: 0 | O43: 0 | P43: 1 | Q43: 0 | R43: 0 | S43: 0 | T43: 1 | U43: 1 | V43: 1 | W43: 1 | X43: 1 | Y43: 1 | Z43: 1 | AA43: 1 | AB43: 1 | AC43: 2 | AD43: 2 | AE43: 2 | AF43: 1 | AG43: 2 | AH43: 2 | AI43: 2 | AJ43: 2 | AK43: 2 | AL43: 2 | AM43: 2 | AN43: 2 | AO43: 1 | AP43: 1 | AQ43: 1 | AR43: 1 | AS43: 1 | AT43: 1 | AU43: 1 | AV43: 1 | AW43: 1 | AX43: 1 | AY43: 4 | AZ43: 6 | BA43: 4 | BB43: 4 | BC43: 4 | BD43: 5 | BE43: 6 | BF43: 6 | BG43: 6 | BH43: 7 | BI43: 7 | BJ43: 7 | BK43: 7 | BL43: 8 | BM43: 6 | BN43: 6 | BO43: 6 | BP43: 7 | BQ43: 4 | BR43: 6 | BS43: 5 | BT43: 6 | BU43: 4 | BV43: 4 | BW43: 4 | BX43: 4 | BY43: 0 | BZ43: 0 | CA43: 0 | CB43: 1 | CC43: 1 | CD43: 3 | CF43: 9 | CG43: 5 | CH43: 35 | CI43: 4 | CK43: 2 | CL43: 3 | CM43: 24 | CN43: 37 | CO43: 18 | CP43: 22 | CQ43: 75 | CR43: 50 | CT43: 12 | CU43: 29 | CV43: 93
A44: 150810 | C44: 37 | D44: 150810 | E44: DISTRITO SANTA MARIA | F44: 37026 | H44: 17796 | I44: 19230 | K44: 329 | L44: 324 | M44: 326 | N44: 332 | O44: 283 | P44: 243 | Q44: 246 | R44: 249 | S44: 313 | T44: 299 | U44: 329 | V44: 331 | W44: 232 | X44: 214 | Y44: 206 | Z44: 252 | AA44: 232 | AB44: 241 | AC44: 244 | AD44: 250 | AE44: 245 | AF44: 277 | AG44: 254 | AH44: 287 | AI44: 298 | AJ44: 253 | AK44: 269 | AL44: 281 | AM44: 254 | AN44: 365 | AO44: 250 | AP44: 213 | AQ44: 237 | AR44: 219 | AS44: 233 | AT44: 215 | AU44: 211 | AV44: 229 | AW44: 220 | AX44: 357 | AY44: 1234 | AZ44: 1370 | BA44: 1231 | BB44: 1397 | BC44: 1192 | BD44: 1368 | BE44: 1216 | BF44: 1566 | BG44: 1297 | BH44: 1259 | BI44: 996 | BJ44: 1279 | BK44: 1009 | BL44: 1008 | BM44: 1119 | BN44: 935 | BO44: 786 | BP44: 967 | BQ44: 630 | BR44: 873 | BS44: 724 | BT44: 596 | BU44: 452 | BV44: 469 | BW44: 699 | BX44: 712 | BY44: 50 | BZ44: 143 | CA44: 139 | CB44: 186 | CC44: 185 | CD44: 596 | CE44: 0 | CF44: 1463 | CG44: 1233 | CH44: 8239 | CI44: 783 | CK44: 653 | CL44: 2291 | CM44: 6538 | CN44: 6681 | CO44: 3087 | CP44: 6249 | CQ44: 14244 | CR44: 6908 | CT44: 2531 | CU44: 5167 | CV44: 19476
B45: 02 | C45: 38 | D45: 5668 | E45: C.S. SANTA MARIA | F45: 10367 | H45: 4983 | I45: 5384 | K45: 92 | L45: 91 | M45: 91 | N45: 92 | O45: 79 | P45: 69 | Q45: 69 | R45: 70 | S45: 88 | T45: 83 | U45: 92 | V45: 93 | W45: 65 | X45: 60 | Y45: 58 | Z45: 71 | AA45: 65 | AB45: 67 | AC45: 68 | AD45: 70 | AE45: 69 | AF45: 78 | AG45: 71 | AH45: 80 | AI45: 83 | AJ45: 71 | AK45: 75 | AL45: 79 | AM45: 71 | AN45: 102 | AO45: 70 | AP45: 60 | AQ45: 66 | AR45: 61 | AS45: 65 | AT45: 60 | AU45: 59 | AV45: 64 | AW45: 62 | AX45: 100 | AY45: 346 | AZ45: 384 | BA45: 345 | BB45: 391 | BC45: 334 | BD45: 383 | BE45: 340 | BF45: 438 | BG45: 363 | BH45: 353 | BI45: 279 | BJ45: 358 | BK45: 283 | BL45: 282 | BM45: 313 | BN45: 262 | BO45: 220 | BP45: 271 | BQ45: 176 | BR45: 244 | BS45: 203 | BT45: 167 | BU45: 127 | BV45: 131 | BW45: 196 | BX45: 199 | BY45: 14 | BZ45: 40 | CA45: 39 | CB45: 52 | CC45: 52 | CD45: 167 | CF45: 410 | CG45: 345 | CH45: 2307 | CI45: 219 | CK45: 183 | CL45: 641 | CM45: 1831 | CN45: 1870 | CO45: 863 | CP45: 1751 | CQ45: 3988 | CR45: 1934 | CT45: 709 | CU45: 1446 | CV45: 5454
B46: 02 | C46: 39 | D46: 5669 | E46: P.S. CHONTA | F46: 5554 | H46: 2669 | I46: 2885 | K46: 49 | L46: 49 | M46: 49 | N46: 50 | O46: 42 | P46: 36 | Q46: 36 | R46: 37 | S46: 47 | T46: 45 | U46: 49 | V46: 50 | W46: 34 | X46: 32 | Y46: 31 | Z46: 38 | AA46: 35 | AB46: 36 | AC46: 37 | AD46: 38 | AE46: 37 | AF46: 41 | AG46: 38 | AH46: 43 | AI46: 45 | AJ46: 38 | AK46: 40 | AL46: 42 | AM46: 38 | AN46: 55 | AO46: 38 | AP46: 32 | AQ46: 36 | AR46: 33 | AS46: 35 | AT46: 32 | AU46: 32 | AV46: 34 | AW46: 33 | AX46: 54 | AY46: 185 | AZ46: 206 | BA46: 185 | BB46: 210 | BC46: 179 | BD46: 205 | BE46: 182 | BF46: 235 | BG46: 195 | BH46: 189 | BI46: 149 | BJ46: 192 | BK46: 151 | BL46: 151 | BM46: 168 | BN46: 140 | BO46: 118 | BP46: 145 | BQ46: 95 | BR46: 131 | BS46: 108 | BT46: 89 | BU46: 68 | BV46: 70 | BW46: 105 | BX46: 107 | BY46: 8 | BZ46: 21 | CA46: 21 | CB46: 28 | CC46: 28 | CD46: 89 | CF46: 219 | CG46: 185 | CH46: 1237 | CI46: 117 | CK46: 98 | CL46: 342 | CM46: 979 | CN46: 1003 | CO46: 464 | CP46: 939 | CQ46: 2136 | CR46: 1036 | CT46: 380 | CU46: 776 | CV46: 2922
B47: 02 | C47: 40 | D47: 5671 | E47: P.S. ZAPATA | F47: 2962 | H47: 1424 | I47: 1538 | K47: 26 | L47: 26 | M47: 26 | N47: 27 | O47: 23 | P47: 19 | Q47: 20 | R47: 20 | S47: 25 | T47: 24 | U47: 26 | V47: 26 | W47: 19 | X47: 17 | Y47: 16 | Z47: 20 | AA47: 19 | AB47: 19 | AC47: 20 | AD47: 20 | AE47: 20 | AF47: 22 | AG47: 20 | AH47: 23 | AI47: 24 | AJ47: 20 | AK47: 22 | AL47: 22 | AM47: 20 | AN47: 29 | AO47: 20 | AP47: 17 | AQ47: 19 | AR47: 18 | AS47: 19 | AT47: 17 | AU47: 17 | AV47: 18 | AW47: 18 | AX47: 29 | AY47: 99 | AZ47: 110 | BA47: 98 | BB47: 112 | BC47: 95 | BD47: 109 | BE47: 97 | BF47: 125 | BG47: 104 | BH47: 101 | BI47: 80 | BJ47: 102 | BK47: 81 | BL47: 81 | BM47: 89 | BN47: 75 | BO47: 63 | BP47: 77 | BQ47: 50 | BR47: 70 | BS47: 58 | BT47: 48 | BU47: 35 | BV47: 38 | BW47: 56 | BX47: 57 | BY47: 4 | BZ47: 11 | CA47: 11 | CB47: 15 | CC47: 15 | CD47: 48 | CF47: 116 | CG47: 99 | CH47: 659 | CI47: 63 | CK47: 52 | CL47: 184 | CM47: 523 | CN47: 534 | CO47: 247 | CP47: 501 | CQ47: 1139 | CR47: 552 | CT47: 202 | CU47: 414 | CV47: 1558
B48: 02 | C48: 41 | D48: 5670 | E48: P.S. AMADO VELASQUEZ | F48: 11108 | H48: 5339 | I48: 5769 | K48: 99 | L48: 96 | M48: 98 | N48: 100 | O48: 85 | P48: 73 | Q48: 74 | R48: 75 | S48: 94 | T48: 90 | U48: 99 | V48: 99 | W48: 70 | X48: 64 | Y48: 62 | Z48: 76 | AA48: 69 | AB48: 72 | AC48: 73 | AD48: 75 | AE48: 72 | AF48: 83 | AG48: 76 | AH48: 86 | AI48: 89 | AJ48: 76 | AK48: 81 | AL48: 84 | AM48: 76 | AN48: 110 | AO48: 75 | AP48: 64 | AQ48: 71 | AR48: 66 | AS48: 70 | AT48: 65 | AU48: 63 | AV48: 69 | AW48: 66 | AX48: 107 | AY48: 370 | AZ48: 410 | BA48: 369 | BB48: 419 | BC48: 358 | BD48: 410 | BE48: 365 | BF48: 470 | BG48: 389 | BH48: 378 | BI48: 299 | BJ48: 384 | BK48: 303 | BL48: 302 | BM48: 336 | BN48: 280 | BO48: 236 | BP48: 290 | BQ48: 189 | BR48: 262 | BS48: 217 | BT48: 179 | BU48: 136 | BV48: 141 | BW48: 210 | BX48: 214 | BY48: 14 | BZ48: 43 | CA48: 42 | CB48: 56 | CC48: 54 | CD48: 179 | CF48: 439 | CG48: 371 | CH48: 2471 | CI48: 235 | CK48: 195 | CL48: 689 | CM48: 1960 | CN48: 2003 | CO48: 927 | CP48: 1873 | CQ48: 4274 | CR48: 2074 | CT48: 759 | CU48: 1549 | CV48: 5842
B49: 02 | C49: 42 | D49: 5672 | E49: P.S. SAN BARTOLOME | F49: 7035 | H49: 3381 | I49: 3654 | K49: 63 | L49: 62 | M49: 62 | N49: 63 | O49: 54 | P49: 46 | Q49: 47 | R49: 47 | S49: 59 | T49: 57 | U49: 63 | V49: 63 | W49: 44 | X49: 41 | Y49: 39 | Z49: 47 | AA49: 44 | AB49: 47 | AC49: 46 | AD49: 47 | AE49: 47 | AF49: 53 | AG49: 49 | AH49: 55 | AI49: 57 | AJ49: 48 | AK49: 51 | AL49: 54 | AM49: 49 | AN49: 69 | AO49: 47 | AP49: 40 | AQ49: 45 | AR49: 41 | AS49: 44 | AT49: 41 | AU49: 40 | AV49: 44 | AW49: 41 | AX49: 67 | AY49: 234 | AZ49: 260 | BA49: 234 | BB49: 265 | BC49: 226 | BD49: 261 | BE49: 232 | BF49: 298 | BG49: 246 | BH49: 238 | BI49: 189 | BJ49: 243 | BK49: 191 | BL49: 192 | BM49: 213 | BN49: 178 | BO49: 149 | BP49: 184 | BQ49: 120 | BR49: 166 | BS49: 138 | BT49: 113 | BU49: 86 | BV49: 89 | BW49: 132 | BX49: 135 | BY49: 10 | BZ49: 28 | CA49: 26 | CB49: 35 | CC49: 36 | CD49: 113 | CF49: 279 | CG49: 233 | CH49: 1565 | CI49: 149 | CK49: 125 | CL49: 435 | CM49: 1245 | CN49: 1271 | CO49: 586 | CP49: 1185 | CQ49: 2707 | CR49: 1312 | CT49: 481 | CU49: 982 | CV49: 3700
A50: 150811 | C50: 43 | D50: 150811 | E50: DISTRITO SAYAN | F50: 25949 | H50: 12304 | I50: 13645 | K50: 214 | L50: 183 | M50: 231 | N50: 210 | O50: 197 | P50: 191 | Q50: 239 | R50: 217 | S50: 220 | T50: 223 | U50: 218 | V50: 244 | W50: 186 | X50: 172 | Y50: 177 | Z50: 185 | AA50: 173 | AB50: 196 | AC50: 176 | AD50: 201 | AE50: 188 | AF50: 204 | AG50: 192 | AH50: 208 | AI50: 207 | AJ50: 198 | AK50: 210 | AL50: 194 | AM50: 205 | AN50: 254 | AO50: 186 | AP50: 158 | AQ50: 162 | AR50: 182 | AS50: 190 | AT50: 150 | AU50: 169 | AV50: 169 | AW50: 153 | AX50: 300 | AY50: 864 | AZ50: 1272 | BA50: 1001 | BB50: 1137 | BC50: 1005 | BD50: 944 | BE50: 1066 | BF50: 883 | BG50: 793 | BH50: 979 | BI50: 702 | BJ50: 1016 | BK50: 655 | BL50: 709 | BM50: 583 | BN50: 671 | BO50: 495 | BP50: 540 | BQ50: 396 | BR50: 506 | BS50: 404 | BT50: 360 | BU50: 218 | BV50: 267 | BW50: 229 | BX50: 322 | BY50: 48 | BZ50: 103 | CA50: 81 | CB50: 111 | CC50: 102 | CD50: 460 | CE50: 0 | CF50: 1058 | CG50: 959 | CH50: 6231 | CI50: 604 | CK50: 397 | CL50: 1728 | CM50: 4845 | CN50: 5016 | CO50: 2296 | CP50: 5065 | CQ50: 10006 | CR50: 3737 | CT50: 1928 | CU50: 3879 | CV50: 14280
B51: 03 | C51: 44 | D51: 5780 | E51: C.S. SAYAN | F51: 8563 | H51: 4060 | I51: 4503 | K51: 71 | L51: 61 | M51: 76 | N51: 69 | O51: 65 | P51: 61 | Q51: 79 | R51: 72 | S51: 73 | T51: 74 | U51: 72 | V51: 81 | W51: 61 | X51: 57 | Y51: 58 | Z51: 61 | AA51: 57 | AB51: 65 | AC51: 59 | AD51: 67 | AE51: 62 | AF51: 67 | AG51: 63 | AH51: 69 | AI51: 68 | AJ51: 65 | AK51: 69 | AL51: 64 | AM51: 68 | AN51: 84 | AO51: 61 | AP51: 52 | AQ51: 53 | AR51: 60 | AS51: 63 | AT51: 50 | AU51: 56 | AV51: 56 | AW51: 50 | AX51: 99 | AY51: 285 | AZ51: 420 | BA51: 330 | BB51: 375 | BC51: 332 | BD51: 312 | BE51: 352 | BF51: 291 | BG51: 262 | BH51: 323 | BI51: 232 | BJ51: 335 | BK51: 216 | BL51: 234 | BM51: 192 | BN51: 221 | BO51: 163 | BP51: 178 | BQ51: 131 | BR51: 167 | BS51: 133 | BT51: 119 | BU51: 72 | BV51: 88 | BW51: 76 | BX51: 106 | BY51: 17 | BZ51: 34 | CA51: 27 | CB51: 37 | CC51: 34 | CD51: 151 | CF51: 349 | CG51: 317 | CH51: 2056 | CI51: 200 | CK51: 132 | CL51: 569 | CM51: 1600 | CN51: 1656 | CO51: 757 | CP51: 1671 | CQ51: 3302 | CR51: 1233 | CT51: 638 | CU51: 1279 | CV51: 4712
B52: 03 | C52: 45 | D52: 5774 | E52: C.S. 9 DE OCTUBRE | F52: 6877 | H52: 3261 | I52: 3616 | K52: 57 | L52: 48 | M52: 61 | N52: 57 | O52: 52 | P52: 51 | Q52: 63 | R52: 57 | S52: 58 | T52: 59 | U52: 58 | V52: 65 | W52: 49 | X52: 46 | Y52: 48 | Z52: 49 | AA52: 46 | AB52: 52 | AC52: 47 | AD52: 53 | AE52: 50 | AF52: 54 | AG52: 51 | AH52: 55 | AI52: 55 | AJ52: 53 | AK52: 56 | AL52: 51 | AM52: 54 | AN52: 67 | AO52: 49 | AP52: 42 | AQ52: 43 | AR52: 48 | AS52: 50 | AT52: 40 | AU52: 45 | AV52: 45 | AW52: 41 | AX52: 80 | AY52: 229 | AZ52: 337 | BA52: 265 | BB52: 301 | BC52: 266 | BD52: 250 | BE52: 282 | BF52: 234 | BG52: 210 | BH52: 259 | BI52: 186 | BJ52: 269 | BK52: 174 | BL52: 188 | BM52: 154 | BN52: 178 | BO52: 131 | BP52: 143 | BQ52: 105 | BR52: 134 | BS52: 107 | BT52: 95 | BU52: 58 | BV52: 71 | BW52: 61 | BX52: 85 | BY52: 13 | BZ52: 27 | CA52: 21 | CB52: 30 | CC52: 27 | CD52: 122 | CF52: 280 | CG52: 255 | CH52: 1650 | CI52: 160 | CK52: 105 | CL52: 458 | CM52: 1286 | CN52: 1331 | CO52: 608 | CP52: 1343 | CQ52: 2650 | CR52: 990 | CT52: 513 | CU52: 1029 | CV52: 3782
B53: 03 | C53: 46 | D53: 5781 | E53: P.S. CHAMBARA | F53: 778 | H53: 369 | I53: 409 | K53: 6 | L53: 5 | M53: 7 | N53: 6 | O53: 6 | P53: 6 | Q53: 7 | R53: 7 | S53: 6 | T53: 7 | U53: 7 | V53: 7 | W53: 6 | X53: 5 | Y53: 5 | Z53: 6 | AA53: 5 | AB53: 6 | AC53: 5 | AD53: 6 | AE53: 6 | AF53: 6 | AG53: 5 | AH53: 6 | AI53: 6 | AJ53: 6 | AK53: 6 | AL53: 6 | AM53: 6 | AN53: 8 | AO53: 6 | AP53: 5 | AQ53: 5 | AR53: 5 | AS53: 6 | AT53: 5 | AU53: 5 | AV53: 5 | AW53: 5 | AX53: 8 | AY53: 26 | AZ53: 38 | BA53: 30 | BB53: 34 | BC53: 30 | BD53: 28 | BE53: 32 | BF53: 26 | BG53: 24 | BH53: 29 | BI53: 21 | BJ53: 32 | BK53: 20 | BL53: 21 | BM53: 18 | BN53: 20 | BO53: 15 | BP53: 16 | BQ53: 12 | BR53: 15 | BS53: 12 | BT53: 11 | BU53: 6 | BV53: 8 | BW53: 7 | BX53: 10 | BY53: 1 | BZ53: 3 | CA53: 2 | CB53: 3 | CC53: 3 | CD53: 14 | CF53: 32 | CG53: 28 | CH53: 187 | CI53: 18 | CK53: 11 | CL53: 52 | CM53: 144 | CN53: 151 | CO53: 70 | CP53: 151 | CQ53: 301 | CR53: 112 | CT53: 58 | CU53: 116 | CV53: 429
B54: 03 | C54: 47 | D54: 5775 | E54: P.S. LA MERCED | F54: 1039 | H54: 492 | I54: 547 | K54: 9 | L54: 7 | M54: 9 | N54: 8 | O54: 8 | P54: 8 | Q54: 10 | R54: 9 | S54: 8 | T54: 9 | U54: 9 | V54: 10 | W54: 7 | X54: 7 | Y54: 7 | Z54: 7 | AA54: 7 | AB54: 8 | AC54: 7 | AD54: 8 | AE54: 8 | AF54: 8 | AG54: 8 | AH54: 9 | AI54: 9 | AJ54: 8 | AK54: 9 | AL54: 8 | AM54: 9 | AN54: 10 | AO54: 7 | AP54: 6 | AQ54: 6 | AR54: 7 | AS54: 7 | AT54: 6 | AU54: 7 | AV54: 7 | AW54: 5 | AX54: 12 | AY54: 34 | AZ54: 51 | BA54: 41 | BB54: 45 | BC54: 41 | BD54: 38 | BE54: 43 | BF54: 35 | BG54: 31 | BH54: 39 | BI54: 28 | BJ54: 41 | BK54: 25 | BL54: 29 | BM54: 23 | BN54: 27 | BO54: 20 | BP54: 22 | BQ54: 15 | BR54: 21 | BS54: 17 | BT54: 14 | BU54: 9 | BV54: 11 | BW54: 9 | BX54: 12 | BY54: 2 | BZ54: 5 | CA54: 3 | CB54: 4 | CC54: 4 | CD54: 18 | CF54: 43 | CG54: 38 | CH54: 249 | CI54: 24 | CK54: 16 | CL54: 69 | CM54: 195 | CN54: 202 | CO54: 92 | CP54: 202 | CQ54: 400 | CR54: 150 | CT54: 77 | CU54: 156 | CV54: 571
B55: 03 | C55: 48 | D55: 5776 | E55: P.S. LA VILLA | F55: 7136 | H55: 3384 | I55: 3752 | K55: 59 | L55: 50 | M55: 64 | N55: 58 | O55: 54 | P55: 53 | Q55: 66 | R55: 60 | S55: 61 | T55: 61 | U55: 60 | V55: 67 | W55: 51 | X55: 47 | Y55: 49 | Z55: 51 | AA55: 48 | AB55: 54 | AC55: 48 | AD55: 55 | AE55: 52 | AF55: 56 | AG55: 53 | AH55: 57 | AI55: 57 | AJ55: 54 | AK55: 58 | AL55: 53 | AM55: 56 | AN55: 70 | AO55: 51 | AP55: 43 | AQ55: 45 | AR55: 50 | AS55: 52 | AT55: 41 | AU55: 46 | AV55: 46 | AW55: 42 | AX55: 83 | AY55: 238 | AZ55: 350 | BA55: 275 | BB55: 313 | BC55: 276 | BD55: 260 | BE55: 293 | BF55: 243 | BG55: 218 | BH55: 269 | BI55: 193 | BJ55: 279 | BK55: 180 | BL55: 195 | BM55: 160 | BN55: 185 | BO55: 136 | BP55: 149 | BQ55: 109 | BR55: 139 | BS55: 111 | BT55: 99 | BU55: 60 | BV55: 73 | BW55: 63 | BX55: 89 | BY55: 13 | BZ55: 28 | CA55: 22 | CB55: 31 | CC55: 28 | CD55: 127 | CF55: 290 | CG55: 263 | CH55: 1714 | CI55: 166 | CK55: 109 | CL55: 477 | CM55: 1334 | CN55: 1378 | CO55: 630 | CP55: 1393 | CQ55: 2751 | CR55: 1028 | CT55: 530 | CU55: 1065 | CV55: 3927
B56: 03 | C56: 49 | D56: 5777 | E56: P.S. EL AHORCADO | F56: 778 | H56: 369 | I56: 409 | K56: 6 | L56: 6 | M56: 7 | N56: 6 | O56: 6 | P56: 6 | Q56: 7 | R56: 6 | S56: 7 | T56: 6 | U56: 6 | V56: 7 | W56: 6 | X56: 5 | Y56: 5 | Z56: 6 | AA56: 5 | AB56: 5 | AC56: 5 | AD56: 6 | AE56: 5 | AF56: 7 | AG56: 6 | AH56: 6 | AI56: 6 | AJ56: 6 | AK56: 6 | AL56: 6 | AM56: 6 | AN56: 7 | AO56: 6 | AP56: 5 | AQ56: 5 | AR56: 6 | AS56: 6 | AT56: 4 | AU56: 5 | AV56: 5 | AW56: 5 | AX56: 9 | AY56: 26 | AZ56: 38 | BA56: 30 | BB56: 35 | BC56: 30 | BD56: 28 | BE56: 32 | BF56: 27 | BG56: 24 | BH56: 30 | BI56: 21 | BJ56: 30 | BK56: 20 | BL56: 21 | BM56: 18 | BN56: 20 | BO56: 15 | BP56: 16 | BQ56: 12 | BR56: 15 | BS56: 12 | BT56: 11 | BU56: 6 | BV56: 8 | BW56: 7 | BX56: 10 | BY56: 1 | BZ56: 3 | CA56: 3 | CB56: 3 | CC56: 3 | CD56: 14 | CF56: 32 | CG56: 29 | CH56: 188 | CI56: 18 | CK56: 12 | CL56: 51 | CM56: 143 | CN56: 149 | CO56: 69 | CP56: 153 | CQ56: 301 | CR56: 112 | CT56: 56 | CU56: 117 | CV56: 430
B57: 03 | C57: 50 | D57: 6726 | E57: P.S. LA UNION | F57: 778 | H57: 369 | I57: 409 | K57: 6 | L57: 6 | M57: 7 | N57: 6 | O57: 6 | P57: 6 | Q57: 7 | R57: 6 | S57: 7 | T57: 7 | U57: 6 | V57: 7 | W57: 6 | X57: 5 | Y57: 5 | Z57: 5 | AA57: 5 | AB57: 6 | AC57: 5 | AD57: 6 | AE57: 5 | AF57: 6 | AG57: 6 | AH57: 6 | AI57: 6 | AJ57: 6 | AK57: 6 | AL57: 6 | AM57: 6 | AN57: 8 | AO57: 6 | AP57: 5 | AQ57: 5 | AR57: 6 | AS57: 6 | AT57: 4 | AU57: 5 | AV57: 5 | AW57: 5 | AX57: 9 | AY57: 26 | AZ57: 38 | BA57: 30 | BB57: 34 | BC57: 30 | BD57: 28 | BE57: 32 | BF57: 27 | BG57: 24 | BH57: 30 | BI57: 21 | BJ57: 30 | BK57: 20 | BL57: 21 | BM57: 18 | BN57: 20 | BO57: 15 | BP57: 16 | BQ57: 12 | BR57: 15 | BS57: 12 | BT57: 11 | BU57: 7 | BV57: 8 | BW57: 6 | BX57: 10 | BY57: 1 | BZ57: 3 | CA57: 3 | CB57: 3 | CC57: 3 | CD57: 14 | CF57: 32 | CG57: 29 | CH57: 187 | CI57: 18 | CK57: 12 | CL57: 52 | CM57: 143 | CN57: 149 | CO57: 70 | CP57: 152 | CQ57: 301 | CR57: 112 | CT57: 56 | CU57: 117 | CV57: 429
A58: 150812 | C58: 51 | D58: 150812 | E58: DISTRITO VEGUETA | F58: 24638 | H58: 11838 | I58: 12800 | K58: 261 | L58: 237 | M58: 298 | N58: 258 | O58: 255 | P58: 263 | Q58: 238 | R58: 242 | S58: 260 | T58: 224 | U58: 270 | V58: 241 | W58: 152 | X58: 140 | Y58: 142 | Z58: 154 | AA58: 158 | AB58: 146 | AC58: 151 | AD58: 166 | AE58: 187 | AF58: 153 | AG58: 163 | AH58: 192 | AI58: 169 | AJ58: 198 | AK58: 179 | AL58: 193 | AM58: 164 | AN58: 254 | AO58: 145 | AP58: 177 | AQ58: 170 | AR58: 151 | AS58: 179 | AT58: 140 | AU58: 143 | AV58: 175 | AW58: 165 | AX58: 253 | AY58: 781 | AZ58: 1149 | BA58: 822 | BB58: 974 | BC58: 872 | BD58: 727 | BE58: 731 | BF58: 904 | BG58: 784 | BH58: 858 | BI58: 640 | BJ58: 926 | BK58: 652 | BL58: 677 | BM58: 650 | BN58: 588 | BO58: 518 | BP58: 501 | BQ58: 444 | BR58: 486 | BS58: 402 | BT58: 405 | BU58: 298 | BV58: 275 | BW58: 395 | BX58: 373 | BY58: 29 | BZ58: 130 | CA58: 97 | CB58: 131 | CC58: 140 | CD58: 474 | CE58: 0 | CF58: 990 | CG58: 896 | CH58: 5538 | CI58: 627 | CK58: 498 | CL58: 2038 | CM58: 4951 | CN58: 4534 | CO58: 2119 | CP58: 4462 | CQ58: 9009 | CR58: 4097 | CT58: 1720 | CU58: 3550 | CV58: 12735
B59: 04 | C59: 52 | D59: 5673 | E59: C.S. VEGUETA | F59: 6899 | H59: 3315 | I59: 3584 | K59: 73 | L59: 66 | M59: 83 | N59: 72 | O59: 71 | P59: 74 | Q59: 67 | R59: 69 | S59: 72 | T59: 63 | U59: 76 | V59: 68 | W59: 43 | X59: 40 | Y59: 40 | Z59: 43 | AA59: 44 | AB59: 41 | AC59: 42 | AD59: 45 | AE59: 52 | AF59: 42 | AG59: 46 | AH59: 54 | AI59: 47 | AJ59: 55 | AK59: 50 | AL59: 55 | AM59: 46 | AN59: 71 | AO59: 41 | AP59: 49 | AQ59: 48 | AR59: 42 | AS59: 50 | AT59: 40 | AU59: 40 | AV59: 48 | AW59: 46 | AX59: 71 | AY59: 219 | AZ59: 322 | BA59: 230 | BB59: 273 | BC59: 244 | BD59: 204 | BE59: 205 | BF59: 253 | BG59: 220 | BH59: 240 | BI59: 179 | BJ59: 259 | BK59: 183 | BL59: 190 | BM59: 182 | BN59: 165 | BO59: 145 | BP59: 141 | BQ59: 124 | BR59: 136 | BS59: 113 | BT59: 113 | BU59: 83 | BV59: 75 | BW59: 111 | BX59: 105 | BY59: 8 | BZ59: 36 | CA59: 27 | CB59: 37 | CC59: 39 | CD59: 133 | CF59: 277 | CG59: 250 | CH59: 1551 | CI59: 176 | CK59: 139 | CL59: 571 | CM59: 1386 | CN59: 1270 | CO59: 594 | CP59: 1249 | CQ59: 2524 | CR59: 1146 | CT59: 482 | CU59: 993 | CV59: 3568
B60: 04 | C60: 53 | D60: 5674 | E60: P.S. MAZO | F60: 2464 | H60: 1184 | I60: 1280 | K60: 26 | L60: 24 | M60: 30 | N60: 26 | O60: 26 | P60: 26 | Q60: 24 | R60: 24 | S60: 26 | T60: 22 | U60: 27 | V60: 24 | W60: 15 | X60: 14 | Y60: 14 | Z60: 15 | AA60: 16 | AB60: 15 | AC60: 15 | AD60: 17 | AE60: 19 | AF60: 15 | AG60: 16 | AH60: 19 | AI60: 17 | AJ60: 20 | AK60: 18 | AL60: 19 | AM60: 16 | AN60: 25 | AO60: 15 | AP60: 18 | AQ60: 17 | AR60: 15 | AS60: 18 | AT60: 14 | AU60: 14 | AV60: 17 | AW60: 17 | AX60: 25 | AY60: 78 | AZ60: 115 | BA60: 82 | BB60: 97 | BC60: 87 | BD60: 73 | BE60: 73 | BF60: 90 | BG60: 78 | BH60: 86 | BI60: 64 | BJ60: 93 | BK60: 65 | BL60: 68 | BM60: 65 | BN60: 59 | BO60: 52 | BP60: 50 | BQ60: 44 | BR60: 49 | BS60: 40 | BT60: 41 | BU60: 30 | BV60: 28 | BW60: 40 | BX60: 37 | BY60: 3 | BZ60: 13 | CA60: 10 | CB60: 13 | CC60: 14 | CD60: 47 | CF60: 98 | CG60: 89 | CH60: 554 | CI60: 63 | CK60: 50 | CL60: 204 | CM60: 495 | CN60: 453 | CO60: 212 | CP60: 445 | CQ60: 901 | CR60: 411 | CT60: 172 | CU60: 354 | CV60: 1273
B61: 04 | C61: 54 | D61: 5675 | E61: P.S. PRIMAVERA | F61: 5420 | H61: 2604 | I61: 2816 | K61: 57 | L61: 52 | M61: 66 | N61: 56 | O61: 56 | P61: 58 | Q61: 52 | R61: 53 | S61: 57 | T61: 49 | U61: 59 | V61: 53 | W61: 32 | X61: 31 | Y61: 32 | Z61: 34 | AA61: 35 | AB61: 32 | AC61: 33 | AD61: 37 | AE61: 41 | AF61: 34 | AG61: 36 | AH61: 42 | AI61: 37 | AJ61: 44 | AK61: 39 | AL61: 42 | AM61: 36 | AN61: 56 | AO61: 32 | AP61: 39 | AQ61: 37 | AR61: 33 | AS61: 39 | AT61: 31 | AU61: 32 | AV61: 39 | AW61: 36 | AX61: 55 | AY61: 172 | AZ61: 253 | BA61: 181 | BB61: 214 | BC61: 192 | BD61: 160 | BE61: 161 | BF61: 199 | BG61: 172 | BH61: 189 | BI61: 142 | BJ61: 204 | BK61: 143 | BL61: 149 | BM61: 143 | BN61: 129 | BO61: 114 | BP61: 110 | BQ61: 98 | BR61: 107 | BS61: 88 | BT61: 89 | BU61: 66 | BV61: 61 | BW61: 88 | BX61: 82 | BY61: 6 | BZ61: 28 | CA61: 21 | CB61: 29 | CC61: 31 | CD61: 104 | CF61: 218 | CG61: 197 | CH61: 1219 | CI61: 138 | CK61: 109 | CL61: 447 | CM61: 1087 | CN61: 996 | CO61: 465 | CP61: 982 | CQ61: 1983 | CR61: 903 | CT61: 378 | CU61: 780 | CV61: 2803
B62: 04 | C62: 55 | D62: 5676 | E62: P.S. MARIATEGUI | F62: 6406 | H62: 3078 | I62: 3328 | K62: 68 | L62: 62 | M62: 77 | N62: 67 | O62: 66 | P62: 68 | Q62: 62 | R62: 63 | S62: 68 | T62: 59 | U62: 70 | V62: 63 | W62: 40 | X62: 36 | Y62: 37 | Z62: 40 | AA62: 40 | AB62: 38 | AC62: 39 | AD62: 43 | AE62: 49 | AF62: 40 | AG62: 42 | AH62: 50 | AI62: 44 | AJ62: 51 | AK62: 47 | AL62: 50 | AM62: 43 | AN62: 66 | AO62: 37 | AP62: 46 | AQ62: 44 | AR62: 39 | AS62: 47 | AT62: 36 | AU62: 37 | AV62: 46 | AW62: 43 | AX62: 66 | AY62: 203 | AZ62: 299 | BA62: 214 | BB62: 253 | BC62: 227 | BD62: 189 | BE62: 190 | BF62: 235 | BG62: 204 | BH62: 223 | BI62: 166 | BJ62: 241 | BK62: 170 | BL62: 176 | BM62: 169 | BN62: 153 | BO62: 135 | BP62: 130 | BQ62: 115 | BR62: 126 | BS62: 105 | BT62: 105 | BU62: 77 | BV62: 72 | BW62: 103 | BX62: 97 | BY62: 8 | BZ62: 34 | CA62: 25 | CB62: 34 | CC62: 37 | CD62: 123 | CF62: 257 | CG62: 233 | CH62: 1440 | CI62: 163 | CK62: 130 | CL62: 530 | CM62: 1287 | CN62: 1177 | CO62: 550 | CP62: 1161 | CQ62: 2343 | CR62: 1065 | CT62: 446 | CU62: 923 | CV62: 3312
B63: 04 | C63: 56 | D63: 5677 | E63: P.S. MEDIO MUNDO | F63: 3203 | H63: 1539 | I63: 1664 | K63: 34 | L63: 31 | M63: 39 | N63: 34 | O63: 33 | P63: 34 | Q63: 31 | R63: 31 | S63: 34 | T63: 29 | U63: 35 | V63: 31 | W63: 20 | X63: 18 | Y63: 18 | Z63: 20 | AA63: 21 | AB63: 19 | AC63: 20 | AD63: 22 | AE63: 24 | AF63: 20 | AG63: 21 | AH63: 25 | AI63: 22 | AJ63: 26 | AK63: 23 | AL63: 25 | AM63: 21 | AN63: 33 | AO63: 19 | AP63: 23 | AQ63: 22 | AR63: 20 | AS63: 23 | AT63: 18 | AU63: 19 | AV63: 23 | AW63: 21 | AX63: 33 | AY63: 102 | AZ63: 149 | BA63: 107 | BB63: 127 | BC63: 113 | BD63: 95 | BE63: 95 | BF63: 118 | BG63: 102 | BH63: 112 | BI63: 83 | BJ63: 120 | BK63: 85 | BL63: 87 | BM63: 85 | BN63: 76 | BO63: 67 | BP63: 65 | BQ63: 58 | BR63: 63 | BS63: 52 | BT63: 53 | BU63: 39 | BV63: 36 | BW63: 51 | BX63: 48 | BY63: 4 | BZ63: 17 | CA63: 13 | CB63: 17 | CC63: 18 | CD63: 62 | CF63: 129 | CG63: 117 | CH63: 721 | CI63: 82 | CK63: 65 | CL63: 265 | CM63: 644 | CN63: 589 | CO63: 275 | CP63: 581 | CQ63: 1171 | CR63: 532 | CT63: 224 | CU63: 461 | CV63: 1656
B64: 04 | C64: 57 | D64: 5678 | E64: P.S. TIROLER | F64: 246 | H64: 118 | I64: 128 | K64: 3 | L64: 2 | M64: 3 | N64: 3 | O64: 3 | P64: 3 | Q64: 2 | R64: 2 | S64: 3 | T64: 2 | U64: 3 | V64: 2 | W64: 2 | X64: 1 | Y64: 1 | Z64: 2 | AA64: 2 | AB64: 1 | AC64: 2 | AD64: 2 | AE64: 2 | AF64: 2 | AG64: 2 | AH64: 2 | AI64: 2 | AJ64: 2 | AK64: 2 | AL64: 2 | AM64: 2 | AN64: 3 | AO64: 1 | AP64: 2 | AQ64: 2 | AR64: 2 | AS64: 2 | AT64: 1 | AU64: 1 | AV64: 2 | AW64: 2 | AX64: 3 | AY64: 7 | AZ64: 11 | BA64: 8 | BB64: 10 | BC64: 9 | BD64: 6 | BE64: 7 | BF64: 9 | BG64: 8 | BH64: 8 | BI64: 6 | BJ64: 9 | BK64: 6 | BL64: 7 | BM64: 6 | BN64: 6 | BO64: 5 | BP64: 5 | BQ64: 5 | BR64: 5 | BS64: 4 | BT64: 4 | BU64: 3 | BV64: 3 | BW64: 2 | BX64: 4 | BY64: 0 | BZ64: 2 | CA64: 1 | CB64: 1 | CC64: 1 | CD64: 5 | CF64: 11 | CG64: 10 | CH64: 53 | CI64: 5 | CK64: 5 | CL64: 21 | CM64: 52 | CN64: 49 | CO64: 23 | CP64: 44 | CQ64: 87 | CR64: 40 | CT64: 18 | CU64: 39 | CV64: 123
A65: 150900 | C65: 58 | D65: 150900 | E65: PROVINCIA OYON | F65: 23477 | H65: 11330 | I65: 12147 | K65: 134 | L65: 122 | M65: 138 | N65: 140 | O65: 121 | P65: 95 | Q65: 133 | R65: 105 | S65: 159 | T65: 120 | U65: 144 | V65: 150 | W65: 190 | X65: 181 | Y65: 195 | Z65: 181 | AA65: 203 | AB65: 182 | AC65: 181 | AD65: 211 | AE65: 200 | AF65: 210 | AG65: 199 | AH65: 221 | AI65: 210 | AJ65: 212 | AK65: 193 | AL65: 210 | AM65: 201 | AN65: 241 | AO65: 153 | AP65: 152 | AQ65: 143 | AR65: 137 | AS65: 145 | AT65: 121 | AU65: 136 | AV65: 117 | AW65: 137 | AX65: 201 | AY65: 717 | AZ65: 879 | BA65: 860 | BB65: 1008 | BC65: 903 | BD65: 874 | BE65: 973 | BF65: 1044 | BG65: 844 | BH65: 807 | BI65: 677 | BJ65: 872 | BK65: 593 | BL65: 673 | BM65: 549 | BN65: 591 | BO65: 417 | BP65: 472 | BQ65: 481 | BR65: 503 | BS65: 420 | BT65: 406 | BU65: 300 | BV65: 348 | BW65: 281 | BX65: 361 | BY65: 60 | BZ65: 65 | CA65: 60 | CB65: 69 | CC65: 62 | CD65: 524 | CE65: 0 | CF65: 1094 | CG65: 728 | CH65: 5484 | CI65: 715 | CK65: 256 | CL65: 1011 | CM65: 3915 | CN65: 4766 | CO65: 2118 | CP65: 4055 | CQ65: 9400 | CR65: 3989 | CT65: 1818 | CU65: 3539 | CV65: 12864
A66: 150901 | C66: 59 | D66: 150901 | E66: DISTRITO OYON | F66: 14536 | H66: 6985 | I66: 7551 | K66: 87 | L66: 67 | M66: 95 | N66: 87 | O66: 75 | P66: 62 | Q66: 77 | R66: 63 | S66: 93 | T66: 83 | U66: 92 | V66: 88 | W66: 128 | X66: 123 | Y66: 135 | Z66: 120 | AA66: 138 | AB66: 122 | AC66: 119 | AD66: 148 | AE66: 131 | AF66: 147 | AG66: 128 | AH66: 156 | AI66: 137 | AJ66: 148 | AK66: 130 | AL66: 141 | AM66: 135 | AN66: 160 | AO66: 100 | AP66: 104 | AQ66: 97 | AR66: 90 | AS66: 99 | AT66: 78 | AU66: 92 | AV66: 76 | AW66: 91 | AX66: 130 | AY66: 492 | AZ66: 570 | BA66: 592 | BB66: 728 | BC66: 639 | BD66: 601 | BE66: 655 | BF66: 719 | BG66: 556 | BH66: 498 | BI66: 391 | BJ66: 567 | BK66: 378 | BL66: 392 | BM66: 270 | BN66: 337 | BO66: 194 | BP66: 211 | BQ66: 235 | BR66: 228 | BS66: 170 | BT66: 173 | BU66: 118 | BV66: 163 | BW66: 116 | BX66: 171 | BY66: 31 | BZ66: 47 | CA66: 39 | CB66: 40 | CC66: 28 | CD66: 349 | CE66: 0 | CF66: 752 | CG66: 478 | CH66: 3683 | CI66: 462 | CK66: 154 | CL66: 635 | CM66: 2564 | CN66: 3194 | CO66: 1419 | CP66: 2771 | CQ66: 6003 | CR66: 1779 | CT66: 1213 | CU66: 2370 | CV66: 8385
B67: 05 | C67: 60 | D67: 5659 | E67: C.S. OYON | F67: 10756 | H67: 5169 | I67: 5587 | K67: 65 | L67: 50 | M67: 70 | N67: 64 | O67: 55 | P67: 46 | Q67: 57 | R67: 46 | S67: 69 | T67: 61 | U67: 68 | V67: 65 | W67: 95 | X67: 91 | Y67: 100 | Z67: 89 | AA67: 102 | AB67: 90 | AC67: 88 | AD67: 110 | AE67: 97 | AF67: 109 | AG67: 95 | AH67: 115 | AI67: 101 | AJ67: 110 | AK67: 96 | AL67: 105 | AM67: 100 | AN67: 118 | AO67: 74 | AP67: 78 | AQ67: 72 | AR67: 66 | AS67: 73 | AT67: 58 | AU67: 68 | AV67: 56 | AW67: 67 | AX67: 96 | AY67: 364 | AZ67: 421 | BA67: 438 | BB67: 540 | BC67: 473 | BD67: 445 | BE67: 485 | BF67: 532 | BG67: 411 | BH67: 368 | BI67: 289 | BJ67: 420 | BK67: 280 | BL67: 290 | BM67: 200 | BN67: 250 | BO67: 144 | BP67: 156 | BQ67: 174 | BR67: 170 | BS67: 126 | BT67: 127 | BU67: 87 | BV67: 120 | BW67: 86 | BX67: 125 | BY67: 23 | BZ67: 35 | CA67: 29 | CB67: 30 | CC67: 21 | CD67: 259 | CF67: 557 | CG67: 354 | CH67: 2726 | CI67: 342 | CK67: 115 | CL67: 468 | CM67: 1897 | CN67: 2365 | CO67: 1051 | CP67: 2050 | CQ67: 4443 | CR67: 1315 | CT67: 898 | CU67: 1754 | CV67: 6206
B68: 05 | C68: 61 | D68: 5660 | E68: P.S. MALLAY | F68: 1163 | H68: 559 | I68: 604 | K68: 7 | L68: 5 | M68: 8 | N68: 7 | O68: 6 | P68: 5 | Q68: 6 | R68: 5 | S68: 7 | T68: 7 | U68: 7 | V68: 7 | W68: 11 | X68: 10 | Y68: 11 | Z68: 10 | AA68: 11 | AB68: 10 | AC68: 10 | AD68: 12 | AE68: 10 | AF68: 12 | AG68: 11 | AH68: 12 | AI68: 11 | AJ68: 12 | AK68: 10 | AL68: 11 | AM68: 11 | AN68: 13 | AO68: 8 | AP68: 8 | AQ68: 8 | AR68: 7 | AS68: 8 | AT68: 6 | AU68: 7 | AV68: 6 | AW68: 7 | AX68: 10 | AY68: 39 | AZ68: 46 | BA68: 47 | BB68: 58 | BC68: 51 | BD68: 48 | BE68: 52 | BF68: 58 | BG68: 44 | BH68: 40 | BI68: 31 | BJ68: 45 | BK68: 30 | BL68: 31 | BM68: 22 | BN68: 27 | BO68: 16 | BP68: 17 | BQ68: 19 | BR68: 18 | BS68: 14 | BT68: 14 | BU68: 10 | BV68: 13 | BW68: 9 | BX68: 14 | BY68: 2 | BZ68: 4 | CA68: 3 | CB68: 3 | CC68: 2 | CD68: 28 | CF68: 60 | CG68: 37 | CH68: 295 | CI68: 37 | CK68: 12 | CL68: 51 | CM68: 207 | CN68: 257 | CO68: 113 | CP68: 220 | CQ68: 479 | CR68: 144 | CT68: 99 | CU68: 188 | CV68: 669
B69: 05 | C69: 62 | D69: 5661 | E69: P.S. NAVA | F69: 146 | H69: 70 | I69: 76 | K69: 1 | L69: 1 | M69: 1 | N69: 1 | O69: 1 | P69: 1 | Q69: 1 | R69: 1 | S69: 1 | T69: 1 | U69: 1 | V69: 1 | W69: 1 | X69: 1 | Y69: 1 | Z69: 1 | AA69: 1 | AB69: 1 | AC69: 1 | AD69: 1 | AE69: 1 | AF69: 1 | AG69: 1 | AH69: 2 | AI69: 1 | AJ69: 1 | AK69: 1 | AL69: 1 | AM69: 1 | AN69: 2 | AO69: 1 | AP69: 1 | AQ69: 1 | AR69: 1 | AS69: 1 | AT69: 1 | AU69: 1 | AV69: 1 | AW69: 1 | AX69: 1 | AY69: 5 | AZ69: 6 | BA69: 6 | BB69: 7 | BC69: 6 | BD69: 6 | BE69: 7 | BF69: 7 | BG69: 6 | BH69: 5 | BI69: 4 | BJ69: 6 | BK69: 4 | BL69: 4 | BM69: 3 | BN69: 3 | BO69: 2 | BP69: 2 | BQ69: 2 | BR69: 2 | BS69: 2 | BT69: 2 | BU69: 2 | BV69: 2 | BW69: 1 | BX69: 2 | BY69: 0 | BZ69: 1 | CA69: 0 | CB69: 0 | CC69: 1 | CD69: 3 | CF69: 7 | CG69: 5 | CH69: 37 | CI69: 5 | CK69: 2 | CL69: 8 | CM69: 25 | CN69: 28 | CO69: 13 | CP69: 28 | CQ69: 61 | CR69: 19 | CT69: 10 | CU69: 22 | CV69: 85
B70: 05 | C70: 63 | D70: 5662 | E70: P.S. TINTA | F70: 727 | H70: 349 | I70: 378 | K70: 4 | L70: 3 | M70: 5 | N70: 5 | O70: 4 | P70: 3 | Q70: 4 | R70: 3 | S70: 5 | T70: 4 | U70: 5 | V70: 4 | W70: 6 | X70: 6 | Y70: 7 | Z70: 6 | AA70: 7 | AB70: 6 | AC70: 6 | AD70: 7 | AE70: 7 | AF70: 7 | AG70: 6 | AH70: 8 | AI70: 7 | AJ70: 7 | AK70: 7 | AL70: 7 | AM70: 7 | AN70: 8 | AO70: 5 | AP70: 5 | AQ70: 4 | AR70: 5 | AS70: 5 | AT70: 4 | AU70: 5 | AV70: 4 | AW70: 5 | AX70: 7 | AY70: 25 | AZ70: 29 | BA70: 30 | BB70: 36 | BC70: 32 | BD70: 30 | BE70: 32 | BF70: 36 | BG70: 28 | BH70: 25 | BI70: 20 | BJ70: 28 | BK70: 19 | BL70: 20 | BM70: 13 | BN70: 17 | BO70: 9 | BP70: 11 | BQ70: 12 | BR70: 11 | BS70: 8 | BT70: 9 | BU70: 5 | BV70: 8 | BW70: 5 | BX70: 9 | BY70: 2 | BZ70: 2 | CA70: 2 | CB70: 2 | CC70: 1 | CD70: 17 | CF70: 37 | CG70: 25 | CH70: 184 | CI70: 23 | CK70: 7 | CL70: 33 | CM70: 128 | CN70: 159 | CO70: 71 | CP70: 141 | CQ70: 300 | CR70: 87 | CT70: 60 | CU70: 120 | CV70: 420
B71: 05 | C71: 64 | D71: 5648 | E71: P.S. RAPAZ | F71: 1744 | H71: 838 | I71: 906 | K71: 10 | L71: 8 | M71: 11 | N71: 10 | O71: 9 | P71: 7 | Q71: 9 | R71: 8 | S71: 11 | T71: 10 | U71: 11 | V71: 11 | W71: 15 | X71: 15 | Y71: 16 | Z71: 14 | AA71: 17 | AB71: 15 | AC71: 14 | AD71: 18 | AE71: 16 | AF71: 18 | AG71: 15 | AH71: 19 | AI71: 17 | AJ71: 18 | AK71: 16 | AL71: 17 | AM71: 16 | AN71: 19 | AO71: 12 | AP71: 12 | AQ71: 12 | AR71: 11 | AS71: 12 | AT71: 9 | AU71: 11 | AV71: 9 | AW71: 11 | AX71: 16 | AY71: 59 | AZ71: 68 | BA71: 71 | BB71: 87 | BC71: 77 | BD71: 72 | BE71: 79 | BF71: 86 | BG71: 67 | BH71: 60 | BI71: 47 | BJ71: 68 | BK71: 45 | BL71: 47 | BM71: 32 | BN71: 40 | BO71: 23 | BP71: 25 | BQ71: 28 | BR71: 27 | BS71: 20 | BT71: 21 | BU71: 14 | BV71: 20 | BW71: 15 | BX71: 21 | BY71: 4 | BZ71: 5 | CA71: 5 | CB71: 5 | CC71: 3 | CD71: 42 | CF71: 91 | CG71: 57 | CH71: 441 | CI71: 55 | CK71: 18 | CL71: 75 | CM71: 307 | CN71: 385 | CO71: 171 | CP71: 332 | CQ71: 720 | CR71: 214 | CT71: 146 | CU71: 286 | CV71: 1005
A72: 150902 | C72: 65 | D72: 150902 | E72: DISTRITO ANDAJES | F72: 1218 | H72: 579 | I72: 639 | K72: 3 | L72: 3 | M72: 2 | N72: 0 | O72: 2 | P72: 4 | Q72: 3 | R72: 4 | S72: 2 | T72: 4 | U72: 2 | V72: 2 | W72: 5 | X72: 4 | Y72: 5 | Z72: 5 | AA72: 5 | AB72: 5 | AC72: 5 | AD72: 4 | AE72: 5 | AF72: 6 | AG72: 5 | AH72: 6 | AI72: 6 | AJ72: 5 | AK72: 6 | AL72: 5 | AM72: 4 | AN72: 7 | AO72: 4 | AP72: 4 | AQ72: 4 | AR72: 4 | AS72: 4 | AT72: 4 | AU72: 4 | AV72: 4 | AW72: 6 | AX72: 8 | AY72: 21 | AZ72: 26 | BA72: 33 | BB72: 34 | BC72: 24 | BD72: 24 | BE72: 36 | BF72: 44 | BG72: 33 | BH72: 37 | BI72: 40 | BJ72: 50 | BK72: 25 | BL72: 35 | BM72: 41 | BN72: 47 | BO72: 41 | BP72: 40 | BQ72: 67 | BR72: 70 | BS72: 38 | BT72: 41 | BU72: 58 | BV72: 54 | BW72: 40 | BX72: 49 | BY72: 1 | BZ72: 0 | CA72: 2 | CB72: 3 | CC72: 1 | CD72: 9 | CE72: 0 | CF72: 29 | CG72: 24 | CH72: 215 | CI72: 14 | CK72: 6 | CL72: 21 | CM72: 91 | CN72: 121 | CO72: 57 | CP72: 136 | CQ72: 436 | CR72: 498 | CT72: =SUM(U72:AD72) -> 42 | CU72: =SUM(AE72:AX72) -> 101 | CV72: =SUM(AY72:BN72) -> 550
B73: 05 | C73: 66 | D73: 5654 | E73: P.S. ANDAJES | F73: 1218 | H73: 579 | I73: 639 | K73: 3 | L73: 3 | M73: 2 | N73: 0 | O73: 2 | P73: 4 | Q73: 3 | R73: 4 | S73: 2 | T73: 4 | U73: 2 | V73: 2 | W73: 5 | X73: 4 | Y73: 5 | Z73: 5 | AA73: 5 | AB73: 5 | AC73: 5 | AD73: 4 | AE73: 5 | AF73: 6 | AG73: 5 | AH73: 6 | AI73: 6 | AJ73: 5 | AK73: 6 | AL73: 5 | AM73: 4 | AN73: 7 | AO73: 4 | AP73: 4 | AQ73: 4 | AR73: 4 | AS73: 4 | AT73: 4 | AU73: 4 | AV73: 4 | AW73: 6 | AX73: 8 | AY73: 21 | AZ73: 26 | BA73: 33 | BB73: 34 | BC73: 24 | BD73: 24 | BE73: 36 | BF73: 44 | BG73: 33 | BH73: 37 | BI73: 40 | BJ73: 50 | BK73: 25 | BL73: 35 | BM73: 41 | BN73: 47 | BO73: 41 | BP73: 40 | BQ73: 67 | BR73: 70 | BS73: 38 | BT73: 41 | BU73: 58 | BV73: 54 | BW73: 40 | BX73: 49 | BY73: 1 | BZ73: 0 | CA73: 2 | CB73: 3 | CC73: 1 | CD73: 9 | CF73: 29 | CG73: 24 | CH73: 215 | CI73: 14 | CK73: =SUM(K73:L73) -> 6 | CL73: =SUM(M73:T73) -> 21 | CM73: =SUM(K73:AH73) -> 91 | CN73: =SUM(U73:AT73) -> 121 | CO73: =SUM(AI73:AT73) -> 57 | CP73: =SUM(AU73:BB73) -> 136 | CQ73: =SUM(BC73:BN73) -> 436 | CR73: =SUM(BO73:BX73) -> 498 | CT73: 42 | CU73: 101 | CV73: 550
A74: 150903 | C74: 67 | D74: 150903 | E74: DISTRITO CAUJUL | F74: 1079 | H74: 508 | I74: 571 | K74: 4 | L74: 4 | M74: 3 | N74: 2 | O74: 2 | P74: 0 | Q74: 8 | R74: 9 | S74: 6 | T74: 2 | U74: 6 | V74: 10 | W74: 9 | X74: 10 | Y74: 9 | Z74: 9 | AA74: 10 | AB74: 8 | AC74: 8 | AD74: 7 | AE74: 8 | AF74: 8 | AG74: 7 | AH74: 7 | AI74: 7 | AJ74: 7 | AK74: 7 | AL74: 7 | AM74: 8 | AN74: 9 | AO74: 6 | AP74: 5 | AQ74: 6 | AR74: 5 | AS74: 5 | AT74: 6 | AU74: 5 | AV74: 6 | AW74: 5 | AX74: 9 | AY74: 35 | AZ74: 35 | BA74: 29 | BB74: 36 | BC74: 32 | BD74: 41 | BE74: 37 | BF74: 43 | BG74: 31 | BH74: 38 | BI74: 39 | BJ74: 46 | BK74: 29 | BL74: 36 | BM74: 29 | BN74: 28 | BO74: 24 | BP74: 30 | BQ74: 34 | BR74: 43 | BS74: 21 | BT74: 22 | BU74: 17 | BV74: 22 | BW74: 22 | BX74: 21 | BY74: 1 | BZ74: 2 | CA74: 2 | CB74: 2 | CC74: 2 | CD74: 17 | CE74: 0 | CF74: 38 | CG74: 31 | CH74: 239 | CI74: 27 | CK74: 8 | CL74: 32 | CM74: 156 | CN74: 194 | CO74: 78 | CP74: 160 | CQ74: 429 | CR74: 256 | CT74: 86 | CU74: 133 | CV74: 564
B75: 05 | C75: 68 | D75: 5655 | E75: P.S. CAUJUL | F75: 1079 | H75: 508 | I75: 571 | K75: 4 | L75: 4 | M75: 3 | N75: 2 | O75: 2 | P75: 0 | Q75: 8 | R75: 9 | S75: 6 | T75: 2 | U75: 6 | V75: 10 | W75: 9 | X75: 10 | Y75: 9 | Z75: 9 | AA75: 10 | AB75: 8 | AC75: 8 | AD75: 7 | AE75: 8 | AF75: 8 | AG75: 7 | AH75: 7 | AI75: 7 | AJ75: 7 | AK75: 7 | AL75: 7 | AM75: 8 | AN75: 9 | AO75: 6 | AP75: 5 | AQ75: 6 | AR75: 5 | AS75: 5 | AT75: 6 | AU75: 5 | AV75: 6 | AW75: 5 | AX75: 9 | AY75: 35 | AZ75: 35 | BA75: 29 | BB75: 36 | BC75: 32 | BD75: 41 | BE75: 37 | BF75: 43 | BG75: 31 | BH75: 38 | BI75: 39 | BJ75: 46 | BK75: 29 | BL75: 36 | BM75: 29 | BN75: 28 | BO75: 24 | BP75: 30 | BQ75: 34 | BR75: 43 | BS75: 21 | BT75: 22 | BU75: 17 | BV75: 22 | BW75: 22 | BX75: 21 | BY75: 1 | BZ75: 2 | CA75: 2 | CB75: 2 | CC75: 2 | CD75: 17 | CF75: 38 | CG75: 31 | CH75: 239 | CI75: 27 | CK75: 8 | CL75: 32 | CM75: 156 | CN75: 194 | CO75: 78 | CP75: 160 | CQ75: 429 | CR75: 256 | CT75: 86 | CU75: 133 | CV75: 564
A76: 150904 | C76: 69 | D76: 150904 | E76: DISTRITO COCHAMARCA | F76: 1647 | H76: 806 | I76: 841 | K76: 6 | L76: 14 | M76: 4 | N76: 6 | O76: 8 | P76: 8 | Q76: 10 | R76: 7 | S76: 19 | T76: 11 | U76: 7 | V76: 7 | W76: 15 | X76: 16 | Y76: 14 | Z76: 18 | AA76: 17 | AB76: 16 | AC76: 17 | AD76: 18 | AE76: 18 | AF76: 16 | AG76: 19 | AH76: 17 | AI76: 19 | AJ76: 15 | AK76: 16 | AL76: 17 | AM76: 15 | AN76: 19 | AO76: 14 | AP76: 12 | AQ76: 12 | AR76: 12 | AS76: 11 | AT76: 9 | AU76: 11 | AV76: 9 | AW76: 9 | AX76: 14 | AY76: 47 | AZ76: 61 | BA76: 41 | BB76: 42 | BC76: 56 | BD76: 58 | BE76: 61 | BF76: 66 | BG76: 64 | BH76: 58 | BI76: 46 | BJ76: 51 | BK76: 35 | BL76: 42 | BM76: 47 | BN76: 40 | BO76: 31 | BP76: 39 | BQ76: 31 | BR76: 30 | BS76: 31 | BT76: 34 | BU76: 23 | BV76: 29 | BW76: 32 | BX76: 30 | BY76: 13 | BZ76: 1 | CA76: 5 | CB76: 5 | CC76: 9 | CD76: 33 | CE76: 0 | CF76: 84 | CG76: 56 | CH76: 336 | CI76: 47 | CK76: 20 | CL76: 73 | CM76: 308 | CN76: 386 | CO76: 171 | CP76: 234 | CQ76: 624 | CR76: 310 | CT76: 145 | CU76: 284 | CV76: 815
B77: 03 | C77: 70 | D77: 5783 | E77: P.S. COCHAMARCA | F77: 708 | H77: 346 | I77: 362 | K77: 3 | L77: 6 | M77: 2 | N77: 3 | O77: 3 | P77: 3 | Q77: 4 | R77: 3 | S77: 8 | T77: 5 | U77: 3 | V77: 3 | W77: 6 | X77: 7 | Y77: 6 | Z77: 8 | AA77: 7 | AB77: 7 | AC77: 7 | AD77: 8 | AE77: 8 | AF77: 7 | AG77: 8 | AH77: 7 | AI77: 8 | AJ77: 6 | AK77: 7 | AL77: 7 | AM77: 6 | AN77: 8 | AO77: 6 | AP77: 5 | AQ77: 5 | AR77: 5 | AS77: 5 | AT77: 4 | AU77: 5 | AV77: 4 | AW77: 4 | AX77: 6 | AY77: 20 | AZ77: 26 | BA77: 18 | BB77: 18 | BC77: 24 | BD77: 25 | BE77: 26 | BF77: 28 | BG77: 28 | BH77: 25 | BI77: 20 | BJ77: 22 | BK77: 15 | BL77: 18 | BM77: 20 | BN77: 17 | BO77: 13 | BP77: 17 | BQ77: 13 | BR77: 13 | BS77: 13 | BT77: 15 | BU77: 10 | BV77: 12 | BW77: 15 | BX77: 14 | BY77: 6 | BZ77: 1 | CA77: 2 | CB77: 2 | CC77: 4 | CD77: 14 | CF77: 35 | CG77: 24 | CH77: 144 | CI77: 20 | CK77: 9 | CL77: 31 | CM77: 132 | CN77: 164 | CO77: 72 | CP77: 101 | CQ77: 268 | CR77: 135 | CT77: 62 | CU77: 121 | CV77: 350
B78: 03 | C78: 71 | D78: 5784 | E78: P.S. COLCAPAMPA | F78: 774 | H78: 379 | I78: 395 | K78: 3 | L78: 7 | M78: 2 | N78: 2 | O78: 4 | P78: 4 | Q78: 5 | R78: 3 | S78: 9 | T78: 5 | U78: 3 | V78: 3 | W78: 7 | X78: 8 | Y78: 7 | Z78: 8 | AA78: 8 | AB78: 8 | AC78: 8 | AD78: 8 | AE78: 8 | AF78: 7 | AG78: 9 | AH78: 8 | AI78: 9 | AJ78: 7 | AK78: 7 | AL78: 8 | AM78: 7 | AN78: 9 | AO78: 7 | AP78: 6 | AQ78: 6 | AR78: 6 | AS78: 5 | AT78: 4 | AU78: 5 | AV78: 4 | AW78: 4 | AX78: 7 | AY78: 22 | AZ78: 29 | BA78: 19 | BB78: 20 | BC78: 26 | BD78: 27 | BE78: 29 | BF78: 31 | BG78: 30 | BH78: 27 | BI78: 21 | BJ78: 24 | BK78: 16 | BL78: 20 | BM78: 22 | BN78: 19 | BO78: 15 | BP78: 18 | BQ78: 15 | BR78: 14 | BS78: 15 | BT78: 16 | BU78: 11 | BV78: 14 | BW78: 15 | BX78: 14 | BY78: 6 | BZ78: 0 | CA78: 3 | CB78: 3 | CC78: 4 | CD78: 16 | CF78: 39 | CG78: 27 | CH78: 158 | CI78: 22 | CK78: 10 | CL78: 34 | CM78: 144 | CN78: 181 | CO78: 81 | CP78: 110 | CQ78: 292 | CR78: 147 | CT78: 68 | CU78: 133 | CV78: 382
B79: 03 | C79: 72 | D79: 5785 | E79: P.S. YARUCAYA | F79: 165 | H79: 81 | I79: 84 | K79: 0 | L79: 1 | M79: 0 | N79: 1 | O79: 1 | P79: 1 | Q79: 1 | R79: 1 | S79: 2 | T79: 1 | U79: 1 | V79: 1 | W79: 2 | X79: 1 | Y79: 1 | Z79: 2 | AA79: 2 | AB79: 1 | AC79: 2 | AD79: 2 | AE79: 2 | AF79: 2 | AG79: 2 | AH79: 2 | AI79: 2 | AJ79: 2 | AK79: 2 | AL79: 2 | AM79: 2 | AN79: 2 | AO79: 1 | AP79: 1 | AQ79: 1 | AR79: 1 | AS79: 1 | AT79: 1 | AU79: 1 | AV79: 1 | AW79: 1 | AX79: 1 | AY79: 5 | AZ79: 6 | BA79: 4 | BB79: 4 | BC79: 6 | BD79: 6 | BE79: 6 | BF79: 7 | BG79: 6 | BH79: 6 | BI79: 5 | BJ79: 5 | BK79: 4 | BL79: 4 | BM79: 5 | BN79: 4 | BO79: 3 | BP79: 4 | BQ79: 3 | BR79: 3 | BS79: 3 | BT79: 3 | BU79: 2 | BV79: 3 | BW79: 2 | BX79: 2 | BY79: 1 | BZ79: 0 | CA79: 0 | CB79: 0 | CC79: 1 | CD79: 3 | CF79: 10 | CG79: 5 | CH79: 34 | CI79: 5 | CK79: 1 | CL79: 8 | CM79: 32 | CN79: 41 | CO79: 18 | CP79: 23 | CQ79: 64 | CR79: 28 | CT79: 15 | CU79: 30 | CV79: 83
A80: 150905 | C80: 73 | D80: 150905 | E80: DISTRITO NAVAN | F80: 1241 | H80: 607 | I80: 634 | K80: 4 | L80: 3 | M80: 1 | N80: 6 | O80: 4 | P80: 4 | Q80: 5 | R80: 4 | S80: 11 | T80: 2 | U80: 7 | V80: 5 | W80: 8 | X80: 6 | Y80: 7 | Z80: 6 | AA80: 7 | AB80: 7 | AC80: 8 | AD80: 8 | AE80: 8 | AF80: 7 | AG80: 9 | AH80: 8 | AI80: 10 | AJ80: 8 | AK80: 7 | AL80: 9 | AM80: 9 | AN80: 10 | AO80: 6 | AP80: 5 | AQ80: 4 | AR80: 4 | AS80: 4 | AT80: 4 | AU80: 4 | AV80: 4 | AW80: 6 | AX80: 9 | AY80: 39 | AZ80: 55 | BA80: 39 | BB80: 51 | BC80: 43 | BD80: 39 | BE80: 51 | BF80: 42 | BG80: 47 | BH80: 52 | BI80: 41 | BJ80: 46 | BK80: 34 | BL80: 40 | BM80: 33 | BN80: 27 | BO80: 36 | BP80: 47 | BQ80: 18 | BR80: 23 | BS80: 54 | BT80: 44 | BU80: 24 | BV80: 21 | BW80: 19 | BX80: 28 | BY80: 8 | BZ80: 2 | CA80: 1 | CB80: 2 | CC80: 2 | CD80: 39 | CE80: 0 | CF80: 42 | CG80: 26 | CH80: 285 | CI80: 58 | CK80: 7 | CL80: 37 | CM80: 145 | CN80: 181 | CO80: 80 | CP80: 207 | CQ80: 495 | CR80: 314 | CT80: 69 | CU80: 135 | CV80: 679
B81: 05 | C81: 74 | D81: 5656 | E81: P.S. NAVAN | F81: 1241 | H81: 607 | I81: 634 | K81: 4 | L81: 3 | M81: 1 | N81: 6 | O81: 4 | P81: 4 | Q81: 5 | R81: 4 | S81: 11 | T81: 2 | U81: 7 | V81: 5 | W81: 8 | X81: 6 | Y81: 7 | Z81: 6 | AA81: 7 | AB81: 7 | AC81: 8 | AD81: 8 | AE81: 8 | AF81: 7 | AG81: 9 | AH81: 8 | AI81: 10 | AJ81: 8 | AK81: 7 | AL81: 9 | AM81: 9 | AN81: 10 | AO81: 6 | AP81: 5 | AQ81: 4 | AR81: 4 | AS81: 4 | AT81: 4 | AU81: 4 | AV81: 4 | AW81: 6 | AX81: 9 | AY81: 39 | AZ81: 55 | BA81: 39 | BB81: 51 | BC81: 43 | BD81: 39 | BE81: 51 | BF81: 42 | BG81: 47 | BH81: 52 | BI81: 41 | BJ81: 46 | BK81: 34 | BL81: 40 | BM81: 33 | BN81: 27 | BO81: 36 | BP81: 47 | BQ81: 18 | BR81: 23 | BS81: 54 | BT81: 44 | BU81: 24 | BV81: 21 | BW81: 19 | BX81: 28 | BY81: 8 | BZ81: 2 | CA81: 1 | CB81: 2 | CC81: 2 | CD81: 39 | CF81: 42 | CG81: 26 | CH81: 285 | CI81: 58 | CK81: 7 | CL81: 37 | CM81: 145 | CN81: 181 | CO81: 80 | CP81: 207 | CQ81: 495 | CR81: 314 | CT81: 69 | CU81: 135 | CV81: 679
A82: 150906 | C82: 75 | D82: 150906 | E82: DISTRITO PACHANGARA | F82: 3756 | H82: 1845 | I82: 1911 | K82: 30 | L82: 31 | M82: 33 | N82: 39 | O82: 30 | P82: 17 | Q82: 30 | R82: 18 | S82: 28 | T82: 18 | U82: 30 | V82: 38 | W82: 25 | X82: 22 | Y82: 25 | Z82: 23 | AA82: 26 | AB82: 24 | AC82: 24 | AD82: 26 | AE82: 30 | AF82: 26 | AG82: 31 | AH82: 27 | AI82: 31 | AJ82: 29 | AK82: 27 | AL82: 31 | AM82: 30 | AN82: 36 | AO82: 23 | AP82: 22 | AQ82: 20 | AR82: 22 | AS82: 22 | AT82: 20 | AU82: 20 | AV82: 18 | AW82: 20 | AX82: 31 | AY82: 83 | AZ82: 132 | BA82: 126 | BB82: 117 | BC82: 109 | BD82: 111 | BE82: 133 | BF82: 130 | BG82: 113 | BH82: 124 | BI82: 120 | BJ82: 112 | BK82: 92 | BL82: 128 | BM82: 129 | BN82: 112 | BO82: 91 | BP82: 105 | BQ82: 96 | BR82: 109 | BS82: 106 | BT82: 92 | BU82: 60 | BV82: 59 | BW82: 52 | BX82: 62 | BY82: 6 | BZ82: 13 | CA82: 11 | CB82: 17 | CC82: 20 | CD82: 77 | CE82: 0 | CF82: 149 | CG82: 113 | CH82: 726 | CI82: 107 | CK82: 61 | CL82: 213 | CM82: 651 | CN82: 690 | CO82: 313 | CP82: 547 | CQ82: 1413 | CR82: 832 | CT82: 263 | CU82: 516 | CV82: 1871
B83: 05 | C83: 76 | D83: 5657 | E83: C.S. CHURIN | F83: 3042 | H83: 1494 | I83: 1548 | K83: 25 | L83: 25 | M83: 27 | N83: 32 | O83: 24 | P83: 14 | Q83: 24 | R83: 15 | S83: 23 | T83: 15 | U83: 24 | V83: 31 | W83: 20 | X83: 18 | Y83: 20 | Z83: 18 | AA83: 21 | AB83: 19 | AC83: 19 | AD83: 21 | AE83: 24 | AF83: 21 | AG83: 25 | AH83: 22 | AI83: 25 | AJ83: 23 | AK83: 22 | AL83: 25 | AM83: 24 | AN83: 29 | AO83: 19 | AP83: 18 | AQ83: 16 | AR83: 18 | AS83: 18 | AT83: 16 | AU83: 16 | AV83: 15 | AW83: 16 | AX83: 25 | AY83: 67 | AZ83: 106 | BA83: 102 | BB83: 95 | BC83: 88 | BD83: 90 | BE83: 108 | BF83: 105 | BG83: 92 | BH83: 100 | BI83: 97 | BJ83: 91 | BK83: 75 | BL83: 104 | BM83: 104 | BN83: 91 | BO83: 74 | BP83: 85 | BQ83: 78 | BR83: 88 | BS83: 86 | BT83: 75 | BU83: 49 | BV83: 48 | BW83: 42 | BX83: 50 | BY83: 5 | BZ83: 11 | CA83: 9 | CB83: 14 | CC83: 16 | CD83: 63 | CF83: 120 | CG83: 92 | CH83: 587 | CI83: 86 | CK83: 50 | CL83: 174 | CM83: 527 | CN83: 556 | CO83: 253 | CP83: 442 | CQ83: 1145 | CR83: 675 | CT83: 211 | CU83: 417 | CV83: 1515
B84: 05 | C84: 77 | D84: 5658 | E84: P.S. PACHANGARA | F84: 301 | H84: 148 | I84: 153 | K84: 2 | L84: 3 | M84: 2 | N84: 3 | O84: 3 | P84: 1 | Q84: 3 | R84: 1 | S84: 2 | T84: 1 | U84: 3 | V84: 3 | W84: 2 | X84: 2 | Y84: 2 | Z84: 2 | AA84: 2 | AB84: 2 | AC84: 2 | AD84: 2 | AE84: 2 | AF84: 2 | AG84: 2 | AH84: 2 | AI84: 2 | AJ84: 3 | AK84: 2 | AL84: 2 | AM84: 2 | AN84: 3 | AO84: 2 | AP84: 2 | AQ84: 2 | AR84: 2 | AS84: 2 | AT84: 2 | AU84: 2 | AV84: 1 | AW84: 2 | AX84: 3 | AY84: 7 | AZ84: 11 | BA84: 10 | BB84: 9 | BC84: 9 | BD84: 9 | BE84: 11 | BF84: 10 | BG84: 9 | BH84: 10 | BI84: 10 | BJ84: 9 | BK84: 7 | BL84: 10 | BM84: 10 | BN84: 9 | BO84: 7 | BP84: 8 | BQ84: 8 | BR84: 9 | BS84: 8 | BT84: 7 | BU84: 5 | BV84: 5 | BW84: 4 | BX84: 5 | BY84: 0 | BZ84: 1 | CA84: 1 | CB84: 1 | CC84: 2 | CD84: 6 | CF84: 12 | CG84: 10 | CH84: 58 | CI84: 9 | CK84: 5 | CL84: 16 | CM84: 51 | CN84: 56 | CO84: 26 | CP84: 45 | CQ84: 113 | CR84: 66 | CT84: 22 | CU84: 42 | CV84: 150
B85: 05 | C85: 78 | D85: 5649 | E85: P.S. HUANCAHUASI | F85: 413 | H85: 203 | I85: 210 | K85: 3 | L85: 3 | M85: 4 | N85: 4 | O85: 3 | P85: 2 | Q85: 3 | R85: 2 | S85: 3 | T85: 2 | U85: 3 | V85: 4 | W85: 3 | X85: 2 | Y85: 3 | Z85: 3 | AA85: 3 | AB85: 3 | AC85: 3 | AD85: 3 | AE85: 4 | AF85: 3 | AG85: 4 | AH85: 3 | AI85: 4 | AJ85: 3 | AK85: 3 | AL85: 4 | AM85: 4 | AN85: 4 | AO85: 2 | AP85: 2 | AQ85: 2 | AR85: 2 | AS85: 2 | AT85: 2 | AU85: 2 | AV85: 2 | AW85: 2 | AX85: 3 | AY85: 9 | AZ85: 15 | BA85: 14 | BB85: 13 | BC85: 12 | BD85: 12 | BE85: 14 | BF85: 15 | BG85: 12 | BH85: 14 | BI85: 13 | BJ85: 12 | BK85: 10 | BL85: 14 | BM85: 15 | BN85: 12 | BO85: 10 | BP85: 12 | BQ85: 10 | BR85: 12 | BS85: 12 | BT85: 10 | BU85: 6 | BV85: 6 | BW85: 6 | BX85: 7 | BY85: 1 | BZ85: 1 | CA85: 1 | CB85: 2 | CC85: 2 | CD85: 8 | CF85: 17 | CG85: 11 | CH85: 81 | CI85: 12 | CK85: 6 | CL85: 23 | CM85: 73 | CN85: 78 | CO85: 34 | CP85: 60 | CQ85: 155 | CR85: 91 | CT85: 30 | CU85: 57 | CV85: 206
C86: 79 | E86: PROVINCIA HUARAL | F86: 1214 | H86: 577 | I86: 637 | K86: 5 | L86: 5 | M86: 9 | N86: 13 | O86: 9 | P86: 10 | Q86: 13 | R86: 7 | S86: 7 | T86: 7 | U86: 8 | V86: 7 | W86: 11 | X86: 8 | Y86: 9 | Z86: 10 | AA86: 10 | AB86: 8 | AC86: 10 | AD86: 8 | AE86: 8 | AF86: 8 | AG86: 7 | AH86: 8 | AI86: 7 | AJ86: 8 | AK86: 7 | AL86: 6 | AM86: 7 | AN86: 9 | AO86: 5 | AP86: 7 | AQ86: 6 | AR86: 6 | AS86: 5 | AT86: 6 | AU86: 5 | AV86: 6 | AW86: 7 | AX86: 9 | AY86: 32 | AZ86: 51 | BA86: 41 | BB86: 41 | BC86: 32 | BD86: 37 | BE86: 33 | BF86: 42 | BG86: 37 | BH86: 44 | BI86: 37 | BJ86: 52 | BK86: 37 | BL86: 36 | BM86: 29 | BN86: 29 | BO86: 22 | BP86: 29 | BQ86: 44 | BR86: 41 | BS86: 26 | BT86: 31 | BU86: 21 | BV86: 19 | BW86: 31 | BX86: 29 | BY86: 1 | BZ86: 2 | CA86: 3 | CB86: 3 | CC86: 2 | CD86: 19 | CE86: 0 | CF86: 39 | CG86: 34 | CH86: 267 | CI86: 25 | CK86: 10 | CL86: 75 | CM86: 205 | CN86: 199 | CO86: 79 | CP86: 192 | CQ86: 445 | CR86: 293 | CT86: 89 | CU86: 137 | CV86: 610
C87: 80 | D87: 150600 | E87: IHUARI - ACOTAMA | F87: 1214 | H87: 577 | I87: 637 | K87: 5 | L87: 5 | M87: 9 | N87: 13 | O87: 9 | P87: 10 | Q87: 13 | R87: 7 | S87: 7 | T87: 7 | U87: 8 | V87: 7 | W87: 11 | X87: 8 | Y87: 9 | Z87: 10 | AA87: 10 | AB87: 8 | AC87: 10 | AD87: 8 | AE87: 8 | AF87: 8 | AG87: 7 | AH87: 8 | AI87: 7 | AJ87: 8 | AK87: 7 | AL87: 6 | AM87: 7 | AN87: 9 | AO87: 5 | AP87: 7 | AQ87: 6 | AR87: 6 | AS87: 5 | AT87: 6 | AU87: 5 | AV87: 6 | AW87: 7 | AX87: 9 | AY87: 32 | AZ87: 51 | BA87: 41 | BB87: 41 | BC87: 32 | BD87: 37 | BE87: 33 | BF87: 42 | BG87: 37 | BH87: 44 | BI87: 37 | BJ87: 52 | BK87: 37 | BL87: 36 | BM87: 29 | BN87: 29 | BO87: 22 | BP87: 29 | BQ87: 44 | BR87: 41 | BS87: 26 | BT87: 31 | BU87: 21 | BV87: 19 | BW87: 31 | BX87: 29 | BY87: 1 | BZ87: 2 | CA87: 3 | CB87: 3 | CC87: 2 | CD87: 19 | CF87: 39 | CG87: 34 | CH87: 267 | CI87: 25 | CK87: 10 | CL87: 75 | CM87: 205 | CN87: 199 | CO87: 79 | CP87: 192 | CQ87: 445 | CR87: 293 | CT87: 89 | CU87: 137 | CV87: 610
A88: 150606 | B88: 03 | C88: 81
C89: 82 | E89: MICRORED HUAURA | F89: =SUM(H89:I89) -> 40587 | H89: =K89+M89+O89+Q89+S89+U89+W89+Y89+AA89+AC89+AE89+AG89+AI89+AK89+AM89+AO89+AQ89+AS89+AU89+AW89+AY89+BA89+BC89+BE89+BG89+BI89+BK89+BM89+BO89+BQ89+BS89+BU89+BW89 -> 19918 | I89: =L89+N89+P89+R89+T89+V89+X89+Z89+AB89+AD89+AF89+AH89+AJ89+AL89+AN89+AP89+AR89+AT89+AV89+AX89+AZ89+BB89+BD89+BF89+BH89+BJ89+BL89+BN89+BP89+BR89+BT89+BV89+BX89 -> 20669 | K89: =K13+K24 -> 336 | L89: =L13+L24 -> 311 | M89: 343 | N89: 306 | O89: 262 | P89: 253 | Q89: 268 | R89: 264 | S89: 304 | T89: 276 | U89: 272 | V89: 194 | W89: 252 | X89: 280 | Y89: 253 | Z89: 295 | AA89: 289 | AB89: 279 | AC89: 294 | AD89: 305 | AE89: 344 | AF89: 286 | AG89: 362 | AH89: 293 | AI89: 371 | AJ89: 300 | AK89: 336 | AL89: 346 | AM89: 350 | AN89: 423 | AO89: 292 | AP89: 303 | AQ89: 301 | AR89: 299 | AS89: 298 | AT89: 295 | AU89: 302 | AV89: 280 | AW89: 313 | AX89: 441 | AY89: 1509 | AZ89: 1732 | BA89: 1416 | BB89: 1737 | BC89: 1577 | BD89: 1339 | BE89: 1524 | BF89: 1435 | BG89: 1414 | BH89: 1505 | BI89: 1348 | BJ89: 1290 | BK89: 1161 | BL89: 1139 | BM89: 958 | BN89: 1039 | BO89: 782 | BP89: 816 | BQ89: 647 | BR89: 877 | BS89: 615 | BT89: 722 | BU89: 347 | BV89: 473 | BW89: 478 | BX89: =BX13+BX24 -> 536 | BY89: 66 | BZ89: 174 | CA89: 145 | CB89: 162 | CC89: 166 | CD89: 694 | CE89: =CE13+CE24 -> 0 | CF89: 1648 | CG89: 1618 | CH89: 9038 | CI89: 919 | CK89: =CK13+CK24 -> 647 | CL89: =CL13+CL24 -> 2276 | CM89: 6921 | CN89: 7912 | CO89: 3914 | CP89: 7730 | CQ89: 15729 | CR89: 6293 | CT89: =CT13+CT24 -> 2713 | CU89: 6535 | CV89: 22123
B90: 1 | C90: 83 | E90: MICRORED HUALMAY | F90: =SUM(H90:I90) -> 91996 | H90: =K90+M90+O90+Q90+S90+U90+W90+Y90+AA90+AC90+AE90+AG90+AI90+AK90+AM90+AO90+AQ90+AS90+AU90+AW90+AY90+BA90+BC90+BE90+BG90+BI90+BK90+BM90+BO90+BQ90+BS90+BU90+BW90 -> 44824 | I90: =L90+N90+P90+R90+T90+V90+X90+Z90+AB90+AD90+AF90+AH90+AJ90+AL90+AN90+AP90+AR90+AT90+AV90+AX90+AZ90+BB90+BD90+BF90+BH90+BJ90+BL90+BN90+BP90+BR90+BT90+BV90+BX90 -> 47172 | K90: =K44+K20+K16+K12 -> 703 | L90: =L44+L20+L16+L12 -> 702 | M90: 716 | N90: 738 | O90: 641 | P90: 594 | Q90: 618 | R90: 610 | S90: 701 | T90: 692 | U90: 801 | V90: 765 | W90: 534 | X90: 528 | Y90: 533 | Z90: 557 | AA90: 548 | AB90: 574 | AC90: 568 | AD90: 606 | AE90: 620 | AF90: 626 | AG90: 650 | AH90: 640 | AI90: 702 | AJ90: 620 | AK90: 675 | AL90: 644 | AM90: 660 | AN90: 821 | AO90: 571 | AP90: 543 | AQ90: 539 | AR90: 558 | AS90: 545 | AT90: 538 | AU90: 556 | AV90: 516 | AW90: 541 | AX90: 886 | AY90: 3121 | AZ90: 3514 | BA90: 3378 | BB90: 3303 | BC90: 3142 | BD90: 3269 | BE90: 3422 | BF90: 3415 | BG90: 3358 | BH90: 3362 | BI90: 2587 | BJ90: 3239 | BK90: 2645 | BL90: 2795 | BM90: 2730 | BN90: 2517 | BO90: 1948 | BP90: 2339 | BQ90: 1782 | BR90: 2161 | BS90: 1740 | BT90: 1469 | BU90: 1062 | BV90: 1224 | BW90: 1487 | BX90: =BX44+BX20+BX16+BX12 -> 1807 | BY90: 127 | BZ90: 327 | CA90: 324 | CB90: 376 | CC90: 378 | CD90: 1475 | CE90: =CE44+CE20+CE16+CE12 -> 0 | CF90: 3351 | CG90: 3041 | CH90: 20102 | CI90: 1943 | CK90: =CK44+CK20+CK16+CK12 -> 1405 | CL90: =CL44+CL20+CL16+CL12 -> 5310 | CM90: 15265 | CN90: 15966 | CO90: 7416 | CP90: 15815 | CQ90: 36481 | CR90: 17019 | CT90: =CT44+CT20+CT16+CT12 -> 6014 | CU90: 12451 | CV90: 49797
B91: 2 | C91: 84 | E91: MICRORED SAYAN | F91: 30904 | H91: 14703 | I91: 16201 | K91: =K50+K30+K76++K87 -> 237 | L91: =L50+L30+L76++L87 -> 215 | M91: 260 | N91: 239 | O91: 232 | P91: 222 | Q91: 277 | R91: 245 | S91: 259 | T91: 260 | U91: 247 | V91: 271 | W91: 229 | X91: 215 | Y91: 216 | Z91: 233 | AA91: 217 | AB91: 237 | AC91: 218 | AD91: 245 | AE91: 231 | AF91: 241 | AG91: 232 | AH91: 246 | AI91: 245 | AJ91: 233 | AK91: 245 | AL91: 229 | AM91: 239 | AN91: 300 | AO91: 216 | AP91: 188 | AQ91: 193 | AR91: 210 | AS91: 216 | AT91: 176 | AU91: 196 | AV91: 196 | AW91: 180 | AX91: 340 | AY91: 1010 | AZ91: 1469 | BA91: 1167 | BB91: 1293 | BC91: 1156 | BD91: 1104 | BE91: 1225 | BF91: 1063 | BG91: 962 | BH91: 1144 | BI91: 850 | BJ91: 1200 | BK91: 794 | BL91: 866 | BM91: 712 | BN91: 788 | BO91: 595 | BP91: 661 | BQ91: 517 | BR91: 626 | BS91: 508 | BT91: 465 | BU91: 289 | BV91: 349 | BW91: 333 | BX91: =BX50+BX30+BX76++BX87 -> 432 | BY91: 64 | BZ91: 113 | CA91: 95 | CB91: 124 | CC91: 120 | CD91: 548 | CE91: =CE50+CE30+CE76++CE87 -> 0 | CF91: 1249 | CG91: 1110 | CH91: 7273 | CI91: 723 | CK91: =CK50+CK30+CK76++CK87 -> 452 | CL91: =CL50+CL30+CL76++CL87 -> 1994 | CM91: 5724 | CN91: 5968 | CO91: 2690 | CP91: 5851 | CQ91: 11864 | CR91: 4775 | CT91: =CT50+CT30+CT76++CT87 -> 2328 | CU91: 4552 | CV91: 16803
B92: 3 | C92: 85 | E92: MICRORED VEGUETA | F92: 24638 | H92: 11838 | I92: 12800 | K92: =K58 -> 261 | L92: =L58 -> 237 | M92: 298 | N92: 258 | O92: 255 | P92: 263 | Q92: 238 | R92: 242 | S92: 260 | T92: 224 | U92: 270 | V92: 241 | W92: 152 | X92: 140 | Y92: 142 | Z92: 154 | AA92: 158 | AB92: 146 | AC92: 151 | AD92: 166 | AE92: 187 | AF92: 153 | AG92: 163 | AH92: 192 | AI92: 169 | AJ92: 198 | AK92: 179 | AL92: 193 | AM92: 164 | AN92: 254 | AO92: 145 | AP92: 177 | AQ92: 170 | AR92: 151 | AS92: 179 | AT92: 140 | AU92: 143 | AV92: 175 | AW92: 165 | AX92: 253 | AY92: 781 | AZ92: 1149 | BA92: 822 | BB92: 974 | BC92: 872 | BD92: 727 | BE92: 731 | BF92: 904 | BG92: 784 | BH92: 858 | BI92: 640 | BJ92: 926 | BK92: 652 | BL92: 677 | BM92: 650 | BN92: 588 | BO92: 518 | BP92: 501 | BQ92: 444 | BR92: 486 | BS92: 402 | BT92: 405 | BU92: 298 | BV92: 275 | BW92: 395 | BX92: =BX58 -> 373 | BY92: 29 | BZ92: 130 | CA92: 97 | CB92: 131 | CC92: 140 | CD92: 474 | CE92: =CE58 -> 0 | CF92: 990 | CG92: 896 | CH92: 5538 | CI92: 627 | CK92: =CK58 -> 498 | CL92: =CL58 -> 2038 | CM92: 4951 | CN92: 4534 | CO92: 2119 | CP92: 4462 | CQ92: 9009 | CR92: 4097 | CT92: =CT58 -> 1720 | CU92: 3550 | CV92: 12735
B93: 4 | C93: 86 | E93: MICRORED CHURIN - OYON | F93: 27794 | H93: 13424 | I93: 14370 | K93: =K82+K66+K72+K74+K80+K18+K35+K40 -> 149 | L93: =L82+L66+L72+L74+L80+L18+L35+L40 -> 121 | M93: 150 | N93: 161 | O93: 133 | P93: 103 | Q93: 139 | R93: 114 | S93: 157 | T93: 133 | U93: 168 | V93: 159 | W93: 209 | X93: 199 | Y93: 218 | Z93: 197 | AA93: 222 | AB93: 205 | AC93: 205 | AD93: 233 | AE93: 228 | AF93: 234 | AG93: 225 | AH93: 249 | AI93: 239 | AJ93: 240 | AK93: 220 | AL93: 235 | AM93: 224 | AN93: 272 | AO93: 170 | AP93: 169 | AQ93: 156 | AR93: 150 | AS93: 157 | AT93: 134 | AU93: 147 | AV93: 130 | AW93: 148 | AX93: 223 | AY93: 777 | AZ93: 974 | BA93: 965 | BB93: 1103 | BC93: 992 | BD93: 966 | BE93: 1114 | BF93: 1165 | BG93: 993 | BH93: 954 | BI93: 823 | BJ93: 1022 | BK93: 784 | BL93: 861 | BM93: 696 | BN93: 747 | BO93: 583 | BP93: 675 | BQ93: 647 | BR93: 693 | BS93: 588 | BT93: 600 | BU93: 409 | BV93: 457 | BW93: 389 | BX93: =BX82+BX66+BX72+BX74+BX80+BX18+BX35+BX40 -> 492 | BY93: 49 | BZ93: 76 | CA93: 59 | CB93: 73 | CC93: 62 | CD93: 579 | CE93: 0 | CF93: 1230 | CG93: 806 | CH93: 6184 | CI93: 798 | CK93: 270 | CL93: 1090 | CM93: 4311 | CN93: 5317 | CO93: 2366 | CP93: 4467 | CQ93: 11117 | CR93: 5533 | CT93: 2015 | CU93: 3950 | CV93: 14936

Sheet etapas y mredes
C2: POBLACION ASIGNADA POR DISTRITO SIERRA, HOSPITAL, MICROREDES Y POR ETAPAS DE VIDA 2020
C7: DISTRITO | P7: MICROREDES
C8: 65 | D8: 67 | E8: 11 | F8: 74 | G8: 60 | H8: 28 | I8: 76 | J8: 33 | N8: 4 | P8: 82 | Q8: 83 | R8: 84 | S8: 85 | T8: 86
B9: POBLACION POR ETAPAS DE VIDA | C9: Andajes | D9: Caujul | E9: Checras | F9: Naván | G9: Oyón | H9: Paccho | I9: Pachangara | J9: Santa Leonor | K9: TOTAL | L9: PORC. (%) | N9: HOSPITAL HUACHO | P9: HUAURA | Q9: HUALMAY | R9: SAYAN | S9: VEGUETA | T9: CHURIN OYON | U9: Total Microredes
A10: 75 | B10: Neonatal (0-28dias) | C10: =VLOOKUP(C$8,Poblacion!$C$8:$CV$93,$A10) -> 1 | D10: =VLOOKUP(D$8,Poblacion!$C$8:$CV$93,$A10) -> 1 | E10: =VLOOKUP(E$8,Poblacion!$C$8:$CV$93,$A10) -> 0 | F10: =VLOOKUP(F$8,Poblacion!$C$8:$CV$93,$A10) -> 8 | G10: =VLOOKUP(G$8,Poblacion!$C$8:$CV$93,$A10) -> 23 | H10: =VLOOKUP(H$8,Poblacion!$C$8:$CV$93,$A10) -> 2 | I10: =VLOOKUP(I$8,Poblacion!$C$8:$CV$93,$A10) -> 5 | J10: =VLOOKUP(J$8,Poblacion!$C$8:$CV$93,$A10) -> 0 | K10: =SUM(C10:J10) -> 40 | L10: =IFERROR((K10/$K$20)*100,0) -> 0.1716738197 | N10: =VLOOKUP(N$8,Poblacion!$C$8:$CV$93,$A10) -> 61 | P10: =VLOOKUP(P$8,Poblacion!$C$8:$CV$93,$A10) -> 66 | Q10: =VLOOKUP(Q$8,Poblacion!$C$8:$CV$93,$A10) -> 127 | R10: =VLOOKUP(R$8,Poblacion!$C$8:$CV$93,$A10) -> 64 | S10: =VLOOKUP(S$8,Poblacion!$C$8:$CV$93,$A10) -> 29 | T10: =VLOOKUP(T$8,Poblacion!$C$8:$CV$93,$A10) -> 49 | U10: =SUM(P10:T10) -> 335
A11: 87 | B11: Infantil (Men.1año) | C11: =VLOOKUP(C$8,Poblacion!$C$8:$CV$93,$A11) -> 6 | D11: =VLOOKUP(D$8,Poblacion!$C$8:$CV$93,$A11) -> 8 | E11: =VLOOKUP(E$8,Poblacion!$C$8:$CV$93,$A11) -> 9 | F11: =VLOOKUP(F$8,Poblacion!$C$8:$CV$93,$A11) -> 7 | G11: =VLOOKUP(G$8,Poblacion!$C$8:$CV$93,$A11) -> 115 | H11: =VLOOKUP(H$8,Poblacion!$C$8:$CV$93,$A11) -> 13 | I11: =VLOOKUP(I$8,Poblacion!$C$8:$CV$93,$A11) -> 50 | J11: =VLOOKUP(J$8,Poblacion!$C$8:$CV$93,$A11) -> 12 | K11: =SUM(C11:J11) -> 220 | L11: =IFERROR((K11/$K$20)*100,0) -> 0.9442060086 | N11: =VLOOKUP(N$8,Poblacion!$C$8:$CV$93,$A11) -> 710 | P11: =VLOOKUP(P$8,Poblacion!$C$8:$CV$93,$A11) -> 647 | Q11: =VLOOKUP(Q$8,Poblacion!$C$8:$CV$93,$A11) -> 1405 | R11: =VLOOKUP(R$8,Poblacion!$C$8:$CV$93,$A11) -> 452 | S11: =VLOOKUP(S$8,Poblacion!$C$8:$CV$93,$A11) -> 498 | T11: =VLOOKUP(T$8,Poblacion!$C$8:$CV$93,$A11) -> 270 | U11: =SUM(P11:T11) -> 3272
A12: 88 | B12: Pre-escolar (01-04años) | C12: =VLOOKUP(C$8,Poblacion!$C$8:$CV$93,$A12) -> 21 | D12: =VLOOKUP(D$8,Poblacion!$C$8:$CV$93,$A12) -> 32 | E12: =VLOOKUP(E$8,Poblacion!$C$8:$CV$93,$A12) -> 26 | F12: =VLOOKUP(F$8,Poblacion!$C$8:$CV$93,$A12) -> 37 | G12: =VLOOKUP(G$8,Poblacion!$C$8:$CV$93,$A12) -> 468 | H12: =VLOOKUP(H$8,Poblacion!$C$8:$CV$93,$A12) -> 83 | I12: =VLOOKUP(I$8,Poblacion!$C$8:$CV$93,$A12) -> 174 | J12: =VLOOKUP(J$8,Poblacion!$C$8:$CV$93,$A12) -> 43 | K12: 884 | L12: 3.793991416 | N12: =VLOOKUP(N$8,Poblacion!$C$8:$CV$93,$A12) -> 2579 | P12: =VLOOKUP(P$8,Poblacion!$C$8:$CV$93,$A12) -> 2276 | Q12: =VLOOKUP(Q$8,Poblacion!$C$8:$CV$93,$A12) -> 5310 | R12: =VLOOKUP(R$8,Poblacion!$C$8:$CV$93,$A12) -> 1994 | S12: =VLOOKUP(S$8,Poblacion!$C$8:$CV$93,$A12) -> 2038 | T12: =VLOOKUP(T$8,Poblacion!$C$8:$CV$93,$A12) -> 1090 | U12: 12708
A13: 89 | B13: Niño (0-11años) | C13: =VLOOKUP(C$8,Poblacion!$C$8:$CV$93,$A13) -> 91 | D13: =VLOOKUP(D$8,Poblacion!$C$8:$CV$93,$A13) -> 156 | E13: =VLOOKUP(E$8,Poblacion!$C$8:$CV$93,$A13) -> 188 | F13: =VLOOKUP(F$8,Poblacion!$C$8:$CV$93,$A13) -> 145 | G13: =VLOOKUP(G$8,Poblacion!$C$8:$CV$93,$A13) -> 1897 | H13: =VLOOKUP(H$8,Poblacion!$C$8:$CV$93,$A13) -> 301 | I13: =VLOOKUP(I$8,Poblacion!$C$8:$CV$93,$A13) -> 527 | J13: =VLOOKUP(J$8,Poblacion!$C$8:$CV$93,$A13) -> 215 | K13: 3520 | L13: 15.10729614 | N13: =VLOOKUP(N$8,Poblacion!$C$8:$CV$93,$A13) -> 7298 | P13: =VLOOKUP(P$8,Poblacion!$C$8:$CV$93,$A13) -> 6921 | Q13: =VLOOKUP(Q$8,Poblacion!$C$8:$CV$93,$A13) -> 15265 | R13: =VLOOKUP(R$8,Poblacion!$C$8:$CV$93,$A13) -> 5724 | S13: =VLOOKUP(S$8,Poblacion!$C$8:$CV$93,$A13) -> 4951 | T13: =VLOOKUP(T$8,Poblacion!$C$8:$CV$93,$A13) -> 4311 | U13: 37172
A14: 90 | B14: Escolar (05-17años) | C14: =VLOOKUP(C$8,Poblacion!$C$8:$CV$93,$A14) -> 121 | D14: =VLOOKUP(D$8,Poblacion!$C$8:$CV$93,$A14) -> 194 | E14: =VLOOKUP(E$8,Poblacion!$C$8:$CV$93,$A14) -> 289 | F14: =VLOOKUP(F$8,Poblacion!$C$8:$CV$93,$A14) -> 181 | G14: =VLOOKUP(G$8,Poblacion!$C$8:$CV$93,$A14) -> 2365 | H14: =VLOOKUP(H$8,Poblacion!$C$8:$CV$93,$A14) -> 352 | I14: =VLOOKUP(I$8,Poblacion!$C$8:$CV$93,$A14) -> 556 | J14: =VLOOKUP(J$8,Poblacion!$C$8:$CV$93,$A14) -> 296 | K14: 4354 | L14: 18.68669528 | N14: =VLOOKUP(N$8,Poblacion!$C$8:$CV$93,$A14) -> 7638 | P14: =VLOOKUP(P$8,Poblacion!$C$8:$CV$93,$A14) -> 7912 | Q14: =VLOOKUP(Q$8,Poblacion!$C$8:$CV$93,$A14) -> 15966 | R14: =VLOOKUP(R$8,Poblacion!$C$8:$CV$93,$A14) -> 5968 | S14: =VLOOKUP(S$8,Poblacion!$C$8:$CV$93,$A14) -> 4534 | T14: =VLOOKUP(T$8,Poblacion!$C$8:$CV$93,$A14) -> 5317 | U14: 39697
A15: 91 | B15: Adolescente (12-17años) | C15: =VLOOKUP(C$8,Poblacion!$C$8:$CV$93,$A15) -> 57 | D15: =VLOOKUP(D$8,Poblacion!$C$8:$CV$93,$A15) -> 78 | E15: =VLOOKUP(E$8,Poblacion!$C$8:$CV$93,$A15) -> 136 | F15: =VLOOKUP(F$8,Poblacion!$C$8:$CV$93,$A15) -> 80 | G15: =VLOOKUP(G$8,Poblacion!$C$8:$CV$93,$A15) -> 1051 | H15: =VLOOKUP(H$8,Poblacion!$C$8:$CV$93,$A15) -> 147 | I15: =VLOOKUP(I$8,Poblacion!$C$8:$CV$93,$A15) -> 253 | J15: =VLOOKUP(J$8,Poblacion!$C$8:$CV$93,$A15) -> 136 | K15: 1938 | L15: 8.317596567 | N15: =VLOOKUP(N$8,Poblacion!$C$8:$CV$93,$A15) -> 3629 | P15: =VLOOKUP(P$8,Poblacion!$C$8:$CV$93,$A15) -> 3914 | Q15: =VLOOKUP(Q$8,Poblacion!$C$8:$CV$93,$A15) -> 7416 | R15: =VLOOKUP(R$8,Poblacion!$C$8:$CV$93,$A15) -> 2690 | S15: =VLOOKUP(S$8,Poblacion!$C$8:$CV$93,$A15) -> 2119 | T15: =VLOOKUP(T$8,Poblacion!$C$8:$CV$93,$A15) -> 2366 | U15: 18505
A16: 92 | B16: Adulto Joven (18-29años) | C16: =VLOOKUP(C$8,Poblacion!$C$8:$CV$93,$A16) -> 136 | D16: =VLOOKUP(D$8,Poblacion!$C$8:$CV$93,$A16) -> 160 | E16: =VLOOKUP(E$8,Poblacion!$C$8:$CV$93,$A16) -> 182 | F16: =VLOOKUP(F$8,Poblacion!$C$8:$CV$93,$A16) -> 207 | G16: =VLOOKUP(G$8,Poblacion!$C$8:$CV$93,$A16) -> 2050 | H16: =VLOOKUP(H$8,Poblacion!$C$8:$CV$93,$A16) -> 277 | I16: =VLOOKUP(I$8,Poblacion!$C$8:$CV$93,$A16) -> 442 | J16: =VLOOKUP(J$8,Poblacion!$C$8:$CV$93,$A16) -> 187 | K16: 3641 | L16: 15.62660944 | N16: =VLOOKUP(N$8,Poblacion!$C$8:$CV$93,$A16) -> 8087 | P16: =VLOOKUP(P$8,Poblacion!$C$8:$CV$93,$A16) -> 7730 | Q16: =VLOOKUP(Q$8,Poblacion!$C$8:$CV$93,$A16) -> 15815 | R16: =VLOOKUP(R$8,Poblacion!$C$8:$CV$93,$A16) -> 5851 | S16: =VLOOKUP(S$8,Poblacion!$C$8:$CV$93,$A16) -> 4462 | T16: =VLOOKUP(T$8,Poblacion!$C$8:$CV$93,$A16) -> 4467 | U16: 38325
A17: 93 | B17: Adulto (30-59años) | C17: =VLOOKUP(C$8,Poblacion!$C$8:$CV$93,$A17) -> 436 | D17: =VLOOKUP(D$8,Poblacion!$C$8:$CV$93,$A17) -> 429 | E17: =VLOOKUP(E$8,Poblacion!$C$8:$CV$93,$A17) -> 795 | F17: =VLOOKUP(F$8,Poblacion!$C$8:$CV$93,$A17) -> 495 | G17: =VLOOKUP(G$8,Poblacion!$C$8:$CV$93,$A17) -> 4443 | H17: =VLOOKUP(H$8,Poblacion!$C$8:$CV$93,$A17) -> 926 | I17: =VLOOKUP(I$8,Poblacion!$C$8:$CV$93,$A17) -> 1145 | J17: =VLOOKUP(J$8,Poblacion!$C$8:$CV$93,$A17) -> 620 | K17: 9289 | L17: 39.86695279 | N17: =VLOOKUP(N$8,Poblacion!$C$8:$CV$93,$A17) -> 20077 | P17: =VLOOKUP(P$8,Poblacion!$C$8:$CV$93,$A17) -> 15729 | Q17: =VLOOKUP(Q$8,Poblacion!$C$8:$CV$93,$A17) -> 36481 | R17: =VLOOKUP(R$8,Poblacion!$C$8:$CV$93,$A17) -> 11864 | S17: =VLOOKUP(S$8,Poblacion!$C$8:$CV$93,$A17) -> 9009 | T17: =VLOOKUP(T$8,Poblacion!$C$8:$CV$93,$A17) -> 11117 | U17: 84200
A18: 94 | B18: Adu.Mayor (60 a MAS) | C18: =VLOOKUP(C$8,Poblacion!$C$8:$CV$93,$A18) -> 498 | D18: =VLOOKUP(D$8,Poblacion!$C$8:$CV$93,$A18) -> 256 | E18: =VLOOKUP(E$8,Poblacion!$C$8:$CV$93,$A18) -> 648 | F18: =VLOOKUP(F$8,Poblacion!$C$8:$CV$93,$A18) -> 314 | G18: =VLOOKUP(G$8,Poblacion!$C$8:$CV$93,$A18) -> 1315 | H18: =VLOOKUP(H$8,Poblacion!$C$8:$CV$93,$A18) -> 793 | I18: =VLOOKUP(I$8,Poblacion!$C$8:$CV$93,$A18) -> 675 | J18: =VLOOKUP(J$8,Poblacion!$C$8:$CV$93,$A18) -> 413 | K18: 4912 | L18: 21.08154506 | N18: =VLOOKUP(N$8,Poblacion!$C$8:$CV$93,$A18) -> 9906 | P18: =VLOOKUP(P$8,Poblacion!$C$8:$CV$93,$A18) -> 6293 | Q18: =VLOOKUP(Q$8,Poblacion!$C$8:$CV$93,$A18) -> 17019 | R18: =VLOOKUP(R$8,Poblacion!$C$8:$CV$93,$A18) -> 4775 | S18: =VLOOKUP(S$8,Poblacion!$C$8:$CV$93,$A18) -> 4097 | T18: =VLOOKUP(T$8,Poblacion!$C$8:$CV$93,$A18) -> 5533 | U18: 37717
A19: 85 | B19: Gestantes | C19: =VLOOKUP(C$8,Poblacion!$C$8:$CV$93,$A19) -> 14 | D19: =VLOOKUP(D$8,Poblacion!$C$8:$CV$93,$A19) -> 27 | E19: =VLOOKUP(E$8,Poblacion!$C$8:$CV$93,$A19) -> 47 | F19: =VLOOKUP(F$8,Poblacion!$C$8:$CV$93,$A19) -> 58 | G19: =VLOOKUP(G$8,Poblacion!$C$8:$CV$93,$A19) -> 342 | H19: =VLOOKUP(H$8,Poblacion!$C$8:$CV$93,$A19) -> 47 | I19: =VLOOKUP(I$8,Poblacion!$C$8:$CV$93,$A19) -> 86 | J19: =VLOOKUP(J$8,Poblacion!$C$8:$CV$93,$A19) -> 36 | K19: 657 | L19: 2.819742489 | N19: =VLOOKUP(N$8,Poblacion!$C$8:$CV$93,$A19) -> 937 | P19: =VLOOKUP(P$8,Poblacion!$C$8:$CV$93,$A19) -> 919 | Q19: =VLOOKUP(Q$8,Poblacion!$C$8:$CV$93,$A19) -> 1943 | R19: =VLOOKUP(R$8,Poblacion!$C$8:$CV$93,$A19) -> 723 | S19: =VLOOKUP(S$8,Poblacion!$C$8:$CV$93,$A19) -> 627 | T19: =VLOOKUP(T$8,Poblacion!$C$8:$CV$93,$A19) -> 798 | U19: 5010
B20: TOTAL | C20: =C13+C15+C16+C17+C18 -> 1218 | D20: =D13+D15+D16+D17+D18 -> 1079 | E20: 1949 | F20: 1241 | G20: 10756 | H20: 2444 | I20: 3042 | J20: 1571 | K20: =K13+K15+K16+K17+K18 -> 23300 | L20: =IFERROR((K20/$K$20)*100,0) -> 100 | N20: =N13+N15+N16+N17+N18 -> 48997 | P20: 40587 | Q20: 91996 | R20: 30904 | S20: 24638 | T20: 27794 | U20: 215919
B21: =Interfaz!$A$22 -> Elaboración: Área de Estadística - RIS Huaura Oyón.
G25: 1 | H25: =VLOOKUP($G$25,Poblacion!$C$8:$E$93,3,FALSE) -> HUAURA - OYON
B26: POBLACION POR ETAPAS DE VIDA | C26: TOTAL | E26: PORC. (%) | H26: =+"POBLACION POR ETAPAS DE VIDA DEL "&$H$25 -> POBLACION POR ETAPAS DE VIDA DEL HUAURA - OYON
A27: 75 | B27: Neonatal (0-28dias) | C27: =VLOOKUP($G$25,Poblacion!$C$8:$CV$93,$A27) -> 396 | E27: =IFERROR(($C27/$C$37)*100,0) -> 0.149481345 | H27: =B30 -> Niño (0-11años) | I27: =C30 -> 44470
A28: 87 | B28: Infantil (Men.1año) | C28: =VLOOKUP($G$25,Poblacion!$C$8:$CV$93,$A28) -> 3982 | E28: =IFERROR(($C28/$C$37)*100,0) -> 1.503117969 | H28: =B32 -> Adolescente (12-17años) | I28: 22134
A29: 88 | B29: Pre-escolar (01-04años) | C29: =VLOOKUP($G$25,Poblacion!$C$8:$CV$93,$A29) -> 15287 | E29: 5.770508388 | H29: Adulto Joven (18-29años) | I29: 46412
A30: 89 | B30: Niño (0-11años) | C30: =VLOOKUP($G$25,Poblacion!$C$8:$CV$93,$A30) -> 44470 | E30: 16.78645306 | H30: Adulto (30-59años) | I30: 104277
A31: 90 | B31: Escolar (05-17años) | C31: =VLOOKUP($G$25,Poblacion!$C$8:$CV$93,$A31) -> 47335 | E31: 17.86792795 | H31: Adu.Mayor (60 a MAS) | I31: 47623
A32: 91 | B32: Adolescente (12-17años) | C32: =VLOOKUP($G$25,Poblacion!$C$8:$CV$93,$A32) -> 22134 | E32: 8.35510124
A33: 92 | B33: Adulto Joven (18-29años) | C33: =VLOOKUP($G$25,Poblacion!$C$8:$CV$93,$A33) -> 46412 | E33: 17.51951562
A34: 93 | B34: Adulto (30-59años) | C34: =VLOOKUP($G$25,Poblacion!$C$8:$CV$93,$A34) -> 104277 | E34: 39.36228842
A35: 94 | B35: Adu.Mayor (60 a MAS) | C35: =VLOOKUP($G$25,Poblacion!$C$8:$CV$93,$A35) -> 47623 | E35: 17.97664165
A36: 85 | B36: Gestantes | C36: =VLOOKUP($G$25,Poblacion!$C$8:$CV$93,$A36) -> 5947 | E36: 2.244862522
B37: TOTAL | C37: =C30+C32+C33+C34+C35 -> 264916 | E37: 100
B38: =Interfaz!$A$22 -> Elaboración: Área de Estadística - RIS Huaura Oyón.

Sheet Pobla_EESS
D2: POBLACIÓN SEGÚN DISTRITOS Y EE.SS - 2020
D8: SIN MICRORED | K8: MICRORED HUALMAY
D9: DISTRITO | E9: POBLACIÓN | F9: EE.SS | G9: POBLACIÓN | H9: MASCULINO | I9: FEMENINO | K9: DISTRITO | L9: POBLACIÓN | M9: EE.SS | N9: POBLACIÓN | O9: MASCULINO | P9: FEMENINO
D10: HUACHO | E10: =G10 -> 48997 | F10: HOSPITAL HUACHO | G10: =VLOOKUP($F10,Poblacion!$E$8:$I$87,2,FALSE) -> 48997 | H10: =VLOOKUP($F10,Poblacion!$E$8:$I$87,4,FALSE) -> 23759 | I10: =VLOOKUP($F10,Poblacion!$E$8:$I$87,5,FALSE) -> 25238 | K10: HUALMAY | L10: =SUM(N10:N12) -> 31314 | M10: C.S. HUALMAY | N10: =VLOOKUP($M10,Poblacion!$E$8:$I$87,2,FALSE) -> 15657 | O10: =VLOOKUP($M10,Poblacion!$E$8:$I$87,4,FALSE) -> 7757 | P10: =VLOOKUP($M10,Poblacion!$E$8:$I$87,5,FALSE) -> 7900
D11: HUACHO | F11: CLINICA SAN PEDRO | G11: 0 | K11: HUALMAY | M11: P.S. DGO. MANDAMIENTO | N11: =VLOOKUP($M11,Poblacion!$E$8:$I$87,2,FALSE) -> 10960 | O11: =VLOOKUP($M11,Poblacion!$E$8:$I$87,4,FALSE) -> 5430 | P11: =VLOOKUP($M11,Poblacion!$E$8:$I$87,5,FALSE) -> 5530
D12: HUACHO | F12: ESSALUD GUSTAVO LA NATA | G12: 0 | K12: HUALMAY | M12: P.S. CAMPO ALEGRE | N12: =VLOOKUP($M12,Poblacion!$E$8:$I$87,2,FALSE) -> 4697 | O12: =VLOOKUP($M12,Poblacion!$E$8:$I$87,4,FALSE) -> 2327 | P12: =VLOOKUP($M12,Poblacion!$E$8:$I$87,5,FALSE) -> 2370
D13: HUACHO | F13: CLINICA SAN BARTOLOME | G13: 0 | K13: S.MARIA | L13: =SUM(N13:N17) -> 37026 | M13: C.S. SANTA MARIA | N13: =VLOOKUP($M13,Poblacion!$E$8:$I$87,2,FALSE) -> 10367 | O13: =VLOOKUP($M13,Poblacion!$E$8:$I$87,4,FALSE) -> 4983 | P13: =VLOOKUP($M13,Poblacion!$E$8:$I$87,5,FALSE) -> 5384
D14: HUACHO | F14: GOLD ESTANDAR EIRL. | G14: 0 | K14: S.MARIA | M14: P.S. CHONTA | N14: =VLOOKUP($M14,Poblacion!$E$8:$I$87,2,FALSE) -> 5554 | O14: =VLOOKUP($M14,Poblacion!$E$8:$I$87,4,FALSE) -> 2669 | P14: =VLOOKUP($M14,Poblacion!$E$8:$I$87,5,FALSE) -> 2885
D15: CARQUIN | F15: INSITUTO NACIONAL PENITENCIARIO CARQUIN | G15: 0 | K15: S.MARIA | M15: P.S. ZAPATA | N15: =VLOOKUP($M15,Poblacion!$E$8:$I$87,2,FALSE) -> 2962 | O15: =VLOOKUP($M15,Poblacion!$E$8:$I$87,4,FALSE) -> 1424 | P15: =VLOOKUP($M15,Poblacion!$E$8:$I$87,5,FALSE) -> 1538
F16: OTROS ESTABLECIMIENTOS | G16: 0 | K16: S.MARIA | M16: P.S. AMADO VELASQUEZ | N16: =VLOOKUP($M16,Poblacion!$E$8:$I$87,2,FALSE) -> 11108 | O16: =VLOOKUP($M16,Poblacion!$E$8:$I$87,4,FALSE) -> 5339 | P16: =VLOOKUP($M16,Poblacion!$E$8:$I$87,5,FALSE) -> 5769
D17: TOTAL SIN MICRORED | G17: =SUM(G10:G16) -> 48997 | H17: =SUM(H10:H16) -> 23759 | I17: =SUM(I10:I16) -> 25238 | K17: S.MARIA | M17: P.S. SAN BARTOLOME | N17: =VLOOKUP($M17,Poblacion!$E$8:$I$87,2,FALSE) -> 7035 | O17: =VLOOKUP($M17,Poblacion!$E$8:$I$87,4,FALSE) -> 3381 | P17: =VLOOKUP($M17,Poblacion!$E$8:$I$87,5,FALSE) -> 3654
D18: ='etapas y mredes'!B21 -> Elaboración: Área de Estadística - RIS Huaura Oyón. | K18: CARQUIN | L18: =N18 -> 7324 | M18: P.S. CARQUIN | N18: =VLOOKUP($M18,Poblacion!$E$8:$I$87,2,FALSE) -> 7324 | O18: =VLOOKUP($M18,Poblacion!$E$8:$I$87,4,FALSE) -> 3595 | P18: =VLOOKUP($M18,Poblacion!$E$8:$I$87,5,FALSE) -> 3729
K19: HUACHO | L19: =N19 -> 16332 | M19: C.S. MANZANARES | N19: =VLOOKUP($M19,Poblacion!$E$8:$I$87,2,FALSE) -> 16332 | O19: =VLOOKUP($M19,Poblacion!$E$8:$I$87,4,FALSE) -> 7919 | P19: =VLOOKUP($M19,Poblacion!$E$8:$I$87,5,FALSE) -> 8413
K20: TOTAL MCR HUALMAY | M20: TOTAL MICRORED HUALMAY | N20: =SUM(N10:N19) -> 91996 | O20: =SUM(O10:O19) -> 44824 | P20: =SUM(P10:P19) -> 47172
K21: =D18 -> Elaboración: Área de Estadística - RIS Huaura Oyón.
D24: MICRORED HUAURA | K24: MICRORED VEGUETA
D25: DISTRITO | E25: POBLACIÓN | F25: EE.SS | G25: POBLACIÓN | H25: MASCULINO | I25: FEMENINO | K25: DISTRITO | L25: POBLACIÓN | M25: EE.SS | N25: POBLACIÓN | O25: MASCULINO | P25: FEMENINO
D26: HUAURA | E26: =SUM(G26:G30) -> 37705 | F26: C.S. HUAURA | G26: =VLOOKUP($F26,Poblacion!$E$8:$I$87,2,FALSE) -> 18853 | H26: =VLOOKUP($F26,Poblacion!$E$8:$I$87,4,FALSE) -> 9266 | I26: =VLOOKUP($F26,Poblacion!$E$8:$I$87,5,FALSE) -> 9587 | K26: VEGUETA | L26: =SUM(N26:N31) -> 24638 | M26: C.S. VEGUETA | N26: =VLOOKUP($M26,Poblacion!$E$8:$I$87,2,FALSE) -> 6899 | O26: =VLOOKUP($M26,Poblacion!$E$8:$I$87,4,FALSE) -> 3315 | P26: =VLOOKUP($M26,Poblacion!$E$8:$I$87,5,FALSE) -> 3584
D27: HUAURA | F27: C.S. SOCORRO | G27: =VLOOKUP($F27,Poblacion!$E$8:$I$87,2,FALSE) -> 12442 | H27: =VLOOKUP($F27,Poblacion!$E$8:$I$87,4,FALSE) -> 6115 | I27: =VLOOKUP($F27,Poblacion!$E$8:$I$87,5,FALSE) -> 6327 | K27: VEGUETA | M27: P.S. MAZO | N27: =VLOOKUP($M27,Poblacion!$E$8:$I$87,2,FALSE) -> 2464 | O27: =VLOOKUP($M27,Poblacion!$E$8:$I$87,4,FALSE) -> 1184 | P27: =VLOOKUP($M27,Poblacion!$E$8:$I$87,5,FALSE) -> 1280
D28: HUAURA | F28: P.S. HUMAYA | G28: =VLOOKUP($F28,Poblacion!$E$8:$I$87,2,FALSE) -> 3394 | H28: =VLOOKUP($F28,Poblacion!$E$8:$I$87,4,FALSE) -> 1668 | I28: =VLOOKUP($F28,Poblacion!$E$8:$I$87,5,FALSE) -> 1726 | K28: VEGUETA | M28: P.S. PRIMAVERA | N28: =VLOOKUP($M28,Poblacion!$E$8:$I$87,2,FALSE) -> 5420 | O28: =VLOOKUP($M28,Poblacion!$E$8:$I$87,4,FALSE) -> 2604 | P28: =VLOOKUP($M28,Poblacion!$E$8:$I$87,5,FALSE) -> 2816
D29: HUAURA | F29: P.S. VILCAHUAURA | G29: =VLOOKUP($F29,Poblacion!$E$8:$I$87,2,FALSE) -> 2639 | H29: =VLOOKUP($F29,Poblacion!$E$8:$I$87,4,FALSE) -> 1297 | I29: =VLOOKUP($F29,Poblacion!$E$8:$I$87,5,FALSE) -> 1342 | K29: VEGUETA | M29: P.S. MARIATEGUI | N29: =VLOOKUP($M29,Poblacion!$E$8:$I$87,2,FALSE) -> 6406 | O29: =VLOOKUP($M29,Poblacion!$E$8:$I$87,4,FALSE) -> 3078 | P29: =VLOOKUP($M29,Poblacion!$E$8:$I$87,5,FALSE) -> 3328
D30: HUAURA | F30: P.S. PEÑICO | G30: =VLOOKUP($F30,Poblacion!$E$8:$I$87,2,FALSE) -> 377 | H30: =VLOOKUP($F30,Poblacion!$E$8:$I$87,4,FALSE) -> 185 | I30: =VLOOKUP($F30,Poblacion!$E$8:$I$87,5,FALSE) -> 192 | K30: VEGUETA | M30: P.S. MEDIO MUNDO | N30: =VLOOKUP($M30,Poblacion!$E$8:$I$87,2,FALSE) -> 3203 | O30: =VLOOKUP($M30,Poblacion!$E$8:$I$87,4,FALSE) -> 1539 | P30: =VLOOKUP($M30,Poblacion!$E$8:$I$87,5,FALSE) -> 1664
D31: AMBAR | E31: =SUM(G31:G32) -> 2882 | F31: C.S. AMBAR | G31: =VLOOKUP($F31,Poblacion!$E$8:$I$87,2,FALSE) -> 1729 | H31: =VLOOKUP($F31,Poblacion!$E$8:$I$87,4,FALSE) -> 834 | I31: =VLOOKUP($F31,Poblacion!$E$8:$I$87,5,FALSE) -> 895 | K31: VEGUETA | M31: P.S. TIROLER | N31: =VLOOKUP($M31,Poblacion!$E$8:$I$87,2,FALSE) -> 246 | O31: =VLOOKUP($M31,Poblacion!$E$8:$I$87,4,FALSE) -> 118 | P31: =VLOOKUP($M31,Poblacion!$E$8:$I$87,5,FALSE) -> 128
D32: AMBAR | F32: P.S. AYNACA | G32: =VLOOKUP($F32,Poblacion!$E$8:$I$87,2,FALSE) -> 1153 | H32: =VLOOKUP($F32,Poblacion!$E$8:$I$87,4,FALSE) -> 553 | I32: =VLOOKUP($F32,Poblacion!$E$8:$I$87,5,FALSE) -> 600 | K32: TOTAL MCR VEGUETA | N32: =SUM(N26:N31) -> 24638 | O32: =SUM(O26:O31) -> 11838 | P32: =SUM(P26:P31) -> 12800
D33: TOTAL MCR HUAURA | F33: TOTAL MICRORED HUAURA | G33: =SUM(G26:G32) -> 40587 | H33: =SUM(H26:H32) -> 19918 | I33: 20669 | K33: =K21 -> Elaboración: Área de Estadística - RIS Huaura Oyón.
D34: =K21 -> Elaboración: Área de Estadística - RIS Huaura Oyón.
D38: MICRORED SAYAN | K38: MICRORED CHURIN OYÓN
D39: DISTRITO | E39: POBLACIÓN | F39: EE.SS | G39: POBLACIÓN | H39: MASCULINO | I39: FEMENINO | K39: DISTRITO | L39: POBLACIÓN | M39: EE.SS | N39: POBLACIÓN | O39: MASCULINO | P39: FEMENINO
D40: SAYAN | E40: =SUM(G40:G46) -> 25949 | F40: C.S. SAYAN | G40: =VLOOKUP($F40,Poblacion!$E$8:$I$87,2,FALSE) -> 8563 | H40: =VLOOKUP($F40,Poblacion!$E$8:$I$87,4,FALSE) -> 4060 | I40: =VLOOKUP($F40,Poblacion!$E$8:$I$87,5,FALSE) -> 4503 | K40: PACHANGARA | L40: =SUM(N40:N42) -> 3756 | M40: C.S. CHURIN | N40: =VLOOKUP(M40,Poblacion!$E$5:$I$88,2,FALSE) -> 3042 | O40: =VLOOKUP(M40,Poblacion!$E$5:$I$88,4,FALSE) -> 1494 | P40: =VLOOKUP(M40,Poblacion!$E$5:$I$88,5,FALSE) -> 1548
D41: SAYAN | F41: C.S. 9 DE OCTUBRE | G41: =VLOOKUP($F41,Poblacion!$E$8:$I$87,2,FALSE) -> 6877 | H41: =VLOOKUP($F41,Poblacion!$E$8:$I$87,4,FALSE) -> 3261 | I41: =VLOOKUP($F41,Poblacion!$E$8:$I$87,5,FALSE) -> 3616 | K41: PACHANGARA | M41: P.S. PACHANGARA | N41: =VLOOKUP(M41,Poblacion!$E$5:$I$88,2,FALSE) -> 301 | O41: =VLOOKUP(M41,Poblacion!$E$5:$I$88,4,FALSE) -> 148 | P41: =VLOOKUP(M41,Poblacion!$E$5:$I$88,5,FALSE) -> 153
D42: SAYAN | F42: P.S. CHAMBARA | G42: =VLOOKUP($F42,Poblacion!$E$8:$I$87,2,FALSE) -> 778 | H42: =VLOOKUP($F42,Poblacion!$E$8:$I$87,4,FALSE) -> 369 | I42: =VLOOKUP($F42,Poblacion!$E$8:$I$87,5,FALSE) -> 409 | K42: PACHANGARA | M42: P.S. HUANCAHUASI | N42: =VLOOKUP(M42,Poblacion!$E$5:$I$88,2,FALSE) -> 413 | O42: =VLOOKUP(M42,Poblacion!$E$5:$I$88,4,FALSE) -> 203 | P42: =VLOOKUP(M42,Poblacion!$E$5:$I$88,5,FALSE) -> 210
D43: SAYAN | F43: P.S. LA MERCED | G43: =VLOOKUP($F43,Poblacion!$E$8:$I$87,2,FALSE) -> 1039 | H43: =VLOOKUP($F43,Poblacion!$E$8:$I$87,4,FALSE) -> 492 | I43: =VLOOKUP($F43,Poblacion!$E$8:$I$87,5,FALSE) -> 547 | K43: OYON | L43: =SUM(N43:N47) -> 14536 | M43: C.S. OYON | N43: =VLOOKUP(M43,Poblacion!$E$5:$I$88,2,FALSE) -> 10756 | O43: =VLOOKUP(M43,Poblacion!$E$5:$I$88,4,FALSE) -> 5169 | P43: =VLOOKUP(M43,Poblacion!$E$5:$I$88,5,FALSE) -> 5587
D44: SAYAN | F44: P.S. LA VILLA | G44: =VLOOKUP($F44,Poblacion!$E$8:$I$87,2,FALSE) -> 7136 | H44: =VLOOKUP($F44,Poblacion!$E$8:$I$87,4,FALSE) -> 3384 | I44: =VLOOKUP($F44,Poblacion!$E$8:$I$87,5,FALSE) -> 3752 | K44: OYON | M44: P.S. MALLAY | N44: =VLOOKUP(M44,Poblacion!$E$5:$I$88,2,FALSE) -> 1163 | O44: =VLOOKUP(M44,Poblacion!$E$5:$I$88,4,FALSE) -> 559 | P44: =VLOOKUP(M44,Poblacion!$E$5:$I$88,5,FALSE) -> 604
D45: SAYAN | F45: P.S. EL AHORCADO | G45: =VLOOKUP($F45,Poblacion!$E$8:$I$87,2,FALSE) -> 778 | H45: =VLOOKUP($F45,Poblacion!$E$8:$I$87,4,FALSE) -> 369 | I45: =VLOOKUP($F45,Poblacion!$E$8:$I$87,5,FALSE) -> 409 | K45: OYON | M45: P.S. NAVA | N45: =VLOOKUP(M45,Poblacion!$E$5:$I$88,2,FALSE) -> 146 | O45: =VLOOKUP(M45,Poblacion!$E$5:$I$88,4,FALSE) -> 70 | P45: =VLOOKUP(M45,Poblacion!$E$5:$I$88,5,FALSE) -> 76
D46: SAYAN | F46: P.S. LA UNION | G46: =VLOOKUP($F46,Poblacion!$E$8:$I$87,2,FALSE) -> 778 | H46: =VLOOKUP($F46,Poblacion!$E$8:$I$87,4,FALSE) -> 369 | I46: =VLOOKUP($F46,Poblacion!$E$8:$I$87,5,FALSE) -> 409 | K46: OYON | M46: P.S. TINTA | N46: =VLOOKUP(M46,Poblacion!$E$5:$I$88,2,FALSE) -> 727 | O46: =VLOOKUP(M46,Poblacion!$E$5:$I$88,4,FALSE) -> 349 | P46: =VLOOKUP(M46,Poblacion!$E$5:$I$88,5,FALSE) -> 378
D47: L.PRADO | E47: =SUM(G47:G50) -> 2094 | F47: P.S. AUQUIMARCA | G47: =VLOOKUP($F47,Poblacion!$E$8:$I$87,2,FALSE) -> 105 | H47: =VLOOKUP($F47,Poblacion!$E$8:$I$87,4,FALSE) -> 51 | I47: =VLOOKUP($F47,Poblacion!$E$8:$I$87,5,FALSE) -> 54 | K47: OYON | M47: P.S. RAPAZ | N47: =VLOOKUP(M47,Poblacion!$E$5:$I$88,2,FALSE) -> 1744 | O47: =VLOOKUP(M47,Poblacion!$E$5:$I$88,4,FALSE) -> 838 | P47: =VLOOKUP(M47,Poblacion!$E$5:$I$88,5,FALSE) -> 906
D48: L.PRADO | F48: P.S. PARAN | G48: =VLOOKUP($F48,Poblacion!$E$8:$I$87,2,FALSE) -> 733 | H48: =VLOOKUP($F48,Poblacion!$E$8:$I$87,4,FALSE) -> 356 | I48: =VLOOKUP($F48,Poblacion!$E$8:$I$87,5,FALSE) -> 377 | K48: ANDAJES | L48: =N48 -> 1218 | M48: P.S. ANDAJES | N48: =VLOOKUP(M48,Poblacion!$E$5:$I$88,2,FALSE) -> 1218 | O48: =VLOOKUP(M48,Poblacion!$E$5:$I$88,4,FALSE) -> 579 | P48: =VLOOKUP(M48,Poblacion!$E$5:$I$88,5,FALSE) -> 639
D49: L.PRADO | F49: P.S. SANTA CRUZ | G49: =VLOOKUP($F49,Poblacion!$E$8:$I$87,2,FALSE) -> 419 | H49: =VLOOKUP($F49,Poblacion!$E$8:$I$87,4,FALSE) -> 203 | I49: =VLOOKUP($F49,Poblacion!$E$8:$I$87,5,FALSE) -> 216 | K49: CAUJUL | L49: =N49 -> 1079 | M49: P.S. CAUJUL | N49: =VLOOKUP(M49,Poblacion!$E$5:$I$88,2,FALSE) -> 1079 | O49: =VLOOKUP(M49,Poblacion!$E$5:$I$88,4,FALSE) -> 508 | P49: =VLOOKUP(M49,Poblacion!$E$5:$I$88,5,FALSE) -> 571
D50: L.PRADO | F50: P.S. HUANANGUI | G50: =VLOOKUP($F50,Poblacion!$E$8:$I$87,2,FALSE) -> 837 | H50: =VLOOKUP($F50,Poblacion!$E$8:$I$87,4,FALSE) -> 406 | I50: =VLOOKUP($F50,Poblacion!$E$8:$I$87,5,FALSE) -> 431 | K50: NAVAN | L50: 1241 | M50: P.S. NAVAN | N50: =VLOOKUP(M50,Poblacion!$E$5:$I$88,2,FALSE) -> 1241 | O50: =VLOOKUP(M50,Poblacion!$E$5:$I$88,4,FALSE) -> 607 | P50: =VLOOKUP(M50,Poblacion!$E$5:$I$88,5,FALSE) -> 634
D51: COCHAMARCA | E51: =SUM(G51:G53) -> 1647 | F51: P.S. COCHAMARCA | G51: =VLOOKUP($F51,Poblacion!$E$8:$I$87,2,FALSE) -> 708 | H51: =VLOOKUP($F51,Poblacion!$E$8:$I$87,4,FALSE) -> 346 | I51: =VLOOKUP($F51,Poblacion!$E$8:$I$87,5,FALSE) -> 362 | K51: CHECRAS | L51: 1949 | M51: P.S. PUÑUN | N51: =VLOOKUP(M51,Poblacion!$E$5:$I$88,2,FALSE) -> 1949 | O51: =VLOOKUP(M51,Poblacion!$E$5:$I$88,4,FALSE) -> 952 | P51: =VLOOKUP(M51,Poblacion!$E$5:$I$88,5,FALSE) -> 997
D52: COCHAMARCA | F52: P.S. COLCAPAMPA | G52: =VLOOKUP($F52,Poblacion!$E$8:$I$87,2,FALSE) -> 774 | H52: =VLOOKUP($F52,Poblacion!$E$8:$I$87,4,FALSE) -> 379 | I52: =VLOOKUP($F52,Poblacion!$E$8:$I$87,5,FALSE) -> 395 | K52: PACCHO | L52: =SUM(N52:N55) -> 2444 | M52: P.S. PACCHO | N52: =VLOOKUP(M52,Poblacion!$E$5:$I$88,2,FALSE) -> 978 | O52: =VLOOKUP(M52,Poblacion!$E$5:$I$88,4,FALSE) -> 481 | P52: =VLOOKUP(M52,Poblacion!$E$5:$I$88,5,FALSE) -> 497
D53: COCHAMARCA | F53: P.S. YARUCAYA | G53: =VLOOKUP($F53,Poblacion!$E$8:$I$87,2,FALSE) -> 165 | H53: =VLOOKUP($F53,Poblacion!$E$8:$I$87,4,FALSE) -> 81 | I53: =VLOOKUP($F53,Poblacion!$E$8:$I$87,5,FALSE) -> 84 | K53: PACCHO | M53: P.S. LACSANGA | N53: =VLOOKUP(M53,Poblacion!$E$5:$I$88,2,FALSE) -> 734 | O53: =VLOOKUP(M53,Poblacion!$E$5:$I$88,4,FALSE) -> 361 | P53: =VLOOKUP(M53,Poblacion!$E$5:$I$88,5,FALSE) -> 373
D54: IHUARI - ACOTAMA | E54: =G54 -> 1214 | F54: IHUARI - ACOTAMA | G54: =VLOOKUP($F54,Poblacion!$E$8:$I$87,2,FALSE) -> 1214 | H54: =VLOOKUP($F54,Poblacion!$E$8:$I$87,4,FALSE) -> 577 | I54: =VLOOKUP($F54,Poblacion!$E$8:$I$87,5,FALSE) -> 637 | K54: PACCHO | M54: P.S. AYARANGA | N54: =VLOOKUP(M54,Poblacion!$E$5:$I$88,2,FALSE) -> 342 | O54: =VLOOKUP(M54,Poblacion!$E$5:$I$88,4,FALSE) -> 168 | P54: =VLOOKUP(M54,Poblacion!$E$5:$I$88,5,FALSE) -> 174
D55: TOTAL MICRORED SAYAN | G55: =SUM(G40:G54) -> 30904 | H55: =SUM(H40:H54) -> 14703 | I55: 16201 | K55: PACCHO | M55: P.S. MUZGA | N55: =VLOOKUP(M55,Poblacion!$E$5:$I$88,2,FALSE) -> 390 | O55: =VLOOKUP(M55,Poblacion!$E$5:$I$88,4,FALSE) -> 192 | P55: =VLOOKUP(M55,Poblacion!$E$5:$I$88,5,FALSE) -> 198
D56: =K33 -> Elaboración: Área de Estadística - RIS Huaura Oyón. | K56: S.LEONOR | L56: =SUM(N56:N58) -> 1571 | M56: P.S. CHIUCHIN | N56: =VLOOKUP(M56,Poblacion!$E$5:$I$88,2,FALSE) -> 1099 | O56: =VLOOKUP(M56,Poblacion!$E$5:$I$88,4,FALSE) -> 522 | P56: =VLOOKUP(M56,Poblacion!$E$5:$I$88,5,FALSE) -> 577
K57: S.LEONOR | M57: P.S. PARQUIN | N57: =VLOOKUP(M57,Poblacion!$E$5:$I$88,2,FALSE) -> 283 | O57: =VLOOKUP(M57,Poblacion!$E$5:$I$88,4,FALSE) -> 134 | P57: =VLOOKUP(M57,Poblacion!$E$5:$I$88,5,FALSE) -> 149
K58: S.LEONOR | M58: P.S. JUCUL | N58: =VLOOKUP(M58,Poblacion!$E$5:$I$88,2,FALSE) -> 189 | O58: =VLOOKUP(M58,Poblacion!$E$5:$I$88,4,FALSE) -> 90 | P58: =VLOOKUP(M58,Poblacion!$E$5:$I$88,5,FALSE) -> 99
K59: TOTAL MICRORED CHURIN - OYON | N59: =SUM(N40:N58) -> 27794 | O59: =SUM(O40:O58) -> 13424 | P59: 14370
K60: =K33 -> Elaboración: Área de Estadística - RIS Huaura Oyón.
